{"text_format":"1","workbook":"xlsx","n_sheets":4,"sheets":["infos échantillons","Ressource","Version","Feuil1"],"not_rendered":{"charts":0,"images":0,"macros":0,"external_links":0,"defined_names":10,"comments":1,"pivot_tables":0},"unopened":[],"bounds":{"document_bytes":16777216,"sheet_cells":100000,"rows_first":2000,"rows_last":500,"rows_between":2000,"halvings":0,"cell_chars":16384,"cell_head_chars":4096},"cells_cut":0,"cells_raw":0,"read":"whole","date_system":"1900"}

{"sheet":"infos échantillons","index":0,"n_rows":2812,"n_cols":16,"rows_kept":2812,"cut":false,"hidden":false,"merged":[[18,1,18,2],[19,1,19,2],[20,1,20,2],[0,4,0,9],[0,0,0,3],[2,3,2,4],[2,1,2,2],[22,1,22,2],[26,0,26,15],[2,5,2,6],[16,5,16,9],[21,1,21,2],[17,1,17,2],[14,1,14,2],[15,1,15,2],[24,1,24,2],[11,1,11,3],[12,1,12,3],[13,1,13,2],[11,5,12,9],[16,1,16,2],[23,1,23,2],[17,5,17,9]]}
["Sample sheet for the project: "]
[]
[null," DNA prerequisites  \n(with PCR amplification)",null,"Pré-requis ADN PCRfree\n (sans amplification PCR)",null," Pré-requis ADN EMseq\n"]
[null,"Min. quantity of matrix :","500 ng","Min. quantity of matrix :","4µg","Min. quantity of matrix :","500 ng"]
[null,"Min. concentration:","5 ng/µl","Min. concentration:","20 ng/µl","Min. concentration:","5 ng/µl"]
[null,"Purity 260/280 :","1,8","Purity  260/280 :","1,8","Purity  260/280 :","1,8"]
[null,"Minimum volume: ","20 µl","Minimum volume: ","20 µl","Minimum volume: ","20 µl"]
[]
[]
[null,"See the Prerequisites sheet for more information."]
[]
[null,"To be completed by the research team",null,null,null,"Please do not change the position of the columns or their titles."]
[]
[null,"Matrix type",null,null,{"$f":"IFERROR(INDEX(Ressource!A3:B11,MATCH(D14,Ressource!A3:A11,0),2),\"\")","v":""}]
[null,"Type of library",null,null,{"$f":"IFERROR(INDEX(Ressource!E3:F38,MATCH(D15,Ressource!E3:E38,0),2),\"\")","v":""},"a If your samples do not meet the prerequisites, please contact the platform."]
[null,"Library selection",null,null,{"$f":"IFERROR(INDEX(Ressource!C3:D33,MATCH(D16,Ressource!C3:C33,0),2),\"\")","v":""}]
[null,"Species (scientific name)",null,null,null,"* If your sample container (tube, plate) has a barcode, please specify this in the Barcode column."]
[null,"Extraction method",null,null,null,"* Choose short sample names without special characters (spaces, commas, full stops, underscores, etc.), except for hyphens, which are permitted."]
[null,"Elution",null,null,null,"* Check that the name on the tube matches the name in the file."]
[null,"Number of samples",null,null,null,"* In order to perform quality analyses on your data, please provide us with the web link to the reference genome and its version."]
[null,"Number of lanes"]
[null,"Multiplexing",null,"n-plex / non"]
[null,"Storing my samples",null,"Non"]
[]
[null,"Reference/Reference genome link(NCBI/Ensembl, etc.)"]
[]
["Sample information to be provided by the research team"]
[null,"Support","plate well","Barcode","Sample Name","Species (scientific name)","Nanodrop concentration estimation (ng/µl)","ratio 260/280","ratio 260/230","RIN","QuBit  or Picogreen dosage (ng/µl)","Volume (µl)","Quantity supplied (µg)","Matrix type","Type of library","Library selection"]
[1,null,"A01",null,null,{"$f":"IF($D$17<>\"\",$D$17,\"\")","v":""},null,null,null,null,null,null,null,{"$f":"IF($D$14<>\"\",$D$14,\"\")","v":""},{"$f":"IF($D$15<>\"\",$D$15,\"\")","v":""},{"$f":"IF($D$16<>\"\",$D$16,\"\")","v":""}]
[2,null,"B01",null,null,{"$f":"IF($D$17<>\"\",$D$17,\"\")","v":""},null,null,null,null,null,null,null,{"$f":"IF($D$14<>\"\",$D$14,\"\")","v":""},{"$f":"IF($D$15<>\"\",$D$15,\"\")","v":""},{"$f":"IF($D$16<>\"\",$D$16,\"\")","v":""}]
[3,null,"C01",null,null,"",null,null,null,null,null,null,null,"","",""]
[4,null,"D01",null,null,"",null,null,null,null,null,null,null,"","",""]
[5,null,"E01",null,null,"",null,null,null,null,null,null,null,"","",""]
[6,null,"F01",null,null,"",null,null,null,null,null,null,null,"","",""]
[7,null,"G01",null,null,"",null,null,null,null,null,null,null,"","",""]
[8,null,"H01",null,null,"",null,null,null,null,null,null,null,"","",""]
[9,null,"A02",null,null,"",null,null,null,null,null,null,null,"","",""]
[10,null,"B02",null,null,"",null,null,null,null,null,null,null,"","",""]
[11,null,"C02",null,null,"",null,null,null,null,null,null,null,"","",""]
[12,null,"D02",null,null,"",null,null,null,null,null,null,null,"","",""]
[13,null,"E02",null,null,"",null,null,null,null,null,null,null,"","",""]
[14,null,"F02",null,null,"",null,null,null,null,null,null,null,"","",""]
[15,null,"G02",null,null,"",null,null,null,null,null,null,null,"","",""]
[16,null,"H02",null,null,"",null,null,null,null,null,null,null,"","",""]
[17,null,"A03",null,null,"",null,null,null,null,null,null,null,"","",""]
[18,null,"B03",null,null,"",null,null,null,null,null,null,null,"","",""]
[19,null,"C03",null,null,"",null,null,null,null,null,null,null,"","",""]
[20,null,"D03",null,null,"",null,null,null,null,null,null,null,"","",""]
[21,null,"E03",null,null,"",null,null,null,null,null,null,null,"","",""]
[22,null,"F03",null,null,"",null,null,null,null,null,null,null,"","",""]
[23,null,"G03",null,null,"",null,null,null,null,null,null,null,"","",""]
[24,null,"H03",null,null,"",null,null,null,null,null,null,null,"","",""]
[25,null,"A04",null,null,"",null,null,null,null,null,null,null,"","",""]
[26,null,"B04",null,null,"",null,null,null,null,null,null,null,"","",""]
[27,null,"C04",null,null,"",null,null,null,null,null,null,null,"","",""]
[28,null,"D04",null,null,"",null,null,null,null,null,null,null,"","",""]
[29,null,"E04",null,null,"",null,null,null,null,null,null,null,"","",""]
[30,null,"F04",null,null,"",null,null,null,null,null,null,null,"","",""]
[31,null,"G04",null,null,"",null,null,null,null,null,null,null,"","",""]
[32,null,"H04",null,null,"",null,null,null,null,null,null,null,"","",""]
[33,null,"A05",null,null,"",null,null,null,null,null,null,null,"","",""]
[34,null,"B05",null,null,"",null,null,null,null,null,null,null,"","",""]
[35,null,"C05",null,null,"",null,null,null,null,null,null,null,"","",""]
[36,null,"D05",null,null,"",null,null,null,null,null,null,null,"","",""]
[37,null,"E05",null,null,"",null,null,null,null,null,null,null,"","",""]
[38,null,"F05",null,null,"",null,null,null,null,null,null,null,"","",""]
[39,null,"G05",null,null,"",null,null,null,null,null,null,null,"","",""]
[40,null,"H05",null,null,"",null,null,null,null,null,null,null,"","",""]
[41,null,"A06",null,null,"",null,null,null,null,null,null,null,"","",""]
[42,null,"B06",null,null,"",null,null,null,null,null,null,null,"","",""]
[43,null,"C06",null,null,"",null,null,null,null,null,null,null,"","",""]
[44,null,"D06",null,null,"",null,null,null,null,null,null,null,"","",""]
[45,null,"E06",null,null,"",null,null,null,null,null,null,null,"","",""]
[46,null,"F06",null,null,"",null,null,null,null,null,null,null,"","",""]
[47,null,"G06",null,null,"",null,null,null,null,null,null,null,"","",""]
[48,null,"H06",null,null,"",null,null,null,null,null,null,null,"","",""]
[49,null,"A07",null,null,"",null,null,null,null,null,null,null,"","",""]
[50,null,"B07",null,null,"",null,null,null,null,null,null,null,"","",""]
[51,null,"C07",null,null,"",null,null,null,null,null,null,null,"","",""]
[52,null,"D07",null,null,"",null,null,null,null,null,null,null,"","",""]
[53,null,"E07",null,null,"",null,null,null,null,null,null,null,"","",""]
[54,null,"F07",null,null,"",null,null,null,null,null,null,null,"","",""]
[55,null,"G07",null,null,"",null,null,null,null,null,null,null,"","",""]
[56,null,"H07",null,null,"",null,null,null,null,null,null,null,"","",""]
[57,null,"A08",null,null,"",null,null,null,null,null,null,null,"","",""]
[58,null,"B08",null,null,"",null,null,null,null,null,null,null,"","",""]
[59,null,"C08",null,null,"",null,null,null,null,null,null,null,"","",""]
[60,null,"D08",null,null,"",null,null,null,null,null,null,null,"","",""]
[61,null,"E08",null,null,"",null,null,null,null,null,null,null,"","",""]
[62,null,"F08",null,null,"",null,null,null,null,null,null,null,"","",""]
[63,null,"G08",null,null,"",null,null,null,null,null,null,null,"","",""]
[64,null,"H08",null,null,"",null,null,null,null,null,null,null,"","",""]
[65,null,"A09",null,null,"",null,null,null,null,null,null,null,"","",""]
[66,null,"B09",null,null,{"$f":"IF($D$17<>\"\",$D$17,\"\")","v":""},null,null,null,null,null,null,null,{"$f":"IF($D$14<>\"\",$D$14,\"\")","v":""},{"$f":"IF($D$15<>\"\",$D$15,\"\")","v":""},{"$f":"IF($D$16<>\"\",$D$16,\"\")","v":""}]
[67,null,"C09",null,null,"",null,null,null,null,null,null,null,"","",""]
[68,null,"D09",null,null,"",null,null,null,null,null,null,null,"","",""]
[69,null,"E09",null,null,"",null,null,null,null,null,null,null,"","",""]
[70,null,"F09",null,null,"",null,null,null,null,null,null,null,"","",""]
[71,null,"G09",null,null,"",null,null,null,null,null,null,null,"","",""]
[72,null,"H09",null,null,"",null,null,null,null,null,null,null,"","",""]
[73,null,"A10",null,null,"",null,null,null,null,null,null,null,"","",""]
[74,null,"B10",null,null,"",null,null,null,null,null,null,null,"","",""]
[75,null,"C10",null,null,"",null,null,null,null,null,null,null,"","",""]
[76,null,"D10",null,null,"",null,null,null,null,null,null,null,"","",""]
[77,null,"E10",null,null,"",null,null,null,null,null,null,null,"","",""]
[78,null,"F10",null,null,"",null,null,null,null,null,null,null,"","",""]
[79,null,"G10",null,null,"",null,null,null,null,null,null,null,"","",""]
[80,null,"H10",null,null,"",null,null,null,null,null,null,null,"","",""]
[81,null,"A11",null,null,"",null,null,null,null,null,null,null,"","",""]
[82,null,"B11",null,null,"",null,null,null,null,null,null,null,"","",""]
[83,null,"C11",null,null,"",null,null,null,null,null,null,null,"","",""]
[84,null,"D11",null,null,"",null,null,null,null,null,null,null,"","",""]
[85,null,"E11",null,null,"",null,null,null,null,null,null,null,"","",""]
[86,null,"F11",null,null,"",null,null,null,null,null,null,null,"","",""]
[87,null,"G11",null,null,"",null,null,null,null,null,null,null,"","",""]
[88,null,"H11",null,null,"",null,null,null,null,null,null,null,"","",""]
[89,null,"A12",null,null,"",null,null,null,null,null,null,null,"","",""]
[90,null,"B12",null,null,"",null,null,null,null,null,null,null,"","",""]
[91,null,"C12",null,null,"",null,null,null,null,null,null,null,"","",""]
[92,null,"D12",null,null,"",null,null,null,null,null,null,null,"","",""]
[93,null,"E12",null,null,"",null,null,null,null,null,null,null,"","",""]
[94,null,"F12",null,null,"",null,null,null,null,null,null,null,"","",""]
[95,null,"G12",null,null,"",null,null,null,null,null,null,null,"","",""]
[96,null,"H12",null,null,"",null,null,null,null,null,null,null,"","",""]
[97,null,"A01",null,null,"",null,null,null,null,null,null,null,"","",""]
[98,null,"B01",null,null,"",null,null,null,null,null,null,null,"","",""]
[99,null,"C01",null,null,"",null,null,null,null,null,null,null,"","",""]
[100,null,"D01",null,null,"",null,null,null,null,null,null,null,"","",""]
[101,null,"E01",null,null,"",null,null,null,null,null,null,null,"","",""]
[102,null,"F01",null,null,"",null,null,null,null,null,null,null,"","",""]
[103,null,"G01",null,null,"",null,null,null,null,null,null,null,"","",""]
[104,null,"H01",null,null,"",null,null,null,null,null,null,null,"","",""]
[105,null,"A02",null,null,"",null,null,null,null,null,null,null,"","",""]
[106,null,"B02",null,null,"",null,null,null,null,null,null,null,"","",""]
[107,null,"C02",null,null,"",null,null,null,null,null,null,null,"","",""]
[108,null,"D02",null,null,"",null,null,null,null,null,null,null,"","",""]
[109,null,"E02",null,null,"",null,null,null,null,null,null,null,"","",""]
[110,null,"F02",null,null,"",null,null,null,null,null,null,null,"","",""]
[111,null,"G02",null,null,"",null,null,null,null,null,null,null,"","",""]
[112,null,"H02",null,null,"",null,null,null,null,null,null,null,"","",""]
[113,null,"A03",null,null,"",null,null,null,null,null,null,null,"","",""]
[114,null,"B03",null,null,"",null,null,null,null,null,null,null,"","",""]
[115,null,"C03",null,null,"",null,null,null,null,null,null,null,"","",""]
[116,null,"D03",null,null,"",null,null,null,null,null,null,null,"","",""]
[117,null,"E03",null,null,"",null,null,null,null,null,null,null,"","",""]
[118,null,"F03",null,null,"",null,null,null,null,null,null,null,"","",""]
[119,null,"G03",null,null,"",null,null,null,null,null,null,null,"","",""]
[120,null,"H03",null,null,"",null,null,null,null,null,null,null,"","",""]
[121,null,"A04",null,null,"",null,null,null,null,null,null,null,"","",""]
[122,null,"B04",null,null,"",null,null,null,null,null,null,null,"","",""]
[123,null,"C04",null,null,"",null,null,null,null,null,null,null,"","",""]
[124,null,"D04",null,null,"",null,null,null,null,null,null,null,"","",""]
[125,null,"E04",null,null,"",null,null,null,null,null,null,null,"","",""]
[126,null,"F04",null,null,"",null,null,null,null,null,null,null,"","",""]
[127,null,"G04",null,null,"",null,null,null,null,null,null,null,"","",""]
[128,null,"H04",null,null,"",null,null,null,null,null,null,null,"","",""]
[129,null,"A05",null,null,"",null,null,null,null,null,null,null,"","",""]
[130,null,"B05",null,null,{"$f":"IF($D$17<>\"\",$D$17,\"\")","v":""},null,null,null,null,null,null,null,{"$f":"IF($D$14<>\"\",$D$14,\"\")","v":""},{"$f":"IF($D$15<>\"\",$D$15,\"\")","v":""},{"$f":"IF($D$16<>\"\",$D$16,\"\")","v":""}]
[131,null,"C05",null,null,"",null,null,null,null,null,null,null,"","",""]
[132,null,"D05",null,null,"",null,null,null,null,null,null,null,"","",""]
[133,null,"E05",null,null,"",null,null,null,null,null,null,null,"","",""]
[134,null,"F05",null,null,"",null,null,null,null,null,null,null,"","",""]
[135,null,"G05",null,null,"",null,null,null,null,null,null,null,"","",""]
[136,null,"H05",null,null,"",null,null,null,null,null,null,null,"","",""]
[137,null,"A06",null,null,"",null,null,null,null,null,null,null,"","",""]
[138,null,"B06",null,null,"",null,null,null,null,null,null,null,"","",""]
[139,null,"C06",null,null,"",null,null,null,null,null,null,null,"","",""]
[140,null,"D06",null,null,"",null,null,null,null,null,null,null,"","",""]
[141,null,"E06",null,null,"",null,null,null,null,null,null,null,"","",""]
[142,null,"F06",null,null,"",null,null,null,null,null,null,null,"","",""]
[143,null,"G06",null,null,"",null,null,null,null,null,null,null,"","",""]
[144,null,"H06",null,null,"",null,null,null,null,null,null,null,"","",""]
[145,null,"A07",null,null,"",null,null,null,null,null,null,null,"","",""]
[146,null,"B07",null,null,"",null,null,null,null,null,null,null,"","",""]
[147,null,"C07",null,null,"",null,null,null,null,null,null,null,"","",""]
[148,null,"D07",null,null,"",null,null,null,null,null,null,null,"","",""]
[149,null,"E07",null,null,"",null,null,null,null,null,null,null,"","",""]
[150,null,"F07",null,null,"",null,null,null,null,null,null,null,"","",""]
[151,null,"G07",null,null,"",null,null,null,null,null,null,null,"","",""]
[152,null,"H07",null,null,"",null,null,null,null,null,null,null,"","",""]
[153,null,"A08",null,null,"",null,null,null,null,null,null,null,"","",""]
[154,null,"B08",null,null,"",null,null,null,null,null,null,null,"","",""]
[155,null,"C08",null,null,"",null,null,null,null,null,null,null,"","",""]
[156,null,"D08",null,null,"",null,null,null,null,null,null,null,"","",""]
[157,null,"E08",null,null,"",null,null,null,null,null,null,null,"","",""]
[158,null,"F08",null,null,"",null,null,null,null,null,null,null,"","",""]
[159,null,"G08",null,null,"",null,null,null,null,null,null,null,"","",""]
[160,null,"H08",null,null,"",null,null,null,null,null,null,null,"","",""]
[161,null,"A09",null,null,"",null,null,null,null,null,null,null,"","",""]
[162,null,"B09",null,null,"",null,null,null,null,null,null,null,"","",""]
[163,null,"C09",null,null,"",null,null,null,null,null,null,null,"","",""]
[164,null,"D09",null,null,"",null,null,null,null,null,null,null,"","",""]
[165,null,"E09",null,null,"",null,null,null,null,null,null,null,"","",""]
[166,null,"F09",null,null,"",null,null,null,null,null,null,null,"","",""]
[167,null,"G09",null,null,"",null,null,null,null,null,null,null,"","",""]
[168,null,"H09",null,null,"",null,null,null,null,null,null,null,"","",""]
[169,null,"A10",null,null,"",null,null,null,null,null,null,null,"","",""]
[170,null,"B10",null,null,"",null,null,null,null,null,null,null,"","",""]
[171,null,"C10",null,null,"",null,null,null,null,null,null,null,"","",""]
[172,null,"D10",null,null,"",null,null,null,null,null,null,null,"","",""]
[173,null,"E10",null,null,"",null,null,null,null,null,null,null,"","",""]
[174,null,"F10",null,null,"",null,null,null,null,null,null,null,"","",""]
[175,null,"G10",null,null,"",null,null,null,null,null,null,null,"","",""]
[176,null,"H10",null,null,"",null,null,null,null,null,null,null,"","",""]
[177,null,"A11",null,null,"",null,null,null,null,null,null,null,"","",""]
[178,null,"B11",null,null,"",null,null,null,null,null,null,null,"","",""]
[179,null,"C11",null,null,"",null,null,null,null,null,null,null,"","",""]
[180,null,"D11",null,null,"",null,null,null,null,null,null,null,"","",""]
[181,null,"E11",null,null,"",null,null,null,null,null,null,null,"","",""]
[182,null,"F11",null,null,"",null,null,null,null,null,null,null,"","",""]
[183,null,"G11",null,null,"",null,null,null,null,null,null,null,"","",""]
[184,null,"H11",null,null,"",null,null,null,null,null,null,null,"","",""]
[185,null,"A12",null,null,"",null,null,null,null,null,null,null,"","",""]
[186,null,"B12",null,null,"",null,null,null,null,null,null,null,"","",""]
[187,null,"C12",null,null,"",null,null,null,null,null,null,null,"","",""]
[188,null,"D12",null,null,"",null,null,null,null,null,null,null,"","",""]
[189,null,"E12",null,null,"",null,null,null,null,null,null,null,"","",""]
[190,null,"F12",null,null,"",null,null,null,null,null,null,null,"","",""]
[191,null,"G12",null,null,"",null,null,null,null,null,null,null,"","",""]
[192,null,"H12",null,null,"",null,null,null,null,null,null,null,"","",""]
[193,null,"A01",null,null,"",null,null,null,null,null,null,null,"","",""]
[194,null,"B01",null,null,{"$f":"IF($D$17<>\"\",$D$17,\"\")","v":""},null,null,null,null,null,null,null,{"$f":"IF($D$14<>\"\",$D$14,\"\")","v":""},{"$f":"IF($D$15<>\"\",$D$15,\"\")","v":""},{"$f":"IF($D$16<>\"\",$D$16,\"\")","v":""}]
[195,null,"C01",null,null,"",null,null,null,null,null,null,null,"","",""]
[196,null,"D01",null,null,"",null,null,null,null,null,null,null,"","",""]
[197,null,"E01",null,null,"",null,null,null,null,null,null,null,"","",""]
[198,null,"F01",null,null,"",null,null,null,null,null,null,null,"","",""]
[199,null,"G01",null,null,"",null,null,null,null,null,null,null,"","",""]
[200,null,"H01",null,null,"",null,null,null,null,null,null,null,"","",""]
[201,null,"A02",null,null,"",null,null,null,null,null,null,null,"","",""]
[202,null,"B02",null,null,"",null,null,null,null,null,null,null,"","",""]
[203,null,"C02",null,null,"",null,null,null,null,null,null,null,"","",""]
[204,null,"D02",null,null,"",null,null,null,null,null,null,null,"","",""]
[205,null,"E02",null,null,"",null,null,null,null,null,null,null,"","",""]
[206,null,"F02",null,null,"",null,null,null,null,null,null,null,"","",""]
[207,null,"G02",null,null,"",null,null,null,null,null,null,null,"","",""]
[208,null,"H02",null,null,"",null,null,null,null,null,null,null,"","",""]
[209,null,"A03",null,null,"",null,null,null,null,null,null,null,"","",""]
[210,null,"B03",null,null,"",null,null,null,null,null,null,null,"","",""]
[211,null,"C03",null,null,"",null,null,null,null,null,null,null,"","",""]
[212,null,"D03",null,null,"",null,null,null,null,null,null,null,"","",""]
[213,null,"E03",null,null,"",null,null,null,null,null,null,null,"","",""]
[214,null,"F03",null,null,"",null,null,null,null,null,null,null,"","",""]
[215,null,"G03",null,null,"",null,null,null,null,null,null,null,"","",""]
[216,null,"H03",null,null,"",null,null,null,null,null,null,null,"","",""]
[217,null,"A04",null,null,"",null,null,null,null,null,null,null,"","",""]
[218,null,"B04",null,null,"",null,null,null,null,null,null,null,"","",""]
[219,null,"C04",null,null,"",null,null,null,null,null,null,null,"","",""]
[220,null,"D04",null,null,"",null,null,null,null,null,null,null,"","",""]
[221,null,"E04",null,null,"",null,null,null,null,null,null,null,"","",""]
[222,null,"F04",null,null,"",null,null,null,null,null,null,null,"","",""]
[223,null,"G04",null,null,"",null,null,null,null,null,null,null,"","",""]
[224,null,"H04",null,null,"",null,null,null,null,null,null,null,"","",""]
[225,null,"A05",null,null,"",null,null,null,null,null,null,null,"","",""]
[226,null,"B05",null,null,"",null,null,null,null,null,null,null,"","",""]
[227,null,"C05",null,null,"",null,null,null,null,null,null,null,"","",""]
[228,null,"D05",null,null,"",null,null,null,null,null,null,null,"","",""]
[229,null,"E05",null,null,"",null,null,null,null,null,null,null,"","",""]
[230,null,"F05",null,null,"",null,null,null,null,null,null,null,"","",""]
[231,null,"G05",null,null,"",null,null,null,null,null,null,null,"","",""]
[232,null,"H05",null,null,"",null,null,null,null,null,null,null,"","",""]
[233,null,"A06",null,null,"",null,null,null,null,null,null,null,"","",""]
[234,null,"B06",null,null,"",null,null,null,null,null,null,null,"","",""]
[235,null,"C06",null,null,"",null,null,null,null,null,null,null,"","",""]
[236,null,"D06",null,null,"",null,null,null,null,null,null,null,"","",""]
[237,null,"E06",null,null,"",null,null,null,null,null,null,null,"","",""]
[238,null,"F06",null,null,"",null,null,null,null,null,null,null,"","",""]
[239,null,"G06",null,null,"",null,null,null,null,null,null,null,"","",""]
[240,null,"H06",null,null,"",null,null,null,null,null,null,null,"","",""]
[241,null,"A07",null,null,"",null,null,null,null,null,null,null,"","",""]
[242,null,"B07",null,null,"",null,null,null,null,null,null,null,"","",""]
[243,null,"C07",null,null,"",null,null,null,null,null,null,null,"","",""]
[244,null,"D07",null,null,"",null,null,null,null,null,null,null,"","",""]
[245,null,"E07",null,null,"",null,null,null,null,null,null,null,"","",""]
[246,null,"F07",null,null,"",null,null,null,null,null,null,null,"","",""]
[247,null,"G07",null,null,"",null,null,null,null,null,null,null,"","",""]
[248,null,"H07",null,null,"",null,null,null,null,null,null,null,"","",""]
[249,null,"A08",null,null,"",null,null,null,null,null,null,null,"","",""]
[250,null,"B08",null,null,"",null,null,null,null,null,null,null,"","",""]
[251,null,"C08",null,null,"",null,null,null,null,null,null,null,"","",""]
[252,null,"D08",null,null,"",null,null,null,null,null,null,null,"","",""]
[253,null,"E08",null,null,"",null,null,null,null,null,null,null,"","",""]
[254,null,"F08",null,null,"",null,null,null,null,null,null,null,"","",""]
[255,null,"G08",null,null,"",null,null,null,null,null,null,null,"","",""]
[256,null,"H08",null,null,"",null,null,null,null,null,null,null,"","",""]
[257,null,"A09",null,null,"",null,null,null,null,null,null,null,"","",""]
[258,null,"B09",null,null,{"$f":"IF($D$17<>\"\",$D$17,\"\")","v":""},null,null,null,null,null,null,null,{"$f":"IF($D$14<>\"\",$D$14,\"\")","v":""},{"$f":"IF($D$15<>\"\",$D$15,\"\")","v":""},{"$f":"IF($D$16<>\"\",$D$16,\"\")","v":""}]
[259,null,"C09",null,null,"",null,null,null,null,null,null,null,"","",""]
[260,null,"D09",null,null,"",null,null,null,null,null,null,null,"","",""]
[261,null,"E09",null,null,"",null,null,null,null,null,null,null,"","",""]
[262,null,"F09",null,null,"",null,null,null,null,null,null,null,"","",""]
[263,null,"G09",null,null,"",null,null,null,null,null,null,null,"","",""]
[264,null,"H09",null,null,"",null,null,null,null,null,null,null,"","",""]
[265,null,"A10",null,null,"",null,null,null,null,null,null,null,"","",""]
[266,null,"B10",null,null,"",null,null,null,null,null,null,null,"","",""]
[267,null,"C10",null,null,"",null,null,null,null,null,null,null,"","",""]
[268,null,"D10",null,null,"",null,null,null,null,null,null,null,"","",""]
[269,null,"E10",null,null,"",null,null,null,null,null,null,null,"","",""]
[270,null,"F10",null,null,"",null,null,null,null,null,null,null,"","",""]
[271,null,"G10",null,null,"",null,null,null,null,null,null,null,"","",""]
[272,null,"H10",null,null,"",null,null,null,null,null,null,null,"","",""]
[273,null,"A11",null,null,"",null,null,null,null,null,null,null,"","",""]
[274,null,"B11",null,null,"",null,null,null,null,null,null,null,"","",""]
[275,null,"C11",null,null,"",null,null,null,null,null,null,null,"","",""]
[276,null,"D11",null,null,"",null,null,null,null,null,null,null,"","",""]
[277,null,"E11",null,null,"",null,null,null,null,null,null,null,"","",""]
[278,null,"F11",null,null,"",null,null,null,null,null,null,null,"","",""]
[279,null,"G11",null,null,"",null,null,null,null,null,null,null,"","",""]
[280,null,"H11",null,null,"",null,null,null,null,null,null,null,"","",""]
[281,null,"A12",null,null,"",null,null,null,null,null,null,null,"","",""]
[282,null,"B12",null,null,"",null,null,null,null,null,null,null,"","",""]
[283,null,"C12",null,null,"",null,null,null,null,null,null,null,"","",""]
[284,null,"D12",null,null,"",null,null,null,null,null,null,null,"","",""]
[285,null,"E12",null,null,"",null,null,null,null,null,null,null,"","",""]
[286,null,"F12",null,null,"",null,null,null,null,null,null,null,"","",""]
[287,null,"G12",null,null,"",null,null,null,null,null,null,null,"","",""]
[288,null,"H12",null,null,"",null,null,null,null,null,null,null,"","",""]
[289,null,"A01",null,null,"",null,null,null,null,null,null,null,"","",""]
[290,null,"B01",null,null,"",null,null,null,null,null,null,null,"","",""]
[291,null,"C01",null,null,"",null,null,null,null,null,null,null,"","",""]
[292,null,"D01",null,null,"",null,null,null,null,null,null,null,"","",""]
[293,null,"E01",null,null,"",null,null,null,null,null,null,null,"","",""]
[294,null,"F01",null,null,"",null,null,null,null,null,null,null,"","",""]
[295,null,"G01",null,null,"",null,null,null,null,null,null,null,"","",""]
[296,null,"H01",null,null,"",null,null,null,null,null,null,null,"","",""]
[297,null,"A02",null,null,"",null,null,null,null,null,null,null,"","",""]
[298,null,"B02",null,null,"",null,null,null,null,null,null,null,"","",""]
[299,null,"C02",null,null,"",null,null,null,null,null,null,null,"","",""]
[300,null,"D02",null,null,"",null,null,null,null,null,null,null,"","",""]
[301,null,"E02",null,null,"",null,null,null,null,null,null,null,"","",""]
[302,null,"F02",null,null,"",null,null,null,null,null,null,null,"","",""]
[303,null,"G02",null,null,"",null,null,null,null,null,null,null,"","",""]
[304,null,"H02",null,null,"",null,null,null,null,null,null,null,"","",""]
[305,null,"A03",null,null,"",null,null,null,null,null,null,null,"","",""]
[306,null,"B03",null,null,"",null,null,null,null,null,null,null,"","",""]
[307,null,"C03",null,null,"",null,null,null,null,null,null,null,"","",""]
[308,null,"D03",null,null,"",null,null,null,null,null,null,null,"","",""]
[309,null,"E03",null,null,"",null,null,null,null,null,null,null,"","",""]
[310,null,"F03",null,null,"",null,null,null,null,null,null,null,"","",""]
[311,null,"G03",null,null,"",null,null,null,null,null,null,null,"","",""]
[312,null,"H03",null,null,"",null,null,null,null,null,null,null,"","",""]
[313,null,"A04",null,null,"",null,null,null,null,null,null,null,"","",""]
[314,null,"B04",null,null,"",null,null,null,null,null,null,null,"","",""]
[315,null,"C04",null,null,"",null,null,null,null,null,null,null,"","",""]
[316,null,"D04",null,null,"",null,null,null,null,null,null,null,"","",""]
[317,null,"E04",null,null,"",null,null,null,null,null,null,null,"","",""]
[318,null,"F04",null,null,"",null,null,null,null,null,null,null,"","",""]
[319,null,"G04",null,null,"",null,null,null,null,null,null,null,"","",""]
[320,null,"H04",null,null,"",null,null,null,null,null,null,null,"","",""]
[321,null,"A05",null,null,"",null,null,null,null,null,null,null,"","",""]
[322,null,"B05",null,null,{"$f":"IF($D$17<>\"\",$D$17,\"\")","v":""},null,null,null,null,null,null,null,{"$f":"IF($D$14<>\"\",$D$14,\"\")","v":""},{"$f":"IF($D$15<>\"\",$D$15,\"\")","v":""},{"$f":"IF($D$16<>\"\",$D$16,\"\")","v":""}]
[323,null,"C05",null,null,"",null,null,null,null,null,null,null,"","",""]
[324,null,"D05",null,null,"",null,null,null,null,null,null,null,"","",""]
[325,null,"E05",null,null,"",null,null,null,null,null,null,null,"","",""]
[326,null,"F05",null,null,"",null,null,null,null,null,null,null,"","",""]
[327,null,"G05",null,null,"",null,null,null,null,null,null,null,"","",""]
[328,null,"H05",null,null,"",null,null,null,null,null,null,null,"","",""]
[329,null,"A06",null,null,"",null,null,null,null,null,null,null,"","",""]
[330,null,"B06",null,null,"",null,null,null,null,null,null,null,"","",""]
[331,null,"C06",null,null,"",null,null,null,null,null,null,null,"","",""]
[332,null,"D06",null,null,"",null,null,null,null,null,null,null,"","",""]
[333,null,"E06",null,null,"",null,null,null,null,null,null,null,"","",""]
[334,null,"F06",null,null,"",null,null,null,null,null,null,null,"","",""]
[335,null,"G06",null,null,"",null,null,null,null,null,null,null,"","",""]
[336,null,"H06",null,null,"",null,null,null,null,null,null,null,"","",""]
[337,null,"A07",null,null,"",null,null,null,null,null,null,null,"","",""]
[338,null,"B07",null,null,"",null,null,null,null,null,null,null,"","",""]
[339,null,"C07",null,null,"",null,null,null,null,null,null,null,"","",""]
[340,null,"D07",null,null,"",null,null,null,null,null,null,null,"","",""]
[341,null,"E07",null,null,"",null,null,null,null,null,null,null,"","",""]
[342,null,"F07",null,null,"",null,null,null,null,null,null,null,"","",""]
[343,null,"G07",null,null,"",null,null,null,null,null,null,null,"","",""]
[344,null,"H07",null,null,"",null,null,null,null,null,null,null,"","",""]
[345,null,"A08",null,null,"",null,null,null,null,null,null,null,"","",""]
[346,null,"B08",null,null,"",null,null,null,null,null,null,null,"","",""]
[347,null,"C08",null,null,"",null,null,null,null,null,null,null,"","",""]
[348,null,"D08",null,null,"",null,null,null,null,null,null,null,"","",""]
[349,null,"E08",null,null,"",null,null,null,null,null,null,null,"","",""]
[350,null,"F08",null,null,"",null,null,null,null,null,null,null,"","",""]
[351,null,"G08",null,null,"",null,null,null,null,null,null,null,"","",""]
[352,null,"H08",null,null,"",null,null,null,null,null,null,null,"","",""]
[353,null,"A09",null,null,"",null,null,null,null,null,null,null,"","",""]
[354,null,"B09",null,null,"",null,null,null,null,null,null,null,"","",""]
[355,null,"C09",null,null,"",null,null,null,null,null,null,null,"","",""]
[356,null,"D09",null,null,"",null,null,null,null,null,null,null,"","",""]
[357,null,"E09",null,null,"",null,null,null,null,null,null,null,"","",""]
[358,null,"F09",null,null,"",null,null,null,null,null,null,null,"","",""]
[359,null,"G09",null,null,"",null,null,null,null,null,null,null,"","",""]
[360,null,"H09",null,null,"",null,null,null,null,null,null,null,"","",""]
[361,null,"A10",null,null,"",null,null,null,null,null,null,null,"","",""]
[362,null,"B10",null,null,"",null,null,null,null,null,null,null,"","",""]
[363,null,"C10",null,null,"",null,null,null,null,null,null,null,"","",""]
[364,null,"D10",null,null,"",null,null,null,null,null,null,null,"","",""]
[365,null,"E10",null,null,"",null,null,null,null,null,null,null,"","",""]
[366,null,"F10",null,null,"",null,null,null,null,null,null,null,"","",""]
[367,null,"G10",null,null,"",null,null,null,null,null,null,null,"","",""]
[368,null,"H10",null,null,"",null,null,null,null,null,null,null,"","",""]
[369,null,"A11",null,null,"",null,null,null,null,null,null,null,"","",""]
[370,null,"B11",null,null,"",null,null,null,null,null,null,null,"","",""]
[371,null,"C11",null,null,"",null,null,null,null,null,null,null,"","",""]
[372,null,"D11",null,null,"",null,null,null,null,null,null,null,"","",""]
[373,null,"E11",null,null,"",null,null,null,null,null,null,null,"","",""]
[374,null,"F11",null,null,"",null,null,null,null,null,null,null,"","",""]
[375,null,"G11",null,null,"",null,null,null,null,null,null,null,"","",""]
[376,null,"H11",null,null,"",null,null,null,null,null,null,null,"","",""]
[377,null,"A12",null,null,"",null,null,null,null,null,null,null,"","",""]
[378,null,"B12",null,null,"",null,null,null,null,null,null,null,"","",""]
[379,null,"C12",null,null,"",null,null,null,null,null,null,null,"","",""]
[380,null,"D12",null,null,"",null,null,null,null,null,null,null,"","",""]
[381,null,"E12",null,null,"",null,null,null,null,null,null,null,"","",""]
[382,null,"F12",null,null,"",null,null,null,null,null,null,null,"","",""]
[383,null,"G12",null,null,"",null,null,null,null,null,null,null,"","",""]
[384,null,"H12",null,null,"",null,null,null,null,null,null,null,"","",""]
[385,null,"A01",null,null,"",null,null,null,null,null,null,null,"","",""]
[386,null,"B01",null,null,{"$f":"IF($D$17<>\"\",$D$17,\"\")","v":""},null,null,null,null,null,null,null,{"$f":"IF($D$14<>\"\",$D$14,\"\")","v":""},{"$f":"IF($D$15<>\"\",$D$15,\"\")","v":""},{"$f":"IF($D$16<>\"\",$D$16,\"\")","v":""}]
[387,null,"C01",null,null,"",null,null,null,null,null,null,null,"","",""]
[388,null,"D01",null,null,"",null,null,null,null,null,null,null,"","",""]
[389,null,"E01",null,null,"",null,null,null,null,null,null,null,"","",""]
[390,null,"F01",null,null,"",null,null,null,null,null,null,null,"","",""]
[391,null,"G01",null,null,"",null,null,null,null,null,null,null,"","",""]
[392,null,"H01",null,null,"",null,null,null,null,null,null,null,"","",""]
[393,null,"A02",null,null,"",null,null,null,null,null,null,null,"","",""]
[394,null,"B02",null,null,"",null,null,null,null,null,null,null,"","",""]
[395,null,"C02",null,null,"",null,null,null,null,null,null,null,"","",""]
[396,null,"D02",null,null,"",null,null,null,null,null,null,null,"","",""]
[397,null,"E02",null,null,"",null,null,null,null,null,null,null,"","",""]
[398,null,"F02",null,null,"",null,null,null,null,null,null,null,"","",""]
[399,null,"G02",null,null,"",null,null,null,null,null,null,null,"","",""]
[400,null,"H02",null,null,"",null,null,null,null,null,null,null,"","",""]
[401,null,"A03",null,null,"",null,null,null,null,null,null,null,"","",""]
[402,null,"B03",null,null,"",null,null,null,null,null,null,null,"","",""]
[403,null,"C03",null,null,"",null,null,null,null,null,null,null,"","",""]
[404,null,"D03",null,null,"",null,null,null,null,null,null,null,"","",""]
[405,null,"E03",null,null,"",null,null,null,null,null,null,null,"","",""]
[406,null,"F03",null,null,"",null,null,null,null,null,null,null,"","",""]
[407,null,"G03",null,null,"",null,null,null,null,null,null,null,"","",""]
[408,null,"H03",null,null,"",null,null,null,null,null,null,null,"","",""]
[409,null,"A04",null,null,"",null,null,null,null,null,null,null,"","",""]
[410,null,"B04",null,null,"",null,null,null,null,null,null,null,"","",""]
[411,null,"C04",null,null,"",null,null,null,null,null,null,null,"","",""]
[412,null,"D04",null,null,"",null,null,null,null,null,null,null,"","",""]
[413,null,"E04",null,null,"",null,null,null,null,null,null,null,"","",""]
[414,null,"F04",null,null,"",null,null,null,null,null,null,null,"","",""]
[415,null,"G04",null,null,"",null,null,null,null,null,null,null,"","",""]
[416,null,"H04",null,null,"",null,null,null,null,null,null,null,"","",""]
[417,null,"A05",null,null,"",null,null,null,null,null,null,null,"","",""]
[418,null,"B05",null,null,"",null,null,null,null,null,null,null,"","",""]
[419,null,"C05",null,null,"",null,null,null,null,null,null,null,"","",""]
[420,null,"D05",null,null,"",null,null,null,null,null,null,null,"","",""]
[421,null,"E05",null,null,"",null,null,null,null,null,null,null,"","",""]
[422,null,"F05",null,null,"",null,null,null,null,null,null,null,"","",""]
[423,null,"G05",null,null,"",null,null,null,null,null,null,null,"","",""]
[424,null,"H05",null,null,"",null,null,null,null,null,null,null,"","",""]
[425,null,"A06",null,null,"",null,null,null,null,null,null,null,"","",""]
[426,null,"B06",null,null,"",null,null,null,null,null,null,null,"","",""]
[427,null,"C06",null,null,"",null,null,null,null,null,null,null,"","",""]
[428,null,"D06",null,null,"",null,null,null,null,null,null,null,"","",""]
[429,null,"E06",null,null,"",null,null,null,null,null,null,null,"","",""]
[430,null,"F06",null,null,"",null,null,null,null,null,null,null,"","",""]
[431,null,"G06",null,null,"",null,null,null,null,null,null,null,"","",""]
[432,null,"H06",null,null,"",null,null,null,null,null,null,null,"","",""]
[433,null,"A07",null,null,"",null,null,null,null,null,null,null,"","",""]
[434,null,"B07",null,null,"",null,null,null,null,null,null,null,"","",""]
[435,null,"C07",null,null,"",null,null,null,null,null,null,null,"","",""]
[436,null,"D07",null,null,"",null,null,null,null,null,null,null,"","",""]
[437,null,"E07",null,null,"",null,null,null,null,null,null,null,"","",""]
[438,null,"F07",null,null,"",null,null,null,null,null,null,null,"","",""]
[439,null,"G07",null,null,"",null,null,null,null,null,null,null,"","",""]
[440,null,"H07",null,null,"",null,null,null,null,null,null,null,"","",""]
[441,null,"A08",null,null,"",null,null,null,null,null,null,null,"","",""]
[442,null,"B08",null,null,"",null,null,null,null,null,null,null,"","",""]
[443,null,"C08",null,null,"",null,null,null,null,null,null,null,"","",""]
[444,null,"D08",null,null,"",null,null,null,null,null,null,null,"","",""]
[445,null,"E08",null,null,"",null,null,null,null,null,null,null,"","",""]
[446,null,"F08",null,null,"",null,null,null,null,null,null,null,"","",""]
[447,null,"G08",null,null,"",null,null,null,null,null,null,null,"","",""]
[448,null,"H08",null,null,"",null,null,null,null,null,null,null,"","",""]
[449,null,"A09",null,null,"",null,null,null,null,null,null,null,"","",""]
[450,null,"B09",null,null,{"$f":"IF($D$17<>\"\",$D$17,\"\")","v":""},null,null,null,null,null,null,null,{"$f":"IF($D$14<>\"\",$D$14,\"\")","v":""},{"$f":"IF($D$15<>\"\",$D$15,\"\")","v":""},{"$f":"IF($D$16<>\"\",$D$16,\"\")","v":""}]
[451,null,"C09",null,null,"",null,null,null,null,null,null,null,"","",""]
[452,null,"D09",null,null,"",null,null,null,null,null,null,null,"","",""]
[453,null,"E09",null,null,"",null,null,null,null,null,null,null,"","",""]
[454,null,"F09",null,null,"",null,null,null,null,null,null,null,"","",""]
[455,null,"G09",null,null,"",null,null,null,null,null,null,null,"","",""]
[456,null,"H09",null,null,"",null,null,null,null,null,null,null,"","",""]
[457,null,"A10",null,null,"",null,null,null,null,null,null,null,"","",""]
[458,null,"B10",null,null,"",null,null,null,null,null,null,null,"","",""]
[459,null,"C10",null,null,"",null,null,null,null,null,null,null,"","",""]
[460,null,"D10",null,null,"",null,null,null,null,null,null,null,"","",""]
[461,null,"E10",null,null,"",null,null,null,null,null,null,null,"","",""]
[462,null,"F10",null,null,"",null,null,null,null,null,null,null,"","",""]
[463,null,"G10",null,null,"",null,null,null,null,null,null,null,"","",""]
[464,null,"H10",null,null,"",null,null,null,null,null,null,null,"","",""]
[465,null,"A11",null,null,"",null,null,null,null,null,null,null,"","",""]
[466,null,"B11",null,null,"",null,null,null,null,null,null,null,"","",""]
[467,null,"C11",null,null,"",null,null,null,null,null,null,null,"","",""]
[468,null,"D11",null,null,"",null,null,null,null,null,null,null,"","",""]
[469,null,"E11",null,null,"",null,null,null,null,null,null,null,"","",""]
[470,null,"F11",null,null,"",null,null,null,null,null,null,null,"","",""]
[471,null,"G11",null,null,"",null,null,null,null,null,null,null,"","",""]
[472,null,"H11",null,null,"",null,null,null,null,null,null,null,"","",""]
[473,null,"A12",null,null,"",null,null,null,null,null,null,null,"","",""]
[474,null,"B12",null,null,"",null,null,null,null,null,null,null,"","",""]
[475,null,"C12",null,null,"",null,null,null,null,null,null,null,"","",""]
[476,null,"D12",null,null,"",null,null,null,null,null,null,null,"","",""]
[477,null,"E12",null,null,"",null,null,null,null,null,null,null,"","",""]
[478,null,"F12",null,null,"",null,null,null,null,null,null,null,"","",""]
[479,null,"G12",null,null,"",null,null,null,null,null,null,null,"","",""]
[480,null,"H12",null,null,"",null,null,null,null,null,null,null,"","",""]
[481,null,"A01",null,null,"",null,null,null,null,null,null,null,"","",""]
[482,null,"B01",null,null,"",null,null,null,null,null,null,null,"","",""]
[483,null,"C01",null,null,"",null,null,null,null,null,null,null,"","",""]
[484,null,"D01",null,null,"",null,null,null,null,null,null,null,"","",""]
[485,null,"E01",null,null,"",null,null,null,null,null,null,null,"","",""]
[486,null,"F01",null,null,"",null,null,null,null,null,null,null,"","",""]
[487,null,"G01",null,null,"",null,null,null,null,null,null,null,"","",""]
[488,null,"H01",null,null,"",null,null,null,null,null,null,null,"","",""]
[489,null,"A02",null,null,"",null,null,null,null,null,null,null,"","",""]
[490,null,"B02",null,null,"",null,null,null,null,null,null,null,"","",""]
[491,null,"C02",null,null,"",null,null,null,null,null,null,null,"","",""]
[492,null,"D02",null,null,"",null,null,null,null,null,null,null,"","",""]
[493,null,"E02",null,null,"",null,null,null,null,null,null,null,"","",""]
[494,null,"F02",null,null,"",null,null,null,null,null,null,null,"","",""]
[495,null,"G02",null,null,"",null,null,null,null,null,null,null,"","",""]
[496,null,"H02",null,null,"",null,null,null,null,null,null,null,"","",""]
[497,null,"A03",null,null,"",null,null,null,null,null,null,null,"","",""]
[498,null,"B03",null,null,"",null,null,null,null,null,null,null,"","",""]
[499,null,"C03",null,null,"",null,null,null,null,null,null,null,"","",""]
[500,null,"D03",null,null,"",null,null,null,null,null,null,null,"","",""]
[501,null,"E03",null,null,"",null,null,null,null,null,null,null,"","",""]
[502,null,"F03",null,null,"",null,null,null,null,null,null,null,"","",""]
[503,null,"G03",null,null,"",null,null,null,null,null,null,null,"","",""]
[504,null,"H03",null,null,"",null,null,null,null,null,null,null,"","",""]
[505,null,"A04",null,null,"",null,null,null,null,null,null,null,"","",""]
[506,null,"B04",null,null,"",null,null,null,null,null,null,null,"","",""]
[507,null,"C04",null,null,"",null,null,null,null,null,null,null,"","",""]
[508,null,"D04",null,null,"",null,null,null,null,null,null,null,"","",""]
[509,null,"E04",null,null,"",null,null,null,null,null,null,null,"","",""]
[510,null,"F04",null,null,"",null,null,null,null,null,null,null,"","",""]
[511,null,"G04",null,null,"",null,null,null,null,null,null,null,"","",""]
[512,null,"H04",null,null,"",null,null,null,null,null,null,null,"","",""]
[513,null,"A05",null,null,"",null,null,null,null,null,null,null,"","",""]
[514,null,"B05",null,null,{"$f":"IF($D$17<>\"\",$D$17,\"\")","v":""},null,null,null,null,null,null,null,{"$f":"IF($D$14<>\"\",$D$14,\"\")","v":""},{"$f":"IF($D$15<>\"\",$D$15,\"\")","v":""},{"$f":"IF($D$16<>\"\",$D$16,\"\")","v":""}]
[515,null,"C05",null,null,"",null,null,null,null,null,null,null,"","",""]
[516,null,"D05",null,null,"",null,null,null,null,null,null,null,"","",""]
[517,null,"E05",null,null,"",null,null,null,null,null,null,null,"","",""]
[518,null,"F05",null,null,"",null,null,null,null,null,null,null,"","",""]
[519,null,"G05",null,null,"",null,null,null,null,null,null,null,"","",""]
[520,null,"H05",null,null,"",null,null,null,null,null,null,null,"","",""]
[521,null,"A06",null,null,"",null,null,null,null,null,null,null,"","",""]
[522,null,"B06",null,null,"",null,null,null,null,null,null,null,"","",""]
[523,null,"C06",null,null,"",null,null,null,null,null,null,null,"","",""]
[524,null,"D06",null,null,"",null,null,null,null,null,null,null,"","",""]
[525,null,"E06",null,null,"",null,null,null,null,null,null,null,"","",""]
[526,null,"F06",null,null,"",null,null,null,null,null,null,null,"","",""]
[527,null,"G06",null,null,"",null,null,null,null,null,null,null,"","",""]
[528,null,"H06",null,null,"",null,null,null,null,null,null,null,"","",""]
[529,null,"A07",null,null,"",null,null,null,null,null,null,null,"","",""]
[530,null,"B07",null,null,"",null,null,null,null,null,null,null,"","",""]
[531,null,"C07",null,null,"",null,null,null,null,null,null,null,"","",""]
[532,null,"D07",null,null,"",null,null,null,null,null,null,null,"","",""]
[533,null,"E07",null,null,"",null,null,null,null,null,null,null,"","",""]
[534,null,"F07",null,null,"",null,null,null,null,null,null,null,"","",""]
[535,null,"G07",null,null,"",null,null,null,null,null,null,null,"","",""]
[536,null,"H07",null,null,"",null,null,null,null,null,null,null,"","",""]
[537,null,"A08",null,null,"",null,null,null,null,null,null,null,"","",""]
[538,null,"B08",null,null,"",null,null,null,null,null,null,null,"","",""]
[539,null,"C08",null,null,"",null,null,null,null,null,null,null,"","",""]
[540,null,"D08",null,null,"",null,null,null,null,null,null,null,"","",""]
[541,null,"E08",null,null,"",null,null,null,null,null,null,null,"","",""]
[542,null,"F08",null,null,"",null,null,null,null,null,null,null,"","",""]
[543,null,"G08",null,null,"",null,null,null,null,null,null,null,"","",""]
[544,null,"H08",null,null,"",null,null,null,null,null,null,null,"","",""]
[545,null,"A09",null,null,"",null,null,null,null,null,null,null,"","",""]
[546,null,"B09",null,null,"",null,null,null,null,null,null,null,"","",""]
[547,null,"C09",null,null,"",null,null,null,null,null,null,null,"","",""]
[548,null,"D09",null,null,"",null,null,null,null,null,null,null,"","",""]
[549,null,"E09",null,null,"",null,null,null,null,null,null,null,"","",""]
[550,null,"F09",null,null,"",null,null,null,null,null,null,null,"","",""]
[551,null,"G09",null,null,"",null,null,null,null,null,null,null,"","",""]
[552,null,"H09",null,null,"",null,null,null,null,null,null,null,"","",""]
[553,null,"A10",null,null,"",null,null,null,null,null,null,null,"","",""]
[554,null,"B10",null,null,"",null,null,null,null,null,null,null,"","",""]
[555,null,"C10",null,null,"",null,null,null,null,null,null,null,"","",""]
[556,null,"D10",null,null,"",null,null,null,null,null,null,null,"","",""]
[557,null,"E10",null,null,"",null,null,null,null,null,null,null,"","",""]
[558,null,"F10",null,null,"",null,null,null,null,null,null,null,"","",""]
[559,null,"G10",null,null,"",null,null,null,null,null,null,null,"","",""]
[560,null,"H10",null,null,"",null,null,null,null,null,null,null,"","",""]
[561,null,"A11",null,null,"",null,null,null,null,null,null,null,"","",""]
[562,null,"B11",null,null,"",null,null,null,null,null,null,null,"","",""]
[563,null,"C11",null,null,"",null,null,null,null,null,null,null,"","",""]
[564,null,"D11",null,null,"",null,null,null,null,null,null,null,"","",""]
[565,null,"E11",null,null,"",null,null,null,null,null,null,null,"","",""]
[566,null,"F11",null,null,"",null,null,null,null,null,null,null,"","",""]
[567,null,"G11",null,null,"",null,null,null,null,null,null,null,"","",""]
[568,null,"H11",null,null,"",null,null,null,null,null,null,null,"","",""]
[569,null,"A12",null,null,"",null,null,null,null,null,null,null,"","",""]
[570,null,"B12",null,null,"",null,null,null,null,null,null,null,"","",""]
[571,null,"C12",null,null,"",null,null,null,null,null,null,null,"","",""]
[572,null,"D12",null,null,"",null,null,null,null,null,null,null,"","",""]
[573,null,"E12",null,null,"",null,null,null,null,null,null,null,"","",""]
[574,null,"F12",null,null,"",null,null,null,null,null,null,null,"","",""]
[575,null,"G12",null,null,"",null,null,null,null,null,null,null,"","",""]
[576,null,"H12",null,null,"",null,null,null,null,null,null,null,"","",""]
[577,null,"A01",null,null,"",null,null,null,null,null,null,null,"","",""]
[578,null,"B01",null,null,{"$f":"IF($D$17<>\"\",$D$17,\"\")","v":""},null,null,null,null,null,null,null,{"$f":"IF($D$14<>\"\",$D$14,\"\")","v":""},{"$f":"IF($D$15<>\"\",$D$15,\"\")","v":""},{"$f":"IF($D$16<>\"\",$D$16,\"\")","v":""}]
[579,null,"C01",null,null,"",null,null,null,null,null,null,null,"","",""]
[580,null,"D01",null,null,"",null,null,null,null,null,null,null,"","",""]
[581,null,"E01",null,null,"",null,null,null,null,null,null,null,"","",""]
[582,null,"F01",null,null,"",null,null,null,null,null,null,null,"","",""]
[583,null,"G01",null,null,"",null,null,null,null,null,null,null,"","",""]
[584,null,"H01",null,null,"",null,null,null,null,null,null,null,"","",""]
[585,null,"A02",null,null,"",null,null,null,null,null,null,null,"","",""]
[586,null,"B02",null,null,"",null,null,null,null,null,null,null,"","",""]
[587,null,"C02",null,null,"",null,null,null,null,null,null,null,"","",""]
[588,null,"D02",null,null,"",null,null,null,null,null,null,null,"","",""]
[589,null,"E02",null,null,"",null,null,null,null,null,null,null,"","",""]
[590,null,"F02",null,null,"",null,null,null,null,null,null,null,"","",""]
[591,null,"G02",null,null,"",null,null,null,null,null,null,null,"","",""]
[592,null,"H02",null,null,"",null,null,null,null,null,null,null,"","",""]
[593,null,"A03",null,null,"",null,null,null,null,null,null,null,"","",""]
[594,null,"B03",null,null,"",null,null,null,null,null,null,null,"","",""]
[595,null,"C03",null,null,"",null,null,null,null,null,null,null,"","",""]
[596,null,"D03",null,null,"",null,null,null,null,null,null,null,"","",""]
[597,null,"E03",null,null,"",null,null,null,null,null,null,null,"","",""]
[598,null,"F03",null,null,"",null,null,null,null,null,null,null,"","",""]
[599,null,"G03",null,null,"",null,null,null,null,null,null,null,"","",""]
[600,null,"H03",null,null,"",null,null,null,null,null,null,null,"","",""]
[601,null,"A04",null,null,"",null,null,null,null,null,null,null,"","",""]
[602,null,"B04",null,null,"",null,null,null,null,null,null,null,"","",""]
[603,null,"C04",null,null,"",null,null,null,null,null,null,null,"","",""]
[604,null,"D04",null,null,"",null,null,null,null,null,null,null,"","",""]
[605,null,"E04",null,null,"",null,null,null,null,null,null,null,"","",""]
[606,null,"F04",null,null,"",null,null,null,null,null,null,null,"","",""]
[607,null,"G04",null,null,"",null,null,null,null,null,null,null,"","",""]
[608,null,"H04",null,null,"",null,null,null,null,null,null,null,"","",""]
[609,null,"A05",null,null,"",null,null,null,null,null,null,null,"","",""]
[610,null,"B05",null,null,"",null,null,null,null,null,null,null,"","",""]
[611,null,"C05",null,null,"",null,null,null,null,null,null,null,"","",""]
[612,null,"D05",null,null,"",null,null,null,null,null,null,null,"","",""]
[613,null,"E05",null,null,"",null,null,null,null,null,null,null,"","",""]
[614,null,"F05",null,null,"",null,null,null,null,null,null,null,"","",""]
[615,null,"G05",null,null,"",null,null,null,null,null,null,null,"","",""]
[616,null,"H05",null,null,"",null,null,null,null,null,null,null,"","",""]
[617,null,"A06",null,null,"",null,null,null,null,null,null,null,"","",""]
[618,null,"B06",null,null,"",null,null,null,null,null,null,null,"","",""]
[619,null,"C06",null,null,"",null,null,null,null,null,null,null,"","",""]
[620,null,"D06",null,null,"",null,null,null,null,null,null,null,"","",""]
[621,null,"E06",null,null,"",null,null,null,null,null,null,null,"","",""]
[622,null,"F06",null,null,"",null,null,null,null,null,null,null,"","",""]
[623,null,"G06",null,null,"",null,null,null,null,null,null,null,"","",""]
[624,null,"H06",null,null,"",null,null,null,null,null,null,null,"","",""]
[625,null,"A07",null,null,"",null,null,null,null,null,null,null,"","",""]
[626,null,"B07",null,null,"",null,null,null,null,null,null,null,"","",""]
[627,null,"C07",null,null,"",null,null,null,null,null,null,null,"","",""]
[628,null,"D07",null,null,"",null,null,null,null,null,null,null,"","",""]
[629,null,"E07",null,null,"",null,null,null,null,null,null,null,"","",""]
[630,null,"F07",null,null,"",null,null,null,null,null,null,null,"","",""]
[631,null,"G07",null,null,"",null,null,null,null,null,null,null,"","",""]
[632,null,"H07",null,null,"",null,null,null,null,null,null,null,"","",""]
[633,null,"A08",null,null,"",null,null,null,null,null,null,null,"","",""]
[634,null,"B08",null,null,"",null,null,null,null,null,null,null,"","",""]
[635,null,"C08",null,null,"",null,null,null,null,null,null,null,"","",""]
[636,null,"D08",null,null,"",null,null,null,null,null,null,null,"","",""]
[637,null,"E08",null,null,"",null,null,null,null,null,null,null,"","",""]
[638,null,"F08",null,null,"",null,null,null,null,null,null,null,"","",""]
[639,null,"G08",null,null,"",null,null,null,null,null,null,null,"","",""]
[640,null,"H08",null,null,"",null,null,null,null,null,null,null,"","",""]
[641,null,"A09",null,null,"",null,null,null,null,null,null,null,"","",""]
[642,null,"B09",null,null,{"$f":"IF($D$17<>\"\",$D$17,\"\")","v":""},null,null,null,null,null,null,null,{"$f":"IF($D$14<>\"\",$D$14,\"\")","v":""},{"$f":"IF($D$15<>\"\",$D$15,\"\")","v":""},{"$f":"IF($D$16<>\"\",$D$16,\"\")","v":""}]
[643,null,"C09",null,null,"",null,null,null,null,null,null,null,"","",""]
[644,null,"D09",null,null,"",null,null,null,null,null,null,null,"","",""]
[645,null,"E09",null,null,"",null,null,null,null,null,null,null,"","",""]
[646,null,"F09",null,null,"",null,null,null,null,null,null,null,"","",""]
[647,null,"G09",null,null,"",null,null,null,null,null,null,null,"","",""]
[648,null,"H09",null,null,"",null,null,null,null,null,null,null,"","",""]
[649,null,"A10",null,null,"",null,null,null,null,null,null,null,"","",""]
[650,null,"B10",null,null,"",null,null,null,null,null,null,null,"","",""]
[651,null,"C10",null,null,"",null,null,null,null,null,null,null,"","",""]
[652,null,"D10",null,null,"",null,null,null,null,null,null,null,"","",""]
[653,null,"E10",null,null,"",null,null,null,null,null,null,null,"","",""]
[654,null,"F10",null,null,"",null,null,null,null,null,null,null,"","",""]
[655,null,"G10",null,null,"",null,null,null,null,null,null,null,"","",""]
[656,null,"H10",null,null,"",null,null,null,null,null,null,null,"","",""]
[657,null,"A11",null,null,"",null,null,null,null,null,null,null,"","",""]
[658,null,"B11",null,null,"",null,null,null,null,null,null,null,"","",""]
[659,null,"C11",null,null,"",null,null,null,null,null,null,null,"","",""]
[660,null,"D11",null,null,"",null,null,null,null,null,null,null,"","",""]
[661,null,"E11",null,null,"",null,null,null,null,null,null,null,"","",""]
[662,null,"F11",null,null,"",null,null,null,null,null,null,null,"","",""]
[663,null,"G11",null,null,"",null,null,null,null,null,null,null,"","",""]
[664,null,"H11",null,null,"",null,null,null,null,null,null,null,"","",""]
[665,null,"A12",null,null,"",null,null,null,null,null,null,null,"","",""]
[666,null,"B12",null,null,"",null,null,null,null,null,null,null,"","",""]
[667,null,"C12",null,null,"",null,null,null,null,null,null,null,"","",""]
[668,null,"D12",null,null,"",null,null,null,null,null,null,null,"","",""]
[669,null,"E12",null,null,"",null,null,null,null,null,null,null,"","",""]
[670,null,"F12",null,null,"",null,null,null,null,null,null,null,"","",""]
[671,null,"G12",null,null,"",null,null,null,null,null,null,null,"","",""]
[672,null,"H12",null,null,"",null,null,null,null,null,null,null,"","",""]
[673,null,"A01",null,null,"",null,null,null,null,null,null,null,"","",""]
[674,null,"B01",null,null,"",null,null,null,null,null,null,null,"","",""]
[675,null,"C01",null,null,"",null,null,null,null,null,null,null,"","",""]
[676,null,"D01",null,null,"",null,null,null,null,null,null,null,"","",""]
[677,null,"E01",null,null,"",null,null,null,null,null,null,null,"","",""]
[678,null,"F01",null,null,"",null,null,null,null,null,null,null,"","",""]
[679,null,"G01",null,null,"",null,null,null,null,null,null,null,"","",""]
[680,null,"H01",null,null,"",null,null,null,null,null,null,null,"","",""]
[681,null,"A02",null,null,"",null,null,null,null,null,null,null,"","",""]
[682,null,"B02",null,null,"",null,null,null,null,null,null,null,"","",""]
[683,null,"C02",null,null,"",null,null,null,null,null,null,null,"","",""]
[684,null,"D02",null,null,"",null,null,null,null,null,null,null,"","",""]
[685,null,"E02",null,null,"",null,null,null,null,null,null,null,"","",""]
[686,null,"F02",null,null,"",null,null,null,null,null,null,null,"","",""]
[687,null,"G02",null,null,"",null,null,null,null,null,null,null,"","",""]
[688,null,"H02",null,null,"",null,null,null,null,null,null,null,"","",""]
[689,null,"A03",null,null,"",null,null,null,null,null,null,null,"","",""]
[690,null,"B03",null,null,"",null,null,null,null,null,null,null,"","",""]
[691,null,"C03",null,null,"",null,null,null,null,null,null,null,"","",""]
[692,null,"D03",null,null,"",null,null,null,null,null,null,null,"","",""]
[693,null,"E03",null,null,"",null,null,null,null,null,null,null,"","",""]
[694,null,"F03",null,null,"",null,null,null,null,null,null,null,"","",""]
[695,null,"G03",null,null,"",null,null,null,null,null,null,null,"","",""]
[696,null,"H03",null,null,"",null,null,null,null,null,null,null,"","",""]
[697,null,"A04",null,null,"",null,null,null,null,null,null,null,"","",""]
[698,null,"B04",null,null,"",null,null,null,null,null,null,null,"","",""]
[699,null,"C04",null,null,"",null,null,null,null,null,null,null,"","",""]
[700,null,"D04",null,null,"",null,null,null,null,null,null,null,"","",""]
[701,null,"E04",null,null,"",null,null,null,null,null,null,null,"","",""]
[702,null,"F04",null,null,"",null,null,null,null,null,null,null,"","",""]
[703,null,"G04",null,null,"",null,null,null,null,null,null,null,"","",""]
[704,null,"H04",null,null,"",null,null,null,null,null,null,null,"","",""]
[705,null,"A05",null,null,"",null,null,null,null,null,null,null,"","",""]
[706,null,"B05",null,null,{"$f":"IF($D$17<>\"\",$D$17,\"\")","v":""},null,null,null,null,null,null,null,{"$f":"IF($D$14<>\"\",$D$14,\"\")","v":""},{"$f":"IF($D$15<>\"\",$D$15,\"\")","v":""},{"$f":"IF($D$16<>\"\",$D$16,\"\")","v":""}]
[707,null,"C05",null,null,"",null,null,null,null,null,null,null,"","",""]
[708,null,"D05",null,null,"",null,null,null,null,null,null,null,"","",""]
[709,null,"E05",null,null,"",null,null,null,null,null,null,null,"","",""]
[710,null,"F05",null,null,"",null,null,null,null,null,null,null,"","",""]
[711,null,"G05",null,null,"",null,null,null,null,null,null,null,"","",""]
[712,null,"H05",null,null,"",null,null,null,null,null,null,null,"","",""]
[713,null,"A06",null,null,"",null,null,null,null,null,null,null,"","",""]
[714,null,"B06",null,null,"",null,null,null,null,null,null,null,"","",""]
[715,null,"C06",null,null,"",null,null,null,null,null,null,null,"","",""]
[716,null,"D06",null,null,"",null,null,null,null,null,null,null,"","",""]
[717,null,"E06",null,null,"",null,null,null,null,null,null,null,"","",""]
[718,null,"F06",null,null,"",null,null,null,null,null,null,null,"","",""]
[719,null,"G06",null,null,"",null,null,null,null,null,null,null,"","",""]
[720,null,"H06",null,null,"",null,null,null,null,null,null,null,"","",""]
[721,null,"A07",null,null,"",null,null,null,null,null,null,null,"","",""]
[722,null,"B07",null,null,"",null,null,null,null,null,null,null,"","",""]
[723,null,"C07",null,null,"",null,null,null,null,null,null,null,"","",""]
[724,null,"D07",null,null,"",null,null,null,null,null,null,null,"","",""]
[725,null,"E07",null,null,"",null,null,null,null,null,null,null,"","",""]
[726,null,"F07",null,null,"",null,null,null,null,null,null,null,"","",""]
[727,null,"G07",null,null,"",null,null,null,null,null,null,null,"","",""]
[728,null,"H07",null,null,"",null,null,null,null,null,null,null,"","",""]
[729,null,"A08",null,null,"",null,null,null,null,null,null,null,"","",""]
[730,null,"B08",null,null,"",null,null,null,null,null,null,null,"","",""]
[731,null,"C08",null,null,"",null,null,null,null,null,null,null,"","",""]
[732,null,"D08",null,null,"",null,null,null,null,null,null,null,"","",""]
[733,null,"E08",null,null,"",null,null,null,null,null,null,null,"","",""]
[734,null,"F08",null,null,"",null,null,null,null,null,null,null,"","",""]
[735,null,"G08",null,null,"",null,null,null,null,null,null,null,"","",""]
[736,null,"H08",null,null,"",null,null,null,null,null,null,null,"","",""]
[737,null,"A09",null,null,"",null,null,null,null,null,null,null,"","",""]
[738,null,"B09",null,null,"",null,null,null,null,null,null,null,"","",""]
[739,null,"C09",null,null,"",null,null,null,null,null,null,null,"","",""]
[740,null,"D09",null,null,"",null,null,null,null,null,null,null,"","",""]
[741,null,"E09",null,null,"",null,null,null,null,null,null,null,"","",""]
[742,null,"F09",null,null,"",null,null,null,null,null,null,null,"","",""]
[743,null,"G09",null,null,"",null,null,null,null,null,null,null,"","",""]
[744,null,"H09",null,null,"",null,null,null,null,null,null,null,"","",""]
[745,null,"A10",null,null,"",null,null,null,null,null,null,null,"","",""]
[746,null,"B10",null,null,"",null,null,null,null,null,null,null,"","",""]
[747,null,"C10",null,null,"",null,null,null,null,null,null,null,"","",""]
[748,null,"D10",null,null,"",null,null,null,null,null,null,null,"","",""]
[749,null,"E10",null,null,"",null,null,null,null,null,null,null,"","",""]
[750,null,"F10",null,null,"",null,null,null,null,null,null,null,"","",""]
[751,null,"G10",null,null,"",null,null,null,null,null,null,null,"","",""]
[752,null,"H10",null,null,"",null,null,null,null,null,null,null,"","",""]
[753,null,"A11",null,null,"",null,null,null,null,null,null,null,"","",""]
[754,null,"B11",null,null,"",null,null,null,null,null,null,null,"","",""]
[755,null,"C11",null,null,"",null,null,null,null,null,null,null,"","",""]
[756,null,"D11",null,null,"",null,null,null,null,null,null,null,"","",""]
[757,null,"E11",null,null,"",null,null,null,null,null,null,null,"","",""]
[758,null,"F11",null,null,"",null,null,null,null,null,null,null,"","",""]
[759,null,"G11",null,null,"",null,null,null,null,null,null,null,"","",""]
[760,null,"H11",null,null,"",null,null,null,null,null,null,null,"","",""]
[761,null,"A12",null,null,"",null,null,null,null,null,null,null,"","",""]
[762,null,"B12",null,null,"",null,null,null,null,null,null,null,"","",""]
[763,null,"C12",null,null,"",null,null,null,null,null,null,null,"","",""]
[764,null,"D12",null,null,"",null,null,null,null,null,null,null,"","",""]
[765,null,"E12",null,null,"",null,null,null,null,null,null,null,"","",""]
[766,null,"F12",null,null,"",null,null,null,null,null,null,null,"","",""]
[767,null,"G12",null,null,"",null,null,null,null,null,null,null,"","",""]
[768,null,"H12",null,null,"",null,null,null,null,null,null,null,"","",""]
[769,null,"A01",null,null,"",null,null,null,null,null,null,null,"","",""]
[770,null,"B01",null,null,{"$f":"IF($D$17<>\"\",$D$17,\"\")","v":""},null,null,null,null,null,null,null,{"$f":"IF($D$14<>\"\",$D$14,\"\")","v":""},{"$f":"IF($D$15<>\"\",$D$15,\"\")","v":""},{"$f":"IF($D$16<>\"\",$D$16,\"\")","v":""}]
[771,null,"C01",null,null,"",null,null,null,null,null,null,null,"","",""]
[772,null,"D01",null,null,"",null,null,null,null,null,null,null,"","",""]
[773,null,"E01",null,null,"",null,null,null,null,null,null,null,"","",""]
[774,null,"F01",null,null,"",null,null,null,null,null,null,null,"","",""]
[775,null,"G01",null,null,"",null,null,null,null,null,null,null,"","",""]
[776,null,"H01",null,null,"",null,null,null,null,null,null,null,"","",""]
[777,null,"A02",null,null,"",null,null,null,null,null,null,null,"","",""]
[778,null,"B02",null,null,"",null,null,null,null,null,null,null,"","",""]
[779,null,"C02",null,null,"",null,null,null,null,null,null,null,"","",""]
[780,null,"D02",null,null,"",null,null,null,null,null,null,null,"","",""]
[781,null,"E02",null,null,"",null,null,null,null,null,null,null,"","",""]
[782,null,"F02",null,null,"",null,null,null,null,null,null,null,"","",""]
[783,null,"G02",null,null,"",null,null,null,null,null,null,null,"","",""]
[784,null,"H02",null,null,"",null,null,null,null,null,null,null,"","",""]
[785,null,"A03",null,null,"",null,null,null,null,null,null,null,"","",""]
[786,null,"B03",null,null,"",null,null,null,null,null,null,null,"","",""]
[787,null,"C03",null,null,"",null,null,null,null,null,null,null,"","",""]
[788,null,"D03",null,null,"",null,null,null,null,null,null,null,"","",""]
[789,null,"E03",null,null,"",null,null,null,null,null,null,null,"","",""]
[790,null,"F03",null,null,"",null,null,null,null,null,null,null,"","",""]
[791,null,"G03",null,null,"",null,null,null,null,null,null,null,"","",""]
[792,null,"H03",null,null,"",null,null,null,null,null,null,null,"","",""]
[793,null,"A04",null,null,"",null,null,null,null,null,null,null,"","",""]
[794,null,"B04",null,null,"",null,null,null,null,null,null,null,"","",""]
[795,null,"C04",null,null,"",null,null,null,null,null,null,null,"","",""]
[796,null,"D04",null,null,"",null,null,null,null,null,null,null,"","",""]
[797,null,"E04",null,null,"",null,null,null,null,null,null,null,"","",""]
[798,null,"F04",null,null,"",null,null,null,null,null,null,null,"","",""]
[799,null,"G04",null,null,"",null,null,null,null,null,null,null,"","",""]
[800,null,"H04",null,null,"",null,null,null,null,null,null,null,"","",""]
[801,null,"A05",null,null,"",null,null,null,null,null,null,null,"","",""]
[802,null,"B05",null,null,"",null,null,null,null,null,null,null,"","",""]
[803,null,"C05",null,null,"",null,null,null,null,null,null,null,"","",""]
[804,null,"D05",null,null,"",null,null,null,null,null,null,null,"","",""]
[805,null,"E05",null,null,"",null,null,null,null,null,null,null,"","",""]
[806,null,"F05",null,null,"",null,null,null,null,null,null,null,"","",""]
[807,null,"G05",null,null,"",null,null,null,null,null,null,null,"","",""]
[808,null,"H05",null,null,"",null,null,null,null,null,null,null,"","",""]
[809,null,"A06",null,null,"",null,null,null,null,null,null,null,"","",""]
[810,null,"B06",null,null,"",null,null,null,null,null,null,null,"","",""]
[811,null,"C06",null,null,"",null,null,null,null,null,null,null,"","",""]
[812,null,"D06",null,null,"",null,null,null,null,null,null,null,"","",""]
[813,null,"E06",null,null,"",null,null,null,null,null,null,null,"","",""]
[814,null,"F06",null,null,"",null,null,null,null,null,null,null,"","",""]
[815,null,"G06",null,null,"",null,null,null,null,null,null,null,"","",""]
[816,null,"H06",null,null,"",null,null,null,null,null,null,null,"","",""]
[817,null,"A07",null,null,"",null,null,null,null,null,null,null,"","",""]
[818,null,"B07",null,null,"",null,null,null,null,null,null,null,"","",""]
[819,null,"C07",null,null,"",null,null,null,null,null,null,null,"","",""]
[820,null,"D07",null,null,"",null,null,null,null,null,null,null,"","",""]
[821,null,"E07",null,null,"",null,null,null,null,null,null,null,"","",""]
[822,null,"F07",null,null,"",null,null,null,null,null,null,null,"","",""]
[823,null,"G07",null,null,"",null,null,null,null,null,null,null,"","",""]
[824,null,"H07",null,null,"",null,null,null,null,null,null,null,"","",""]
[825,null,"A08",null,null,"",null,null,null,null,null,null,null,"","",""]
[826,null,"B08",null,null,"",null,null,null,null,null,null,null,"","",""]
[827,null,"C08",null,null,"",null,null,null,null,null,null,null,"","",""]
[828,null,"D08",null,null,"",null,null,null,null,null,null,null,"","",""]
[829,null,"E08",null,null,"",null,null,null,null,null,null,null,"","",""]
[830,null,"F08",null,null,"",null,null,null,null,null,null,null,"","",""]
[831,null,"G08",null,null,"",null,null,null,null,null,null,null,"","",""]
[832,null,"H08",null,null,"",null,null,null,null,null,null,null,"","",""]
[833,null,"A09",null,null,"",null,null,null,null,null,null,null,"","",""]
[834,null,"B09",null,null,{"$f":"IF($D$17<>\"\",$D$17,\"\")","v":""},null,null,null,null,null,null,null,{"$f":"IF($D$14<>\"\",$D$14,\"\")","v":""},{"$f":"IF($D$15<>\"\",$D$15,\"\")","v":""},{"$f":"IF($D$16<>\"\",$D$16,\"\")","v":""}]
[835,null,"C09",null,null,"",null,null,null,null,null,null,null,"","",""]
[836,null,"D09",null,null,"",null,null,null,null,null,null,null,"","",""]
[837,null,"E09",null,null,"",null,null,null,null,null,null,null,"","",""]
[838,null,"F09",null,null,"",null,null,null,null,null,null,null,"","",""]
[839,null,"G09",null,null,"",null,null,null,null,null,null,null,"","",""]
[840,null,"H09",null,null,"",null,null,null,null,null,null,null,"","",""]
[841,null,"A10",null,null,"",null,null,null,null,null,null,null,"","",""]
[842,null,"B10",null,null,"",null,null,null,null,null,null,null,"","",""]
[843,null,"C10",null,null,"",null,null,null,null,null,null,null,"","",""]
[844,null,"D10",null,null,"",null,null,null,null,null,null,null,"","",""]
[845,null,"E10",null,null,"",null,null,null,null,null,null,null,"","",""]
[846,null,"F10",null,null,"",null,null,null,null,null,null,null,"","",""]
[847,null,"G10",null,null,"",null,null,null,null,null,null,null,"","",""]
[848,null,"H10",null,null,"",null,null,null,null,null,null,null,"","",""]
[849,null,"A11",null,null,"",null,null,null,null,null,null,null,"","",""]
[850,null,"B11",null,null,"",null,null,null,null,null,null,null,"","",""]
[851,null,"C11",null,null,"",null,null,null,null,null,null,null,"","",""]
[852,null,"D11",null,null,"",null,null,null,null,null,null,null,"","",""]
[853,null,"E11",null,null,"",null,null,null,null,null,null,null,"","",""]
[854,null,"F11",null,null,"",null,null,null,null,null,null,null,"","",""]
[855,null,"G11",null,null,"",null,null,null,null,null,null,null,"","",""]
[856,null,"H11",null,null,"",null,null,null,null,null,null,null,"","",""]
[857,null,"A12",null,null,"",null,null,null,null,null,null,null,"","",""]
[858,null,"B12",null,null,"",null,null,null,null,null,null,null,"","",""]
[859,null,"C12",null,null,"",null,null,null,null,null,null,null,"","",""]
[860,null,"D12",null,null,"",null,null,null,null,null,null,null,"","",""]
[861,null,"E12",null,null,"",null,null,null,null,null,null,null,"","",""]
[862,null,"F12",null,null,"",null,null,null,null,null,null,null,"","",""]
[863,null,"G12",null,null,"",null,null,null,null,null,null,null,"","",""]
[864,null,"H12",null,null,"",null,null,null,null,null,null,null,"","",""]
[865,null,"A01",null,null,"",null,null,null,null,null,null,null,"","",""]
[866,null,"B01",null,null,"",null,null,null,null,null,null,null,"","",""]
[867,null,"C01",null,null,"",null,null,null,null,null,null,null,"","",""]
[868,null,"D01",null,null,"",null,null,null,null,null,null,null,"","",""]
[869,null,"E01",null,null,"",null,null,null,null,null,null,null,"","",""]
[870,null,"F01",null,null,"",null,null,null,null,null,null,null,"","",""]
[871,null,"G01",null,null,"",null,null,null,null,null,null,null,"","",""]
[872,null,"H01",null,null,"",null,null,null,null,null,null,null,"","",""]
[873,null,"A02",null,null,"",null,null,null,null,null,null,null,"","",""]
[874,null,"B02",null,null,"",null,null,null,null,null,null,null,"","",""]
[875,null,"C02",null,null,"",null,null,null,null,null,null,null,"","",""]
[876,null,"D02",null,null,"",null,null,null,null,null,null,null,"","",""]
[877,null,"E02",null,null,"",null,null,null,null,null,null,null,"","",""]
[878,null,"F02",null,null,"",null,null,null,null,null,null,null,"","",""]
[879,null,"G02",null,null,"",null,null,null,null,null,null,null,"","",""]
[880,null,"H02",null,null,"",null,null,null,null,null,null,null,"","",""]
[881,null,"A03",null,null,"",null,null,null,null,null,null,null,"","",""]
[882,null,"B03",null,null,"",null,null,null,null,null,null,null,"","",""]
[883,null,"C03",null,null,"",null,null,null,null,null,null,null,"","",""]
[884,null,"D03",null,null,"",null,null,null,null,null,null,null,"","",""]
[885,null,"E03",null,null,"",null,null,null,null,null,null,null,"","",""]
[886,null,"F03",null,null,"",null,null,null,null,null,null,null,"","",""]
[887,null,"G03",null,null,"",null,null,null,null,null,null,null,"","",""]
[888,null,"H03",null,null,"",null,null,null,null,null,null,null,"","",""]
[889,null,"A04",null,null,"",null,null,null,null,null,null,null,"","",""]
[890,null,"B04",null,null,"",null,null,null,null,null,null,null,"","",""]
[891,null,"C04",null,null,"",null,null,null,null,null,null,null,"","",""]
[892,null,"D04",null,null,"",null,null,null,null,null,null,null,"","",""]
[893,null,"E04",null,null,"",null,null,null,null,null,null,null,"","",""]
[894,null,"F04",null,null,"",null,null,null,null,null,null,null,"","",""]
[895,null,"G04",null,null,"",null,null,null,null,null,null,null,"","",""]
[896,null,"H04",null,null,"",null,null,null,null,null,null,null,"","",""]
[897,null,"A05",null,null,"",null,null,null,null,null,null,null,"","",""]
[898,null,"B05",null,null,{"$f":"IF($D$17<>\"\",$D$17,\"\")","v":""},null,null,null,null,null,null,null,{"$f":"IF($D$14<>\"\",$D$14,\"\")","v":""},{"$f":"IF($D$15<>\"\",$D$15,\"\")","v":""},{"$f":"IF($D$16<>\"\",$D$16,\"\")","v":""}]
[899,null,"C05",null,null,"",null,null,null,null,null,null,null,"","",""]
[900,null,"D05",null,null,"",null,null,null,null,null,null,null,"","",""]
[901,null,"E05",null,null,"",null,null,null,null,null,null,null,"","",""]
[902,null,"F05",null,null,"",null,null,null,null,null,null,null,"","",""]
[903,null,"G05",null,null,"",null,null,null,null,null,null,null,"","",""]
[904,null,"H05",null,null,"",null,null,null,null,null,null,null,"","",""]
[905,null,"A06",null,null,"",null,null,null,null,null,null,null,"","",""]
[906,null,"B06",null,null,"",null,null,null,null,null,null,null,"","",""]
[907,null,"C06",null,null,"",null,null,null,null,null,null,null,"","",""]
[908,null,"D06",null,null,"",null,null,null,null,null,null,null,"","",""]
[909,null,"E06",null,null,"",null,null,null,null,null,null,null,"","",""]
[910,null,"F06",null,null,"",null,null,null,null,null,null,null,"","",""]
[911,null,"G06",null,null,"",null,null,null,null,null,null,null,"","",""]
[912,null,"H06",null,null,"",null,null,null,null,null,null,null,"","",""]
[913,null,"A07",null,null,"",null,null,null,null,null,null,null,"","",""]
[914,null,"B07",null,null,"",null,null,null,null,null,null,null,"","",""]
[915,null,"C07",null,null,"",null,null,null,null,null,null,null,"","",""]
[916,null,"D07",null,null,"",null,null,null,null,null,null,null,"","",""]
[917,null,"E07",null,null,"",null,null,null,null,null,null,null,"","",""]
[918,null,"F07",null,null,"",null,null,null,null,null,null,null,"","",""]
[919,null,"G07",null,null,"",null,null,null,null,null,null,null,"","",""]
[920,null,"H07",null,null,"",null,null,null,null,null,null,null,"","",""]
[921,null,"A08",null,null,"",null,null,null,null,null,null,null,"","",""]
[922,null,"B08",null,null,"",null,null,null,null,null,null,null,"","",""]
[923,null,"C08",null,null,"",null,null,null,null,null,null,null,"","",""]
[924,null,"D08",null,null,"",null,null,null,null,null,null,null,"","",""]
[925,null,"E08",null,null,"",null,null,null,null,null,null,null,"","",""]
[926,null,"F08",null,null,"",null,null,null,null,null,null,null,"","",""]
[927,null,"G08",null,null,"",null,null,null,null,null,null,null,"","",""]
[928,null,"H08",null,null,"",null,null,null,null,null,null,null,"","",""]
[929,null,"A09",null,null,"",null,null,null,null,null,null,null,"","",""]
[930,null,"B09",null,null,"",null,null,null,null,null,null,null,"","",""]
[931,null,"C09",null,null,"",null,null,null,null,null,null,null,"","",""]
[932,null,"D09",null,null,"",null,null,null,null,null,null,null,"","",""]
[933,null,"E09",null,null,"",null,null,null,null,null,null,null,"","",""]
[934,null,"F09",null,null,"",null,null,null,null,null,null,null,"","",""]
[935,null,"G09",null,null,"",null,null,null,null,null,null,null,"","",""]
[936,null,"H09",null,null,"",null,null,null,null,null,null,null,"","",""]
[937,null,"A10",null,null,"",null,null,null,null,null,null,null,"","",""]
[938,null,"B10",null,null,"",null,null,null,null,null,null,null,"","",""]
[939,null,"C10",null,null,"",null,null,null,null,null,null,null,"","",""]
[940,null,"D10",null,null,"",null,null,null,null,null,null,null,"","",""]
[941,null,"E10",null,null,"",null,null,null,null,null,null,null,"","",""]
[942,null,"F10",null,null,"",null,null,null,null,null,null,null,"","",""]
[943,null,"G10",null,null,"",null,null,null,null,null,null,null,"","",""]
[944,null,"H10",null,null,"",null,null,null,null,null,null,null,"","",""]
[945,null,"A11",null,null,"",null,null,null,null,null,null,null,"","",""]
[946,null,"B11",null,null,"",null,null,null,null,null,null,null,"","",""]
[947,null,"C11",null,null,"",null,null,null,null,null,null,null,"","",""]
[948,null,"D11",null,null,"",null,null,null,null,null,null,null,"","",""]
[949,null,"E11",null,null,"",null,null,null,null,null,null,null,"","",""]
[950,null,"F11",null,null,"",null,null,null,null,null,null,null,"","",""]
[951,null,"G11",null,null,"",null,null,null,null,null,null,null,"","",""]
[952,null,"H11",null,null,"",null,null,null,null,null,null,null,"","",""]
[953,null,"A12",null,null,"",null,null,null,null,null,null,null,"","",""]
[954,null,"B12",null,null,"",null,null,null,null,null,null,null,"","",""]
[955,null,"C12",null,null,"",null,null,null,null,null,null,null,"","",""]
[956,null,"D12",null,null,"",null,null,null,null,null,null,null,"","",""]
[957,null,"E12",null,null,"",null,null,null,null,null,null,null,"","",""]
[958,null,"F12",null,null,"",null,null,null,null,null,null,null,"","",""]
[959,null,"G12",null,null,"",null,null,null,null,null,null,null,"","",""]
[960,null,"H12",null,null,"",null,null,null,null,null,null,null,"","",""]
[961,null,"A01",null,null,"",null,null,null,null,null,null,null,"","",""]
[962,null,"B01",null,null,{"$f":"IF($D$17<>\"\",$D$17,\"\")","v":""},null,null,null,null,null,null,null,{"$f":"IF($D$14<>\"\",$D$14,\"\")","v":""},{"$f":"IF($D$15<>\"\",$D$15,\"\")","v":""},{"$f":"IF($D$16<>\"\",$D$16,\"\")","v":""}]
[963,null,"C01",null,null,"",null,null,null,null,null,null,null,"","",""]
[964,null,"D01",null,null,"",null,null,null,null,null,null,null,"","",""]
[965,null,"E01",null,null,"",null,null,null,null,null,null,null,"","",""]
[966,null,"F01",null,null,"",null,null,null,null,null,null,null,"","",""]
[967,null,"G01",null,null,"",null,null,null,null,null,null,null,"","",""]
[968,null,"H01",null,null,"",null,null,null,null,null,null,null,"","",""]
[969,null,"A02",null,null,"",null,null,null,null,null,null,null,"","",""]
[970,null,"B02",null,null,"",null,null,null,null,null,null,null,"","",""]
[971,null,"C02",null,null,"",null,null,null,null,null,null,null,"","",""]
[972,null,"D02",null,null,"",null,null,null,null,null,null,null,"","",""]
[973,null,"E02",null,null,"",null,null,null,null,null,null,null,"","",""]
[974,null,"F02",null,null,"",null,null,null,null,null,null,null,"","",""]
[975,null,"G02",null,null,"",null,null,null,null,null,null,null,"","",""]
[976,null,"H02",null,null,"",null,null,null,null,null,null,null,"","",""]
[977,null,"A03",null,null,"",null,null,null,null,null,null,null,"","",""]
[978,null,"B03",null,null,"",null,null,null,null,null,null,null,"","",""]
[979,null,"C03",null,null,"",null,null,null,null,null,null,null,"","",""]
[980,null,"D03",null,null,"",null,null,null,null,null,null,null,"","",""]
[981,null,"E03",null,null,"",null,null,null,null,null,null,null,"","",""]
[982,null,"F03",null,null,"",null,null,null,null,null,null,null,"","",""]
[983,null,"G03",null,null,"",null,null,null,null,null,null,null,"","",""]
[984,null,"H03",null,null,"",null,null,null,null,null,null,null,"","",""]
[985,null,"A04",null,null,"",null,null,null,null,null,null,null,"","",""]
[986,null,"B04",null,null,"",null,null,null,null,null,null,null,"","",""]
[987,null,"C04",null,null,"",null,null,null,null,null,null,null,"","",""]
[988,null,"D04",null,null,"",null,null,null,null,null,null,null,"","",""]
[989,null,"E04",null,null,"",null,null,null,null,null,null,null,"","",""]
[990,null,"F04",null,null,"",null,null,null,null,null,null,null,"","",""]
[991,null,"G04",null,null,"",null,null,null,null,null,null,null,"","",""]
[992,null,"H04",null,null,"",null,null,null,null,null,null,null,"","",""]
[993,null,"A05",null,null,"",null,null,null,null,null,null,null,"","",""]
[994,null,"B05",null,null,"",null,null,null,null,null,null,null,"","",""]
[995,null,"C05",null,null,"",null,null,null,null,null,null,null,"","",""]
[996,null,"D05",null,null,"",null,null,null,null,null,null,null,"","",""]
[997,null,"E05",null,null,"",null,null,null,null,null,null,null,"","",""]
[998,null,"F05",null,null,"",null,null,null,null,null,null,null,"","",""]
[999,null,"G05",null,null,"",null,null,null,null,null,null,null,"","",""]
[1000,null,"H05",null,null,"",null,null,null,null,null,null,null,"","",""]
[1001,null,"A06",null,null,"",null,null,null,null,null,null,null,"","",""]
[1002,null,"B06",null,null,"",null,null,null,null,null,null,null,"","",""]
[1003,null,"C06",null,null,"",null,null,null,null,null,null,null,"","",""]
[1004,null,"D06",null,null,"",null,null,null,null,null,null,null,"","",""]
[1005,null,"E06",null,null,"",null,null,null,null,null,null,null,"","",""]
[1006,null,"F06",null,null,"",null,null,null,null,null,null,null,"","",""]
[1007,null,"G06",null,null,"",null,null,null,null,null,null,null,"","",""]
[1008,null,"H06",null,null,"",null,null,null,null,null,null,null,"","",""]
[1009,null,"A07",null,null,"",null,null,null,null,null,null,null,"","",""]
[1010,null,"B07",null,null,"",null,null,null,null,null,null,null,"","",""]
[1011,null,"C07",null,null,"",null,null,null,null,null,null,null,"","",""]
[1012,null,"D07",null,null,"",null,null,null,null,null,null,null,"","",""]
[1013,null,"E07",null,null,"",null,null,null,null,null,null,null,"","",""]
[1014,null,"F07",null,null,"",null,null,null,null,null,null,null,"","",""]
[1015,null,"G07",null,null,"",null,null,null,null,null,null,null,"","",""]
[1016,null,"H07",null,null,"",null,null,null,null,null,null,null,"","",""]
[1017,null,"A08",null,null,"",null,null,null,null,null,null,null,"","",""]
[1018,null,"B08",null,null,"",null,null,null,null,null,null,null,"","",""]
[1019,null,"C08",null,null,"",null,null,null,null,null,null,null,"","",""]
[1020,null,"D08",null,null,"",null,null,null,null,null,null,null,"","",""]
[1021,null,"E08",null,null,"",null,null,null,null,null,null,null,"","",""]
[1022,null,"F08",null,null,"",null,null,null,null,null,null,null,"","",""]
[1023,null,"G08",null,null,"",null,null,null,null,null,null,null,"","",""]
[1024,null,"H08",null,null,"",null,null,null,null,null,null,null,"","",""]
[1025,null,"A09",null,null,"",null,null,null,null,null,null,null,"","",""]
[1026,null,"B09",null,null,{"$f":"IF($D$17<>\"\",$D$17,\"\")","v":""},null,null,null,null,null,null,null,{"$f":"IF($D$14<>\"\",$D$14,\"\")","v":""},{"$f":"IF($D$15<>\"\",$D$15,\"\")","v":""},{"$f":"IF($D$16<>\"\",$D$16,\"\")","v":""}]
[1027,null,"C09",null,null,"",null,null,null,null,null,null,null,"","",""]
[1028,null,"D09",null,null,"",null,null,null,null,null,null,null,"","",""]
[1029,null,"E09",null,null,"",null,null,null,null,null,null,null,"","",""]
[1030,null,"F09",null,null,"",null,null,null,null,null,null,null,"","",""]
[1031,null,"G09",null,null,"",null,null,null,null,null,null,null,"","",""]
[1032,null,"H09",null,null,"",null,null,null,null,null,null,null,"","",""]
[1033,null,"A10",null,null,"",null,null,null,null,null,null,null,"","",""]
[1034,null,"B10",null,null,"",null,null,null,null,null,null,null,"","",""]
[1035,null,"C10",null,null,"",null,null,null,null,null,null,null,"","",""]
[1036,null,"D10",null,null,"",null,null,null,null,null,null,null,"","",""]
[1037,null,"E10",null,null,"",null,null,null,null,null,null,null,"","",""]
[1038,null,"F10",null,null,"",null,null,null,null,null,null,null,"","",""]
[1039,null,"G10",null,null,"",null,null,null,null,null,null,null,"","",""]
[1040,null,"H10",null,null,"",null,null,null,null,null,null,null,"","",""]
[1041,null,"A11",null,null,"",null,null,null,null,null,null,null,"","",""]
[1042,null,"B11",null,null,"",null,null,null,null,null,null,null,"","",""]
[1043,null,"C11",null,null,"",null,null,null,null,null,null,null,"","",""]
[1044,null,"D11",null,null,"",null,null,null,null,null,null,null,"","",""]
[1045,null,"E11",null,null,"",null,null,null,null,null,null,null,"","",""]
[1046,null,"F11",null,null,"",null,null,null,null,null,null,null,"","",""]
[1047,null,"G11",null,null,"",null,null,null,null,null,null,null,"","",""]
[1048,null,"H11",null,null,"",null,null,null,null,null,null,null,"","",""]
[1049,null,"A12",null,null,"",null,null,null,null,null,null,null,"","",""]
[1050,null,"B12",null,null,"",null,null,null,null,null,null,null,"","",""]
[1051,null,"C12",null,null,"",null,null,null,null,null,null,null,"","",""]
[1052,null,"D12",null,null,"",null,null,null,null,null,null,null,"","",""]
[1053,null,"E12",null,null,"",null,null,null,null,null,null,null,"","",""]
[1054,null,"F12",null,null,"",null,null,null,null,null,null,null,"","",""]
[1055,null,"G12",null,null,"",null,null,null,null,null,null,null,"","",""]
[1056,null,"H12",null,null,"",null,null,null,null,null,null,null,"","",""]
[1057,null,"A01",null,null,"",null,null,null,null,null,null,null,"","",""]
[1058,null,"B01",null,null,"",null,null,null,null,null,null,null,"","",""]
[1059,null,"C01",null,null,"",null,null,null,null,null,null,null,"","",""]
[1060,null,"D01",null,null,"",null,null,null,null,null,null,null,"","",""]
[1061,null,"E01",null,null,"",null,null,null,null,null,null,null,"","",""]
[1062,null,"F01",null,null,"",null,null,null,null,null,null,null,"","",""]
[1063,null,"G01",null,null,"",null,null,null,null,null,null,null,"","",""]
[1064,null,"H01",null,null,"",null,null,null,null,null,null,null,"","",""]
[1065,null,"A02",null,null,"",null,null,null,null,null,null,null,"","",""]
[1066,null,"B02",null,null,"",null,null,null,null,null,null,null,"","",""]
[1067,null,"C02",null,null,"",null,null,null,null,null,null,null,"","",""]
[1068,null,"D02",null,null,"",null,null,null,null,null,null,null,"","",""]
[1069,null,"E02",null,null,"",null,null,null,null,null,null,null,"","",""]
[1070,null,"F02",null,null,"",null,null,null,null,null,null,null,"","",""]
[1071,null,"G02",null,null,"",null,null,null,null,null,null,null,"","",""]
[1072,null,"H02",null,null,"",null,null,null,null,null,null,null,"","",""]
[1073,null,"A03",null,null,"",null,null,null,null,null,null,null,"","",""]
[1074,null,"B03",null,null,"",null,null,null,null,null,null,null,"","",""]
[1075,null,"C03",null,null,"",null,null,null,null,null,null,null,"","",""]
[1076,null,"D03",null,null,"",null,null,null,null,null,null,null,"","",""]
[1077,null,"E03",null,null,"",null,null,null,null,null,null,null,"","",""]
[1078,null,"F03",null,null,"",null,null,null,null,null,null,null,"","",""]
[1079,null,"G03",null,null,"",null,null,null,null,null,null,null,"","",""]
[1080,null,"H03",null,null,"",null,null,null,null,null,null,null,"","",""]
[1081,null,"A04",null,null,"",null,null,null,null,null,null,null,"","",""]
[1082,null,"B04",null,null,"",null,null,null,null,null,null,null,"","",""]
[1083,null,"C04",null,null,"",null,null,null,null,null,null,null,"","",""]
[1084,null,"D04",null,null,"",null,null,null,null,null,null,null,"","",""]
[1085,null,"E04",null,null,"",null,null,null,null,null,null,null,"","",""]
[1086,null,"F04",null,null,"",null,null,null,null,null,null,null,"","",""]
[1087,null,"G04",null,null,"",null,null,null,null,null,null,null,"","",""]
[1088,null,"H04",null,null,"",null,null,null,null,null,null,null,"","",""]
[1089,null,"A05",null,null,"",null,null,null,null,null,null,null,"","",""]
[1090,null,"B05",null,null,{"$f":"IF($D$17<>\"\",$D$17,\"\")","v":""},null,null,null,null,null,null,null,{"$f":"IF($D$14<>\"\",$D$14,\"\")","v":""},{"$f":"IF($D$15<>\"\",$D$15,\"\")","v":""},{"$f":"IF($D$16<>\"\",$D$16,\"\")","v":""}]
[1091,null,"C05",null,null,"",null,null,null,null,null,null,null,"","",""]
[1092,null,"D05",null,null,"",null,null,null,null,null,null,null,"","",""]
[1093,null,"E05",null,null,"",null,null,null,null,null,null,null,"","",""]
[1094,null,"F05",null,null,"",null,null,null,null,null,null,null,"","",""]
[1095,null,"G05",null,null,"",null,null,null,null,null,null,null,"","",""]
[1096,null,"H05",null,null,"",null,null,null,null,null,null,null,"","",""]
[1097,null,"A06",null,null,"",null,null,null,null,null,null,null,"","",""]
[1098,null,"B06",null,null,"",null,null,null,null,null,null,null,"","",""]
[1099,null,"C06",null,null,"",null,null,null,null,null,null,null,"","",""]
[1100,null,"D06",null,null,"",null,null,null,null,null,null,null,"","",""]
[1101,null,"E06",null,null,"",null,null,null,null,null,null,null,"","",""]
[1102,null,"F06",null,null,"",null,null,null,null,null,null,null,"","",""]
[1103,null,"G06",null,null,"",null,null,null,null,null,null,null,"","",""]
[1104,null,"H06",null,null,"",null,null,null,null,null,null,null,"","",""]
[1105,null,"A07",null,null,"",null,null,null,null,null,null,null,"","",""]
[1106,null,"B07",null,null,"",null,null,null,null,null,null,null,"","",""]
[1107,null,"C07",null,null,"",null,null,null,null,null,null,null,"","",""]
[1108,null,"D07",null,null,"",null,null,null,null,null,null,null,"","",""]
[1109,null,"E07",null,null,"",null,null,null,null,null,null,null,"","",""]
[1110,null,"F07",null,null,"",null,null,null,null,null,null,null,"","",""]
[1111,null,"G07",null,null,"",null,null,null,null,null,null,null,"","",""]
[1112,null,"H07",null,null,"",null,null,null,null,null,null,null,"","",""]
[1113,null,"A08",null,null,"",null,null,null,null,null,null,null,"","",""]
[1114,null,"B08",null,null,"",null,null,null,null,null,null,null,"","",""]
[1115,null,"C08",null,null,"",null,null,null,null,null,null,null,"","",""]
[1116,null,"D08",null,null,"",null,null,null,null,null,null,null,"","",""]
[1117,null,"E08",null,null,"",null,null,null,null,null,null,null,"","",""]
[1118,null,"F08",null,null,"",null,null,null,null,null,null,null,"","",""]
[1119,null,"G08",null,null,"",null,null,null,null,null,null,null,"","",""]
[1120,null,"H08",null,null,"",null,null,null,null,null,null,null,"","",""]
[1121,null,"A09",null,null,"",null,null,null,null,null,null,null,"","",""]
[1122,null,"B09",null,null,"",null,null,null,null,null,null,null,"","",""]
[1123,null,"C09",null,null,"",null,null,null,null,null,null,null,"","",""]
[1124,null,"D09",null,null,"",null,null,null,null,null,null,null,"","",""]
[1125,null,"E09",null,null,"",null,null,null,null,null,null,null,"","",""]
[1126,null,"F09",null,null,"",null,null,null,null,null,null,null,"","",""]
[1127,null,"G09",null,null,"",null,null,null,null,null,null,null,"","",""]
[1128,null,"H09",null,null,"",null,null,null,null,null,null,null,"","",""]
[1129,null,"A10",null,null,"",null,null,null,null,null,null,null,"","",""]
[1130,null,"B10",null,null,"",null,null,null,null,null,null,null,"","",""]
[1131,null,"C10",null,null,"",null,null,null,null,null,null,null,"","",""]
[1132,null,"D10",null,null,"",null,null,null,null,null,null,null,"","",""]
[1133,null,"E10",null,null,"",null,null,null,null,null,null,null,"","",""]
[1134,null,"F10",null,null,"",null,null,null,null,null,null,null,"","",""]
[1135,null,"G10",null,null,"",null,null,null,null,null,null,null,"","",""]
[1136,null,"H10",null,null,"",null,null,null,null,null,null,null,"","",""]
[1137,null,"A11",null,null,"",null,null,null,null,null,null,null,"","",""]
[1138,null,"B11",null,null,"",null,null,null,null,null,null,null,"","",""]
[1139,null,"C11",null,null,"",null,null,null,null,null,null,null,"","",""]
[1140,null,"D11",null,null,"",null,null,null,null,null,null,null,"","",""]
[1141,null,"E11",null,null,"",null,null,null,null,null,null,null,"","",""]
[1142,null,"F11",null,null,"",null,null,null,null,null,null,null,"","",""]
[1143,null,"G11",null,null,"",null,null,null,null,null,null,null,"","",""]
[1144,null,"H11",null,null,"",null,null,null,null,null,null,null,"","",""]
[1145,null,"A12",null,null,"",null,null,null,null,null,null,null,"","",""]
[1146,null,"B12",null,null,"",null,null,null,null,null,null,null,"","",""]
[1147,null,"C12",null,null,"",null,null,null,null,null,null,null,"","",""]
[1148,null,"D12",null,null,"",null,null,null,null,null,null,null,"","",""]
[1149,null,"E12",null,null,"",null,null,null,null,null,null,null,"","",""]
[1150,null,"F12",null,null,"",null,null,null,null,null,null,null,"","",""]
[1151,null,"G12",null,null,"",null,null,null,null,null,null,null,"","",""]
[1152,null,"H12",null,null,"",null,null,null,null,null,null,null,"","",""]
[1153,null,"A01",null,null,"",null,null,null,null,null,null,null,"","",""]
[1154,null,"B01",null,null,{"$f":"IF($D$17<>\"\",$D$17,\"\")","v":""},null,null,null,null,null,null,null,{"$f":"IF($D$14<>\"\",$D$14,\"\")","v":""},{"$f":"IF($D$15<>\"\",$D$15,\"\")","v":""},{"$f":"IF($D$16<>\"\",$D$16,\"\")","v":""}]
[1155,null,"C01",null,null,"",null,null,null,null,null,null,null,"","",""]
[1156,null,"D01",null,null,"",null,null,null,null,null,null,null,"","",""]
[1157,null,"E01",null,null,"",null,null,null,null,null,null,null,"","",""]
[1158,null,"F01",null,null,"",null,null,null,null,null,null,null,"","",""]
[1159,null,"G01",null,null,"",null,null,null,null,null,null,null,"","",""]
[1160,null,"H01",null,null,"",null,null,null,null,null,null,null,"","",""]
[1161,null,"A02",null,null,"",null,null,null,null,null,null,null,"","",""]
[1162,null,"B02",null,null,"",null,null,null,null,null,null,null,"","",""]
[1163,null,"C02",null,null,"",null,null,null,null,null,null,null,"","",""]
[1164,null,"D02",null,null,"",null,null,null,null,null,null,null,"","",""]
[1165,null,"E02",null,null,"",null,null,null,null,null,null,null,"","",""]
[1166,null,"F02",null,null,"",null,null,null,null,null,null,null,"","",""]
[1167,null,"G02",null,null,"",null,null,null,null,null,null,null,"","",""]
[1168,null,"H02",null,null,"",null,null,null,null,null,null,null,"","",""]
[1169,null,"A03",null,null,"",null,null,null,null,null,null,null,"","",""]
[1170,null,"B03",null,null,"",null,null,null,null,null,null,null,"","",""]
[1171,null,"C03",null,null,"",null,null,null,null,null,null,null,"","",""]
[1172,null,"D03",null,null,"",null,null,null,null,null,null,null,"","",""]
[1173,null,"E03",null,null,"",null,null,null,null,null,null,null,"","",""]
[1174,null,"F03",null,null,"",null,null,null,null,null,null,null,"","",""]
[1175,null,"G03",null,null,"",null,null,null,null,null,null,null,"","",""]
[1176,null,"H03",null,null,"",null,null,null,null,null,null,null,"","",""]
[1177,null,"A04",null,null,"",null,null,null,null,null,null,null,"","",""]
[1178,null,"B04",null,null,"",null,null,null,null,null,null,null,"","",""]
[1179,null,"C04",null,null,"",null,null,null,null,null,null,null,"","",""]
[1180,null,"D04",null,null,"",null,null,null,null,null,null,null,"","",""]
[1181,null,"E04",null,null,"",null,null,null,null,null,null,null,"","",""]
[1182,null,"F04",null,null,"",null,null,null,null,null,null,null,"","",""]
[1183,null,"G04",null,null,"",null,null,null,null,null,null,null,"","",""]
[1184,null,"H04",null,null,"",null,null,null,null,null,null,null,"","",""]
[1185,null,"A05",null,null,"",null,null,null,null,null,null,null,"","",""]
[1186,null,"B05",null,null,"",null,null,null,null,null,null,null,"","",""]
[1187,null,"C05",null,null,"",null,null,null,null,null,null,null,"","",""]
[1188,null,"D05",null,null,"",null,null,null,null,null,null,null,"","",""]
[1189,null,"E05",null,null,"",null,null,null,null,null,null,null,"","",""]
[1190,null,"F05",null,null,"",null,null,null,null,null,null,null,"","",""]
[1191,null,"G05",null,null,"",null,null,null,null,null,null,null,"","",""]
[1192,null,"H05",null,null,"",null,null,null,null,null,null,null,"","",""]
[1193,null,"A06",null,null,"",null,null,null,null,null,null,null,"","",""]
[1194,null,"B06",null,null,"",null,null,null,null,null,null,null,"","",""]
[1195,null,"C06",null,null,"",null,null,null,null,null,null,null,"","",""]
[1196,null,"D06",null,null,"",null,null,null,null,null,null,null,"","",""]
[1197,null,"E06",null,null,"",null,null,null,null,null,null,null,"","",""]
[1198,null,"F06",null,null,"",null,null,null,null,null,null,null,"","",""]
[1199,null,"G06",null,null,"",null,null,null,null,null,null,null,"","",""]
[1200,null,"H06",null,null,"",null,null,null,null,null,null,null,"","",""]
[1201,null,"A07",null,null,"",null,null,null,null,null,null,null,"","",""]
[1202,null,"B07",null,null,"",null,null,null,null,null,null,null,"","",""]
[1203,null,"C07",null,null,"",null,null,null,null,null,null,null,"","",""]
[1204,null,"D07",null,null,"",null,null,null,null,null,null,null,"","",""]
[1205,null,"E07",null,null,"",null,null,null,null,null,null,null,"","",""]
[1206,null,"F07",null,null,"",null,null,null,null,null,null,null,"","",""]
[1207,null,"G07",null,null,"",null,null,null,null,null,null,null,"","",""]
[1208,null,"H07",null,null,"",null,null,null,null,null,null,null,"","",""]
[1209,null,"A08",null,null,"",null,null,null,null,null,null,null,"","",""]
[1210,null,"B08",null,null,"",null,null,null,null,null,null,null,"","",""]
[1211,null,"C08",null,null,"",null,null,null,null,null,null,null,"","",""]
[1212,null,"D08",null,null,"",null,null,null,null,null,null,null,"","",""]
[1213,null,"E08",null,null,"",null,null,null,null,null,null,null,"","",""]
[1214,null,"F08",null,null,"",null,null,null,null,null,null,null,"","",""]
[1215,null,"G08",null,null,"",null,null,null,null,null,null,null,"","",""]
[1216,null,"H08",null,null,"",null,null,null,null,null,null,null,"","",""]
[1217,null,"A09",null,null,"",null,null,null,null,null,null,null,"","",""]
[1218,null,"B09",null,null,{"$f":"IF($D$17<>\"\",$D$17,\"\")","v":""},null,null,null,null,null,null,null,{"$f":"IF($D$14<>\"\",$D$14,\"\")","v":""},{"$f":"IF($D$15<>\"\",$D$15,\"\")","v":""},{"$f":"IF($D$16<>\"\",$D$16,\"\")","v":""}]
[1219,null,"C09",null,null,"",null,null,null,null,null,null,null,"","",""]
[1220,null,"D09",null,null,"",null,null,null,null,null,null,null,"","",""]
[1221,null,"E09",null,null,"",null,null,null,null,null,null,null,"","",""]
[1222,null,"F09",null,null,"",null,null,null,null,null,null,null,"","",""]
[1223,null,"G09",null,null,"",null,null,null,null,null,null,null,"","",""]
[1224,null,"H09",null,null,"",null,null,null,null,null,null,null,"","",""]
[1225,null,"A10",null,null,"",null,null,null,null,null,null,null,"","",""]
[1226,null,"B10",null,null,"",null,null,null,null,null,null,null,"","",""]
[1227,null,"C10",null,null,"",null,null,null,null,null,null,null,"","",""]
[1228,null,"D10",null,null,"",null,null,null,null,null,null,null,"","",""]
[1229,null,"E10",null,null,"",null,null,null,null,null,null,null,"","",""]
[1230,null,"F10",null,null,"",null,null,null,null,null,null,null,"","",""]
[1231,null,"G10",null,null,"",null,null,null,null,null,null,null,"","",""]
[1232,null,"H10",null,null,"",null,null,null,null,null,null,null,"","",""]
[1233,null,"A11",null,null,"",null,null,null,null,null,null,null,"","",""]
[1234,null,"B11",null,null,"",null,null,null,null,null,null,null,"","",""]
[1235,null,"C11",null,null,"",null,null,null,null,null,null,null,"","",""]
[1236,null,"D11",null,null,"",null,null,null,null,null,null,null,"","",""]
[1237,null,"E11",null,null,"",null,null,null,null,null,null,null,"","",""]
[1238,null,"F11",null,null,"",null,null,null,null,null,null,null,"","",""]
[1239,null,"G11",null,null,"",null,null,null,null,null,null,null,"","",""]
[1240,null,"H11",null,null,"",null,null,null,null,null,null,null,"","",""]
[1241,null,"A12",null,null,"",null,null,null,null,null,null,null,"","",""]
[1242,null,"B12",null,null,"",null,null,null,null,null,null,null,"","",""]
[1243,null,"C12",null,null,"",null,null,null,null,null,null,null,"","",""]
[1244,null,"D12",null,null,"",null,null,null,null,null,null,null,"","",""]
[1245,null,"E12",null,null,"",null,null,null,null,null,null,null,"","",""]
[1246,null,"F12",null,null,"",null,null,null,null,null,null,null,"","",""]
[1247,null,"G12",null,null,"",null,null,null,null,null,null,null,"","",""]
[1248,null,"H12",null,null,"",null,null,null,null,null,null,null,"","",""]
[1249,null,"A01",null,null,"",null,null,null,null,null,null,null,"","",""]
[1250,null,"B01",null,null,"",null,null,null,null,null,null,null,"","",""]
[1251,null,"C01",null,null,"",null,null,null,null,null,null,null,"","",""]
[1252,null,"D01",null,null,"",null,null,null,null,null,null,null,"","",""]
[1253,null,"E01",null,null,"",null,null,null,null,null,null,null,"","",""]
[1254,null,"F01",null,null,"",null,null,null,null,null,null,null,"","",""]
[1255,null,"G01",null,null,"",null,null,null,null,null,null,null,"","",""]
[1256,null,"H01",null,null,"",null,null,null,null,null,null,null,"","",""]
[1257,null,"A02",null,null,"",null,null,null,null,null,null,null,"","",""]
[1258,null,"B02",null,null,"",null,null,null,null,null,null,null,"","",""]
[1259,null,"C02",null,null,"",null,null,null,null,null,null,null,"","",""]
[1260,null,"D02",null,null,"",null,null,null,null,null,null,null,"","",""]
[1261,null,"E02",null,null,"",null,null,null,null,null,null,null,"","",""]
[1262,null,"F02",null,null,"",null,null,null,null,null,null,null,"","",""]
[1263,null,"G02",null,null,"",null,null,null,null,null,null,null,"","",""]
[1264,null,"H02",null,null,"",null,null,null,null,null,null,null,"","",""]
[1265,null,"A03",null,null,"",null,null,null,null,null,null,null,"","",""]
[1266,null,"B03",null,null,"",null,null,null,null,null,null,null,"","",""]
[1267,null,"C03",null,null,"",null,null,null,null,null,null,null,"","",""]
[1268,null,"D03",null,null,"",null,null,null,null,null,null,null,"","",""]
[1269,null,"E03",null,null,"",null,null,null,null,null,null,null,"","",""]
[1270,null,"F03",null,null,"",null,null,null,null,null,null,null,"","",""]
[1271,null,"G03",null,null,"",null,null,null,null,null,null,null,"","",""]
[1272,null,"H03",null,null,"",null,null,null,null,null,null,null,"","",""]
[1273,null,"A04",null,null,"",null,null,null,null,null,null,null,"","",""]
[1274,null,"B04",null,null,"",null,null,null,null,null,null,null,"","",""]
[1275,null,"C04",null,null,"",null,null,null,null,null,null,null,"","",""]
[1276,null,"D04",null,null,"",null,null,null,null,null,null,null,"","",""]
[1277,null,"E04",null,null,"",null,null,null,null,null,null,null,"","",""]
[1278,null,"F04",null,null,"",null,null,null,null,null,null,null,"","",""]
[1279,null,"G04",null,null,"",null,null,null,null,null,null,null,"","",""]
[1280,null,"H04",null,null,"",null,null,null,null,null,null,null,"","",""]
[1281,null,"A05",null,null,"",null,null,null,null,null,null,null,"","",""]
[1282,null,"B05",null,null,{"$f":"IF($D$17<>\"\",$D$17,\"\")","v":""},null,null,null,null,null,null,null,{"$f":"IF($D$14<>\"\",$D$14,\"\")","v":""},{"$f":"IF($D$15<>\"\",$D$15,\"\")","v":""},{"$f":"IF($D$16<>\"\",$D$16,\"\")","v":""}]
[1283,null,"C05",null,null,"",null,null,null,null,null,null,null,"","",""]
[1284,null,"D05",null,null,"",null,null,null,null,null,null,null,"","",""]
[1285,null,"E05",null,null,"",null,null,null,null,null,null,null,"","",""]
[1286,null,"F05",null,null,"",null,null,null,null,null,null,null,"","",""]
[1287,null,"G05",null,null,"",null,null,null,null,null,null,null,"","",""]
[1288,null,"H05",null,null,"",null,null,null,null,null,null,null,"","",""]
[1289,null,"A06",null,null,"",null,null,null,null,null,null,null,"","",""]
[1290,null,"B06",null,null,"",null,null,null,null,null,null,null,"","",""]
[1291,null,"C06",null,null,"",null,null,null,null,null,null,null,"","",""]
[1292,null,"D06",null,null,"",null,null,null,null,null,null,null,"","",""]
[1293,null,"E06",null,null,"",null,null,null,null,null,null,null,"","",""]
[1294,null,"F06",null,null,"",null,null,null,null,null,null,null,"","",""]
[1295,null,"G06",null,null,"",null,null,null,null,null,null,null,"","",""]
[1296,null,"H06",null,null,"",null,null,null,null,null,null,null,"","",""]
[1297,null,"A07",null,null,"",null,null,null,null,null,null,null,"","",""]
[1298,null,"B07",null,null,"",null,null,null,null,null,null,null,"","",""]
[1299,null,"C07",null,null,"",null,null,null,null,null,null,null,"","",""]
[1300,null,"D07",null,null,"",null,null,null,null,null,null,null,"","",""]
[1301,null,"E07",null,null,"",null,null,null,null,null,null,null,"","",""]
[1302,null,"F07",null,null,"",null,null,null,null,null,null,null,"","",""]
[1303,null,"G07",null,null,"",null,null,null,null,null,null,null,"","",""]
[1304,null,"H07",null,null,"",null,null,null,null,null,null,null,"","",""]
[1305,null,"A08",null,null,"",null,null,null,null,null,null,null,"","",""]
[1306,null,"B08",null,null,"",null,null,null,null,null,null,null,"","",""]
[1307,null,"C08",null,null,"",null,null,null,null,null,null,null,"","",""]
[1308,null,"D08",null,null,"",null,null,null,null,null,null,null,"","",""]
[1309,null,"E08",null,null,"",null,null,null,null,null,null,null,"","",""]
[1310,null,"F08",null,null,"",null,null,null,null,null,null,null,"","",""]
[1311,null,"G08",null,null,"",null,null,null,null,null,null,null,"","",""]
[1312,null,"H08",null,null,"",null,null,null,null,null,null,null,"","",""]
[1313,null,"A09",null,null,"",null,null,null,null,null,null,null,"","",""]
[1314,null,"B09",null,null,"",null,null,null,null,null,null,null,"","",""]
[1315,null,"C09",null,null,"",null,null,null,null,null,null,null,"","",""]
[1316,null,"D09",null,null,"",null,null,null,null,null,null,null,"","",""]
[1317,null,"E09",null,null,"",null,null,null,null,null,null,null,"","",""]
[1318,null,"F09",null,null,"",null,null,null,null,null,null,null,"","",""]
[1319,null,"G09",null,null,"",null,null,null,null,null,null,null,"","",""]
[1320,null,"H09",null,null,"",null,null,null,null,null,null,null,"","",""]
[1321,null,"A10",null,null,"",null,null,null,null,null,null,null,"","",""]
[1322,null,"B10",null,null,"",null,null,null,null,null,null,null,"","",""]
[1323,null,"C10",null,null,"",null,null,null,null,null,null,null,"","",""]
[1324,null,"D10",null,null,"",null,null,null,null,null,null,null,"","",""]
[1325,null,"E10",null,null,"",null,null,null,null,null,null,null,"","",""]
[1326,null,"F10",null,null,"",null,null,null,null,null,null,null,"","",""]
[1327,null,"G10",null,null,"",null,null,null,null,null,null,null,"","",""]
[1328,null,"H10",null,null,"",null,null,null,null,null,null,null,"","",""]
[1329,null,"A11",null,null,"",null,null,null,null,null,null,null,"","",""]
[1330,null,"B11",null,null,"",null,null,null,null,null,null,null,"","",""]
[1331,null,"C11",null,null,"",null,null,null,null,null,null,null,"","",""]
[1332,null,"D11",null,null,"",null,null,null,null,null,null,null,"","",""]
[1333,null,"E11",null,null,"",null,null,null,null,null,null,null,"","",""]
[1334,null,"F11",null,null,"",null,null,null,null,null,null,null,"","",""]
[1335,null,"G11",null,null,"",null,null,null,null,null,null,null,"","",""]
[1336,null,"H11",null,null,"",null,null,null,null,null,null,null,"","",""]
[1337,null,"A12",null,null,"",null,null,null,null,null,null,null,"","",""]
[1338,null,"B12",null,null,"",null,null,null,null,null,null,null,"","",""]
[1339,null,"C12",null,null,"",null,null,null,null,null,null,null,"","",""]
[1340,null,"D12",null,null,"",null,null,null,null,null,null,null,"","",""]
[1341,null,"E12",null,null,"",null,null,null,null,null,null,null,"","",""]
[1342,null,"F12",null,null,"",null,null,null,null,null,null,null,"","",""]
[1343,null,"G12",null,null,"",null,null,null,null,null,null,null,"","",""]
[1344,null,"H12",null,null,"",null,null,null,null,null,null,null,"","",""]
[1345,null,"A01",null,null,"",null,null,null,null,null,null,null,"","",""]
[1346,null,"B01",null,null,{"$f":"IF($D$17<>\"\",$D$17,\"\")","v":""},null,null,null,null,null,null,null,{"$f":"IF($D$14<>\"\",$D$14,\"\")","v":""},{"$f":"IF($D$15<>\"\",$D$15,\"\")","v":""},{"$f":"IF($D$16<>\"\",$D$16,\"\")","v":""}]
[1347,null,"C01",null,null,"",null,null,null,null,null,null,null,"","",""]
[1348,null,"D01",null,null,"",null,null,null,null,null,null,null,"","",""]
[1349,null,"E01",null,null,"",null,null,null,null,null,null,null,"","",""]
[1350,null,"F01",null,null,"",null,null,null,null,null,null,null,"","",""]
[1351,null,"G01",null,null,"",null,null,null,null,null,null,null,"","",""]
[1352,null,"H01",null,null,"",null,null,null,null,null,null,null,"","",""]
[1353,null,"A02",null,null,"",null,null,null,null,null,null,null,"","",""]
[1354,null,"B02",null,null,"",null,null,null,null,null,null,null,"","",""]
[1355,null,"C02",null,null,"",null,null,null,null,null,null,null,"","",""]
[1356,null,"D02",null,null,"",null,null,null,null,null,null,null,"","",""]
[1357,null,"E02",null,null,"",null,null,null,null,null,null,null,"","",""]
[1358,null,"F02",null,null,"",null,null,null,null,null,null,null,"","",""]
[1359,null,"G02",null,null,"",null,null,null,null,null,null,null,"","",""]
[1360,null,"H02",null,null,"",null,null,null,null,null,null,null,"","",""]
[1361,null,"A03",null,null,"",null,null,null,null,null,null,null,"","",""]
[1362,null,"B03",null,null,"",null,null,null,null,null,null,null,"","",""]
[1363,null,"C03",null,null,"",null,null,null,null,null,null,null,"","",""]
[1364,null,"D03",null,null,"",null,null,null,null,null,null,null,"","",""]
[1365,null,"E03",null,null,"",null,null,null,null,null,null,null,"","",""]
[1366,null,"F03",null,null,"",null,null,null,null,null,null,null,"","",""]
[1367,null,"G03",null,null,"",null,null,null,null,null,null,null,"","",""]
[1368,null,"H03",null,null,"",null,null,null,null,null,null,null,"","",""]
[1369,null,"A04",null,null,"",null,null,null,null,null,null,null,"","",""]
[1370,null,"B04",null,null,"",null,null,null,null,null,null,null,"","",""]
[1371,null,"C04",null,null,"",null,null,null,null,null,null,null,"","",""]
[1372,null,"D04",null,null,"",null,null,null,null,null,null,null,"","",""]
[1373,null,"E04",null,null,"",null,null,null,null,null,null,null,"","",""]
[1374,null,"F04",null,null,"",null,null,null,null,null,null,null,"","",""]
[1375,null,"G04",null,null,"",null,null,null,null,null,null,null,"","",""]
[1376,null,"H04",null,null,"",null,null,null,null,null,null,null,"","",""]
[1377,null,"A05",null,null,"",null,null,null,null,null,null,null,"","",""]
[1378,null,"B05",null,null,"",null,null,null,null,null,null,null,"","",""]
[1379,null,"C05",null,null,"",null,null,null,null,null,null,null,"","",""]
[1380,null,"D05",null,null,"",null,null,null,null,null,null,null,"","",""]
[1381,null,"E05",null,null,"",null,null,null,null,null,null,null,"","",""]
[1382,null,"F05",null,null,"",null,null,null,null,null,null,null,"","",""]
[1383,null,"G05",null,null,"",null,null,null,null,null,null,null,"","",""]
[1384,null,"H05",null,null,"",null,null,null,null,null,null,null,"","",""]
[1385,null,"A06",null,null,"",null,null,null,null,null,null,null,"","",""]
[1386,null,"B06",null,null,"",null,null,null,null,null,null,null,"","",""]
[1387,null,"C06",null,null,"",null,null,null,null,null,null,null,"","",""]
[1388,null,"D06",null,null,"",null,null,null,null,null,null,null,"","",""]
[1389,null,"E06",null,null,"",null,null,null,null,null,null,null,"","",""]
[1390,null,"F06",null,null,"",null,null,null,null,null,null,null,"","",""]
[1391,null,"G06",null,null,"",null,null,null,null,null,null,null,"","",""]
[1392,null,"H06",null,null,"",null,null,null,null,null,null,null,"","",""]
[1393,null,"A07",null,null,"",null,null,null,null,null,null,null,"","",""]
[1394,null,"B07",null,null,"",null,null,null,null,null,null,null,"","",""]
[1395,null,"C07",null,null,"",null,null,null,null,null,null,null,"","",""]
[1396,null,"D07",null,null,"",null,null,null,null,null,null,null,"","",""]
[1397,null,"E07",null,null,"",null,null,null,null,null,null,null,"","",""]
[1398,null,"F07",null,null,"",null,null,null,null,null,null,null,"","",""]
[1399,null,"G07",null,null,"",null,null,null,null,null,null,null,"","",""]
[1400,null,"H07",null,null,"",null,null,null,null,null,null,null,"","",""]
[1401,null,"A08",null,null,"",null,null,null,null,null,null,null,"","",""]
[1402,null,"B08",null,null,"",null,null,null,null,null,null,null,"","",""]
[1403,null,"C08",null,null,"",null,null,null,null,null,null,null,"","",""]
[1404,null,"D08",null,null,"",null,null,null,null,null,null,null,"","",""]
[1405,null,"E08",null,null,"",null,null,null,null,null,null,null,"","",""]
[1406,null,"F08",null,null,"",null,null,null,null,null,null,null,"","",""]
[1407,null,"G08",null,null,"",null,null,null,null,null,null,null,"","",""]
[1408,null,"H08",null,null,"",null,null,null,null,null,null,null,"","",""]
[1409,null,"A09",null,null,"",null,null,null,null,null,null,null,"","",""]
[1410,null,"B09",null,null,{"$f":"IF($D$17<>\"\",$D$17,\"\")","v":""},null,null,null,null,null,null,null,{"$f":"IF($D$14<>\"\",$D$14,\"\")","v":""},{"$f":"IF($D$15<>\"\",$D$15,\"\")","v":""},{"$f":"IF($D$16<>\"\",$D$16,\"\")","v":""}]
[1411,null,"C09",null,null,"",null,null,null,null,null,null,null,"","",""]
[1412,null,"D09",null,null,"",null,null,null,null,null,null,null,"","",""]
[1413,null,"E09",null,null,"",null,null,null,null,null,null,null,"","",""]
[1414,null,"F09",null,null,"",null,null,null,null,null,null,null,"","",""]
[1415,null,"G09",null,null,"",null,null,null,null,null,null,null,"","",""]
[1416,null,"H09",null,null,"",null,null,null,null,null,null,null,"","",""]
[1417,null,"A10",null,null,"",null,null,null,null,null,null,null,"","",""]
[1418,null,"B10",null,null,"",null,null,null,null,null,null,null,"","",""]
[1419,null,"C10",null,null,"",null,null,null,null,null,null,null,"","",""]
[1420,null,"D10",null,null,"",null,null,null,null,null,null,null,"","",""]
[1421,null,"E10",null,null,"",null,null,null,null,null,null,null,"","",""]
[1422,null,"F10",null,null,"",null,null,null,null,null,null,null,"","",""]
[1423,null,"G10",null,null,"",null,null,null,null,null,null,null,"","",""]
[1424,null,"H10",null,null,"",null,null,null,null,null,null,null,"","",""]
[1425,null,"A11",null,null,"",null,null,null,null,null,null,null,"","",""]
[1426,null,"B11",null,null,"",null,null,null,null,null,null,null,"","",""]
[1427,null,"C11",null,null,"",null,null,null,null,null,null,null,"","",""]
[1428,null,"D11",null,null,"",null,null,null,null,null,null,null,"","",""]
[1429,null,"E11",null,null,"",null,null,null,null,null,null,null,"","",""]
[1430,null,"F11",null,null,"",null,null,null,null,null,null,null,"","",""]
[1431,null,"G11",null,null,"",null,null,null,null,null,null,null,"","",""]
[1432,null,"H11",null,null,"",null,null,null,null,null,null,null,"","",""]
[1433,null,"A12",null,null,"",null,null,null,null,null,null,null,"","",""]
[1434,null,"B12",null,null,"",null,null,null,null,null,null,null,"","",""]
[1435,null,"C12",null,null,"",null,null,null,null,null,null,null,"","",""]
[1436,null,"D12",null,null,"",null,null,null,null,null,null,null,"","",""]
[1437,null,"E12",null,null,"",null,null,null,null,null,null,null,"","",""]
[1438,null,"F12",null,null,"",null,null,null,null,null,null,null,"","",""]
[1439,null,"G12",null,null,"",null,null,null,null,null,null,null,"","",""]
[1440,null,"H12",null,null,"",null,null,null,null,null,null,null,"","",""]
[1441,null,"A01",null,null,"",null,null,null,null,null,null,null,"","",""]
[1442,null,"B01",null,null,"",null,null,null,null,null,null,null,"","",""]
[1443,null,"C01",null,null,"",null,null,null,null,null,null,null,"","",""]
[1444,null,"D01",null,null,"",null,null,null,null,null,null,null,"","",""]
[1445,null,"E01",null,null,"",null,null,null,null,null,null,null,"","",""]
[1446,null,"F01",null,null,"",null,null,null,null,null,null,null,"","",""]
[1447,null,"G01",null,null,"",null,null,null,null,null,null,null,"","",""]
[1448,null,"H01",null,null,"",null,null,null,null,null,null,null,"","",""]
[1449,null,"A02",null,null,"",null,null,null,null,null,null,null,"","",""]
[1450,null,"B02",null,null,"",null,null,null,null,null,null,null,"","",""]
[1451,null,"C02",null,null,"",null,null,null,null,null,null,null,"","",""]
[1452,null,"D02",null,null,"",null,null,null,null,null,null,null,"","",""]
[1453,null,"E02",null,null,"",null,null,null,null,null,null,null,"","",""]
[1454,null,"F02",null,null,"",null,null,null,null,null,null,null,"","",""]
[1455,null,"G02",null,null,"",null,null,null,null,null,null,null,"","",""]
[1456,null,"H02",null,null,"",null,null,null,null,null,null,null,"","",""]
[1457,null,"A03",null,null,"",null,null,null,null,null,null,null,"","",""]
[1458,null,"B03",null,null,"",null,null,null,null,null,null,null,"","",""]
[1459,null,"C03",null,null,"",null,null,null,null,null,null,null,"","",""]
[1460,null,"D03",null,null,"",null,null,null,null,null,null,null,"","",""]
[1461,null,"E03",null,null,"",null,null,null,null,null,null,null,"","",""]
[1462,null,"F03",null,null,"",null,null,null,null,null,null,null,"","",""]
[1463,null,"G03",null,null,"",null,null,null,null,null,null,null,"","",""]
[1464,null,"H03",null,null,"",null,null,null,null,null,null,null,"","",""]
[1465,null,"A04",null,null,"",null,null,null,null,null,null,null,"","",""]
[1466,null,"B04",null,null,"",null,null,null,null,null,null,null,"","",""]
[1467,null,"C04",null,null,"",null,null,null,null,null,null,null,"","",""]
[1468,null,"D04",null,null,"",null,null,null,null,null,null,null,"","",""]
[1469,null,"E04",null,null,"",null,null,null,null,null,null,null,"","",""]
[1470,null,"F04",null,null,"",null,null,null,null,null,null,null,"","",""]
[1471,null,"G04",null,null,"",null,null,null,null,null,null,null,"","",""]
[1472,null,"H04",null,null,"",null,null,null,null,null,null,null,"","",""]
[1473,null,"A05",null,null,"",null,null,null,null,null,null,null,"","",""]
[1474,null,"B05",null,null,{"$f":"IF($D$17<>\"\",$D$17,\"\")","v":""},null,null,null,null,null,null,null,{"$f":"IF($D$14<>\"\",$D$14,\"\")","v":""},{"$f":"IF($D$15<>\"\",$D$15,\"\")","v":""},{"$f":"IF($D$16<>\"\",$D$16,\"\")","v":""}]
[1475,null,"C05",null,null,"",null,null,null,null,null,null,null,"","",""]
[1476,null,"D05",null,null,"",null,null,null,null,null,null,null,"","",""]
[1477,null,"E05",null,null,"",null,null,null,null,null,null,null,"","",""]
[1478,null,"F05",null,null,"",null,null,null,null,null,null,null,"","",""]
[1479,null,"G05",null,null,"",null,null,null,null,null,null,null,"","",""]
[1480,null,"H05",null,null,"",null,null,null,null,null,null,null,"","",""]
[1481,null,"A06",null,null,"",null,null,null,null,null,null,null,"","",""]
[1482,null,"B06",null,null,"",null,null,null,null,null,null,null,"","",""]
[1483,null,"C06",null,null,"",null,null,null,null,null,null,null,"","",""]
[1484,null,"D06",null,null,"",null,null,null,null,null,null,null,"","",""]
[1485,null,"E06",null,null,"",null,null,null,null,null,null,null,"","",""]
[1486,null,"F06",null,null,"",null,null,null,null,null,null,null,"","",""]
[1487,null,"G06",null,null,"",null,null,null,null,null,null,null,"","",""]
[1488,null,"H06",null,null,"",null,null,null,null,null,null,null,"","",""]
[1489,null,"A07",null,null,"",null,null,null,null,null,null,null,"","",""]
[1490,null,"B07",null,null,"",null,null,null,null,null,null,null,"","",""]
[1491,null,"C07",null,null,"",null,null,null,null,null,null,null,"","",""]
[1492,null,"D07",null,null,"",null,null,null,null,null,null,null,"","",""]
[1493,null,"E07",null,null,"",null,null,null,null,null,null,null,"","",""]
[1494,null,"F07",null,null,"",null,null,null,null,null,null,null,"","",""]
[1495,null,"G07",null,null,"",null,null,null,null,null,null,null,"","",""]
[1496,null,"H07",null,null,"",null,null,null,null,null,null,null,"","",""]
[1497,null,"A08",null,null,"",null,null,null,null,null,null,null,"","",""]
[1498,null,"B08",null,null,"",null,null,null,null,null,null,null,"","",""]
[1499,null,"C08",null,null,"",null,null,null,null,null,null,null,"","",""]
[1500,null,"D08",null,null,"",null,null,null,null,null,null,null,"","",""]
[1501,null,"E08",null,null,"",null,null,null,null,null,null,null,"","",""]
[1502,null,"F08",null,null,"",null,null,null,null,null,null,null,"","",""]
[1503,null,"G08",null,null,"",null,null,null,null,null,null,null,"","",""]
[1504,null,"H08",null,null,"",null,null,null,null,null,null,null,"","",""]
[1505,null,"A09",null,null,"",null,null,null,null,null,null,null,"","",""]
[1506,null,"B09",null,null,"",null,null,null,null,null,null,null,"","",""]
[1507,null,"C09",null,null,"",null,null,null,null,null,null,null,"","",""]
[1508,null,"D09",null,null,"",null,null,null,null,null,null,null,"","",""]
[1509,null,"E09",null,null,"",null,null,null,null,null,null,null,"","",""]
[1510,null,"F09",null,null,"",null,null,null,null,null,null,null,"","",""]
[1511,null,"G09",null,null,"",null,null,null,null,null,null,null,"","",""]
[1512,null,"H09",null,null,"",null,null,null,null,null,null,null,"","",""]
[1513,null,"A10",null,null,"",null,null,null,null,null,null,null,"","",""]
[1514,null,"B10",null,null,"",null,null,null,null,null,null,null,"","",""]
[1515,null,"C10",null,null,"",null,null,null,null,null,null,null,"","",""]
[1516,null,"D10",null,null,"",null,null,null,null,null,null,null,"","",""]
[1517,null,"E10",null,null,"",null,null,null,null,null,null,null,"","",""]
[1518,null,"F10",null,null,"",null,null,null,null,null,null,null,"","",""]
[1519,null,"G10",null,null,"",null,null,null,null,null,null,null,"","",""]
[1520,null,"H10",null,null,"",null,null,null,null,null,null,null,"","",""]
[1521,null,"A11",null,null,"",null,null,null,null,null,null,null,"","",""]
[1522,null,"B11",null,null,"",null,null,null,null,null,null,null,"","",""]
[1523,null,"C11",null,null,"",null,null,null,null,null,null,null,"","",""]
[1524,null,"D11",null,null,"",null,null,null,null,null,null,null,"","",""]
[1525,null,"E11",null,null,"",null,null,null,null,null,null,null,"","",""]
[1526,null,"F11",null,null,"",null,null,null,null,null,null,null,"","",""]
[1527,null,"G11",null,null,"",null,null,null,null,null,null,null,"","",""]
[1528,null,"H11",null,null,"",null,null,null,null,null,null,null,"","",""]
[1529,null,"A12",null,null,"",null,null,null,null,null,null,null,"","",""]
[1530,null,"B12",null,null,"",null,null,null,null,null,null,null,"","",""]
[1531,null,"C12",null,null,"",null,null,null,null,null,null,null,"","",""]
[1532,null,"D12",null,null,"",null,null,null,null,null,null,null,"","",""]
[1533,null,"E12",null,null,"",null,null,null,null,null,null,null,"","",""]
[1534,null,"F12",null,null,"",null,null,null,null,null,null,null,"","",""]
[1535,null,"G12",null,null,"",null,null,null,null,null,null,null,"","",""]
[1536,null,"H12",null,null,"",null,null,null,null,null,null,null,"","",""]
[1537,null,"A01",null,null,"",null,null,null,null,null,null,null,"","",""]
[1538,null,"B01",null,null,{"$f":"IF($D$17<>\"\",$D$17,\"\")","v":""},null,null,null,null,null,null,null,{"$f":"IF($D$14<>\"\",$D$14,\"\")","v":""},{"$f":"IF($D$15<>\"\",$D$15,\"\")","v":""},{"$f":"IF($D$16<>\"\",$D$16,\"\")","v":""}]
[1539,null,"C01",null,null,"",null,null,null,null,null,null,null,"","",""]
[1540,null,"D01",null,null,"",null,null,null,null,null,null,null,"","",""]
[1541,null,"E01",null,null,"",null,null,null,null,null,null,null,"","",""]
[1542,null,"F01",null,null,"",null,null,null,null,null,null,null,"","",""]
[1543,null,"G01",null,null,"",null,null,null,null,null,null,null,"","",""]
[1544,null,"H01",null,null,"",null,null,null,null,null,null,null,"","",""]
[1545,null,"A02",null,null,"",null,null,null,null,null,null,null,"","",""]
[1546,null,"B02",null,null,"",null,null,null,null,null,null,null,"","",""]
[1547,null,"C02",null,null,"",null,null,null,null,null,null,null,"","",""]
[1548,null,"D02",null,null,"",null,null,null,null,null,null,null,"","",""]
[1549,null,"E02",null,null,"",null,null,null,null,null,null,null,"","",""]
[1550,null,"F02",null,null,"",null,null,null,null,null,null,null,"","",""]
[1551,null,"G02",null,null,"",null,null,null,null,null,null,null,"","",""]
[1552,null,"H02",null,null,"",null,null,null,null,null,null,null,"","",""]
[1553,null,"A03",null,null,"",null,null,null,null,null,null,null,"","",""]
[1554,null,"B03",null,null,"",null,null,null,null,null,null,null,"","",""]
[1555,null,"C03",null,null,"",null,null,null,null,null,null,null,"","",""]
[1556,null,"D03",null,null,"",null,null,null,null,null,null,null,"","",""]
[1557,null,"E03",null,null,"",null,null,null,null,null,null,null,"","",""]
[1558,null,"F03",null,null,"",null,null,null,null,null,null,null,"","",""]
[1559,null,"G03",null,null,"",null,null,null,null,null,null,null,"","",""]
[1560,null,"H03",null,null,"",null,null,null,null,null,null,null,"","",""]
[1561,null,"A04",null,null,"",null,null,null,null,null,null,null,"","",""]
[1562,null,"B04",null,null,"",null,null,null,null,null,null,null,"","",""]
[1563,null,"C04",null,null,"",null,null,null,null,null,null,null,"","",""]
[1564,null,"D04",null,null,"",null,null,null,null,null,null,null,"","",""]
[1565,null,"E04",null,null,"",null,null,null,null,null,null,null,"","",""]
[1566,null,"F04",null,null,"",null,null,null,null,null,null,null,"","",""]
[1567,null,"G04",null,null,"",null,null,null,null,null,null,null,"","",""]
[1568,null,"H04",null,null,"",null,null,null,null,null,null,null,"","",""]
[1569,null,"A05",null,null,"",null,null,null,null,null,null,null,"","",""]
[1570,null,"B05",null,null,"",null,null,null,null,null,null,null,"","",""]
[1571,null,"C05",null,null,"",null,null,null,null,null,null,null,"","",""]
[1572,null,"D05",null,null,"",null,null,null,null,null,null,null,"","",""]
[1573,null,"E05",null,null,"",null,null,null,null,null,null,null,"","",""]
[1574,null,"F05",null,null,"",null,null,null,null,null,null,null,"","",""]
[1575,null,"G05",null,null,"",null,null,null,null,null,null,null,"","",""]
[1576,null,"H05",null,null,"",null,null,null,null,null,null,null,"","",""]
[1577,null,"A06",null,null,"",null,null,null,null,null,null,null,"","",""]
[1578,null,"B06",null,null,"",null,null,null,null,null,null,null,"","",""]
[1579,null,"C06",null,null,"",null,null,null,null,null,null,null,"","",""]
[1580,null,"D06",null,null,"",null,null,null,null,null,null,null,"","",""]
[1581,null,"E06",null,null,"",null,null,null,null,null,null,null,"","",""]
[1582,null,"F06",null,null,"",null,null,null,null,null,null,null,"","",""]
[1583,null,"G06",null,null,"",null,null,null,null,null,null,null,"","",""]
[1584,null,"H06",null,null,"",null,null,null,null,null,null,null,"","",""]
[1585,null,"A07",null,null,"",null,null,null,null,null,null,null,"","",""]
[1586,null,"B07",null,null,"",null,null,null,null,null,null,null,"","",""]
[1587,null,"C07",null,null,"",null,null,null,null,null,null,null,"","",""]
[1588,null,"D07",null,null,"",null,null,null,null,null,null,null,"","",""]
[1589,null,"E07",null,null,"",null,null,null,null,null,null,null,"","",""]
[1590,null,"F07",null,null,"",null,null,null,null,null,null,null,"","",""]
[1591,null,"G07",null,null,"",null,null,null,null,null,null,null,"","",""]
[1592,null,"H07",null,null,"",null,null,null,null,null,null,null,"","",""]
[1593,null,"A08",null,null,"",null,null,null,null,null,null,null,"","",""]
[1594,null,"B08",null,null,"",null,null,null,null,null,null,null,"","",""]
[1595,null,"C08",null,null,"",null,null,null,null,null,null,null,"","",""]
[1596,null,"D08",null,null,"",null,null,null,null,null,null,null,"","",""]
[1597,null,"E08",null,null,"",null,null,null,null,null,null,null,"","",""]
[1598,null,"F08",null,null,"",null,null,null,null,null,null,null,"","",""]
[1599,null,"G08",null,null,"",null,null,null,null,null,null,null,"","",""]
[1600,null,"H08",null,null,"",null,null,null,null,null,null,null,"","",""]
[1601,null,"A09",null,null,"",null,null,null,null,null,null,null,"","",""]
[1602,null,"B09",null,null,{"$f":"IF($D$17<>\"\",$D$17,\"\")","v":""},null,null,null,null,null,null,null,{"$f":"IF($D$14<>\"\",$D$14,\"\")","v":""},{"$f":"IF($D$15<>\"\",$D$15,\"\")","v":""},{"$f":"IF($D$16<>\"\",$D$16,\"\")","v":""}]
[1603,null,"C09",null,null,"",null,null,null,null,null,null,null,"","",""]
[1604,null,"D09",null,null,"",null,null,null,null,null,null,null,"","",""]
[1605,null,"E09",null,null,"",null,null,null,null,null,null,null,"","",""]
[1606,null,"F09",null,null,"",null,null,null,null,null,null,null,"","",""]
[1607,null,"G09",null,null,"",null,null,null,null,null,null,null,"","",""]
[1608,null,"H09",null,null,"",null,null,null,null,null,null,null,"","",""]
[1609,null,"A10",null,null,"",null,null,null,null,null,null,null,"","",""]
[1610,null,"B10",null,null,"",null,null,null,null,null,null,null,"","",""]
[1611,null,"C10",null,null,"",null,null,null,null,null,null,null,"","",""]
[1612,null,"D10",null,null,"",null,null,null,null,null,null,null,"","",""]
[1613,null,"E10",null,null,"",null,null,null,null,null,null,null,"","",""]
[1614,null,"F10",null,null,"",null,null,null,null,null,null,null,"","",""]
[1615,null,"G10",null,null,"",null,null,null,null,null,null,null,"","",""]
[1616,null,"H10",null,null,"",null,null,null,null,null,null,null,"","",""]
[1617,null,"A11",null,null,"",null,null,null,null,null,null,null,"","",""]
[1618,null,"B11",null,null,"",null,null,null,null,null,null,null,"","",""]
[1619,null,"C11",null,null,"",null,null,null,null,null,null,null,"","",""]
[1620,null,"D11",null,null,"",null,null,null,null,null,null,null,"","",""]
[1621,null,"E11",null,null,"",null,null,null,null,null,null,null,"","",""]
[1622,null,"F11",null,null,"",null,null,null,null,null,null,null,"","",""]
[1623,null,"G11",null,null,"",null,null,null,null,null,null,null,"","",""]
[1624,null,"H11",null,null,"",null,null,null,null,null,null,null,"","",""]
[1625,null,"A12",null,null,"",null,null,null,null,null,null,null,"","",""]
[1626,null,"B12",null,null,"",null,null,null,null,null,null,null,"","",""]
[1627,null,"C12",null,null,"",null,null,null,null,null,null,null,"","",""]
[1628,null,"D12",null,null,"",null,null,null,null,null,null,null,"","",""]
[1629,null,"E12",null,null,"",null,null,null,null,null,null,null,"","",""]
[1630,null,"F12",null,null,"",null,null,null,null,null,null,null,"","",""]
[1631,null,"G12",null,null,"",null,null,null,null,null,null,null,"","",""]
[1632,null,"H12",null,null,"",null,null,null,null,null,null,null,"","",""]
[1633,null,"A01",null,null,"",null,null,null,null,null,null,null,"","",""]
[1634,null,"B01",null,null,"",null,null,null,null,null,null,null,"","",""]
[1635,null,"C01",null,null,"",null,null,null,null,null,null,null,"","",""]
[1636,null,"D01",null,null,"",null,null,null,null,null,null,null,"","",""]
[1637,null,"E01",null,null,"",null,null,null,null,null,null,null,"","",""]
[1638,null,"F01",null,null,"",null,null,null,null,null,null,null,"","",""]
[1639,null,"G01",null,null,"",null,null,null,null,null,null,null,"","",""]
[1640,null,"H01",null,null,"",null,null,null,null,null,null,null,"","",""]
[1641,null,"A02",null,null,"",null,null,null,null,null,null,null,"","",""]
[1642,null,"B02",null,null,"",null,null,null,null,null,null,null,"","",""]
[1643,null,"C02",null,null,"",null,null,null,null,null,null,null,"","",""]
[1644,null,"D02",null,null,"",null,null,null,null,null,null,null,"","",""]
[1645,null,"E02",null,null,"",null,null,null,null,null,null,null,"","",""]
[1646,null,"F02",null,null,"",null,null,null,null,null,null,null,"","",""]
[1647,null,"G02",null,null,"",null,null,null,null,null,null,null,"","",""]
[1648,null,"H02",null,null,"",null,null,null,null,null,null,null,"","",""]
[1649,null,"A03",null,null,"",null,null,null,null,null,null,null,"","",""]
[1650,null,"B03",null,null,"",null,null,null,null,null,null,null,"","",""]
[1651,null,"C03",null,null,"",null,null,null,null,null,null,null,"","",""]
[1652,null,"D03",null,null,"",null,null,null,null,null,null,null,"","",""]
[1653,null,"E03",null,null,"",null,null,null,null,null,null,null,"","",""]
[1654,null,"F03",null,null,"",null,null,null,null,null,null,null,"","",""]
[1655,null,"G03",null,null,"",null,null,null,null,null,null,null,"","",""]
[1656,null,"H03",null,null,"",null,null,null,null,null,null,null,"","",""]
[1657,null,"A04",null,null,"",null,null,null,null,null,null,null,"","",""]
[1658,null,"B04",null,null,"",null,null,null,null,null,null,null,"","",""]
[1659,null,"C04",null,null,"",null,null,null,null,null,null,null,"","",""]
[1660,null,"D04",null,null,"",null,null,null,null,null,null,null,"","",""]
[1661,null,"E04",null,null,"",null,null,null,null,null,null,null,"","",""]
[1662,null,"F04",null,null,"",null,null,null,null,null,null,null,"","",""]
[1663,null,"G04",null,null,"",null,null,null,null,null,null,null,"","",""]
[1664,null,"H04",null,null,"",null,null,null,null,null,null,null,"","",""]
[1665,null,"A05",null,null,"",null,null,null,null,null,null,null,"","",""]
[1666,null,"B05",null,null,{"$f":"IF($D$17<>\"\",$D$17,\"\")","v":""},null,null,null,null,null,null,null,{"$f":"IF($D$14<>\"\",$D$14,\"\")","v":""},{"$f":"IF($D$15<>\"\",$D$15,\"\")","v":""},{"$f":"IF($D$16<>\"\",$D$16,\"\")","v":""}]
[1667,null,"C05",null,null,"",null,null,null,null,null,null,null,"","",""]
[1668,null,"D05",null,null,"",null,null,null,null,null,null,null,"","",""]
[1669,null,"E05",null,null,"",null,null,null,null,null,null,null,"","",""]
[1670,null,"F05",null,null,"",null,null,null,null,null,null,null,"","",""]
[1671,null,"G05",null,null,"",null,null,null,null,null,null,null,"","",""]
[1672,null,"H05",null,null,"",null,null,null,null,null,null,null,"","",""]
[1673,null,"A06",null,null,"",null,null,null,null,null,null,null,"","",""]
[1674,null,"B06",null,null,"",null,null,null,null,null,null,null,"","",""]
[1675,null,"C06",null,null,"",null,null,null,null,null,null,null,"","",""]
[1676,null,"D06",null,null,"",null,null,null,null,null,null,null,"","",""]
[1677,null,"E06",null,null,"",null,null,null,null,null,null,null,"","",""]
[1678,null,"F06",null,null,"",null,null,null,null,null,null,null,"","",""]
[1679,null,"G06",null,null,"",null,null,null,null,null,null,null,"","",""]
[1680,null,"H06",null,null,"",null,null,null,null,null,null,null,"","",""]
[1681,null,"A07",null,null,"",null,null,null,null,null,null,null,"","",""]
[1682,null,"B07",null,null,"",null,null,null,null,null,null,null,"","",""]
[1683,null,"C07",null,null,"",null,null,null,null,null,null,null,"","",""]
[1684,null,"D07",null,null,"",null,null,null,null,null,null,null,"","",""]
[1685,null,"E07",null,null,"",null,null,null,null,null,null,null,"","",""]
[1686,null,"F07",null,null,"",null,null,null,null,null,null,null,"","",""]
[1687,null,"G07",null,null,"",null,null,null,null,null,null,null,"","",""]
[1688,null,"H07",null,null,"",null,null,null,null,null,null,null,"","",""]
[1689,null,"A08",null,null,"",null,null,null,null,null,null,null,"","",""]
[1690,null,"B08",null,null,"",null,null,null,null,null,null,null,"","",""]
[1691,null,"C08",null,null,"",null,null,null,null,null,null,null,"","",""]
[1692,null,"D08",null,null,"",null,null,null,null,null,null,null,"","",""]
[1693,null,"E08",null,null,"",null,null,null,null,null,null,null,"","",""]
[1694,null,"F08",null,null,"",null,null,null,null,null,null,null,"","",""]
[1695,null,"G08",null,null,"",null,null,null,null,null,null,null,"","",""]
[1696,null,"H08",null,null,"",null,null,null,null,null,null,null,"","",""]
[1697,null,"A09",null,null,"",null,null,null,null,null,null,null,"","",""]
[1698,null,"B09",null,null,"",null,null,null,null,null,null,null,"","",""]
[1699,null,"C09",null,null,"",null,null,null,null,null,null,null,"","",""]
[1700,null,"D09",null,null,"",null,null,null,null,null,null,null,"","",""]
[1701,null,"E09",null,null,"",null,null,null,null,null,null,null,"","",""]
[1702,null,"F09",null,null,"",null,null,null,null,null,null,null,"","",""]
[1703,null,"G09",null,null,"",null,null,null,null,null,null,null,"","",""]
[1704,null,"H09",null,null,"",null,null,null,null,null,null,null,"","",""]
[1705,null,"A10",null,null,"",null,null,null,null,null,null,null,"","",""]
[1706,null,"B10",null,null,"",null,null,null,null,null,null,null,"","",""]
[1707,null,"C10",null,null,"",null,null,null,null,null,null,null,"","",""]
[1708,null,"D10",null,null,"",null,null,null,null,null,null,null,"","",""]
[1709,null,"E10",null,null,"",null,null,null,null,null,null,null,"","",""]
[1710,null,"F10",null,null,"",null,null,null,null,null,null,null,"","",""]
[1711,null,"G10",null,null,"",null,null,null,null,null,null,null,"","",""]
[1712,null,"H10",null,null,"",null,null,null,null,null,null,null,"","",""]
[1713,null,"A11",null,null,"",null,null,null,null,null,null,null,"","",""]
[1714,null,"B11",null,null,"",null,null,null,null,null,null,null,"","",""]
[1715,null,"C11",null,null,"",null,null,null,null,null,null,null,"","",""]
[1716,null,"D11",null,null,"",null,null,null,null,null,null,null,"","",""]
[1717,null,"E11",null,null,"",null,null,null,null,null,null,null,"","",""]
[1718,null,"F11",null,null,"",null,null,null,null,null,null,null,"","",""]
[1719,null,"G11",null,null,"",null,null,null,null,null,null,null,"","",""]
[1720,null,"H11",null,null,"",null,null,null,null,null,null,null,"","",""]
[1721,null,"A12",null,null,"",null,null,null,null,null,null,null,"","",""]
[1722,null,"B12",null,null,"",null,null,null,null,null,null,null,"","",""]
[1723,null,"C12",null,null,"",null,null,null,null,null,null,null,"","",""]
[1724,null,"D12",null,null,"",null,null,null,null,null,null,null,"","",""]
[1725,null,"E12",null,null,"",null,null,null,null,null,null,null,"","",""]
[1726,null,"F12",null,null,"",null,null,null,null,null,null,null,"","",""]
[1727,null,"G12",null,null,"",null,null,null,null,null,null,null,"","",""]
[1728,null,"H12",null,null,"",null,null,null,null,null,null,null,"","",""]
[1729,null,"A01",null,null,"",null,null,null,null,null,null,null,"","",""]
[1730,null,"B01",null,null,{"$f":"IF($D$17<>\"\",$D$17,\"\")","v":""},null,null,null,null,null,null,null,{"$f":"IF($D$14<>\"\",$D$14,\"\")","v":""},{"$f":"IF($D$15<>\"\",$D$15,\"\")","v":""},{"$f":"IF($D$16<>\"\",$D$16,\"\")","v":""}]
[1731,null,"C01",null,null,"",null,null,null,null,null,null,null,"","",""]
[1732,null,"D01",null,null,"",null,null,null,null,null,null,null,"","",""]
[1733,null,"E01",null,null,"",null,null,null,null,null,null,null,"","",""]
[1734,null,"F01",null,null,"",null,null,null,null,null,null,null,"","",""]
[1735,null,"G01",null,null,"",null,null,null,null,null,null,null,"","",""]
[1736,null,"H01",null,null,"",null,null,null,null,null,null,null,"","",""]
[1737,null,"A02",null,null,"",null,null,null,null,null,null,null,"","",""]
[1738,null,"B02",null,null,"",null,null,null,null,null,null,null,"","",""]
[1739,null,"C02",null,null,"",null,null,null,null,null,null,null,"","",""]
[1740,null,"D02",null,null,"",null,null,null,null,null,null,null,"","",""]
[1741,null,"E02",null,null,"",null,null,null,null,null,null,null,"","",""]
[1742,null,"F02",null,null,"",null,null,null,null,null,null,null,"","",""]
[1743,null,"G02",null,null,"",null,null,null,null,null,null,null,"","",""]
[1744,null,"H02",null,null,"",null,null,null,null,null,null,null,"","",""]
[1745,null,"A03",null,null,"",null,null,null,null,null,null,null,"","",""]
[1746,null,"B03",null,null,"",null,null,null,null,null,null,null,"","",""]
[1747,null,"C03",null,null,"",null,null,null,null,null,null,null,"","",""]
[1748,null,"D03",null,null,"",null,null,null,null,null,null,null,"","",""]
[1749,null,"E03",null,null,"",null,null,null,null,null,null,null,"","",""]
[1750,null,"F03",null,null,"",null,null,null,null,null,null,null,"","",""]
[1751,null,"G03",null,null,"",null,null,null,null,null,null,null,"","",""]
[1752,null,"H03",null,null,"",null,null,null,null,null,null,null,"","",""]
[1753,null,"A04",null,null,"",null,null,null,null,null,null,null,"","",""]
[1754,null,"B04",null,null,"",null,null,null,null,null,null,null,"","",""]
[1755,null,"C04",null,null,"",null,null,null,null,null,null,null,"","",""]
[1756,null,"D04",null,null,"",null,null,null,null,null,null,null,"","",""]
[1757,null,"E04",null,null,"",null,null,null,null,null,null,null,"","",""]
[1758,null,"F04",null,null,"",null,null,null,null,null,null,null,"","",""]
[1759,null,"G04",null,null,"",null,null,null,null,null,null,null,"","",""]
[1760,null,"H04",null,null,"",null,null,null,null,null,null,null,"","",""]
[1761,null,"A05",null,null,"",null,null,null,null,null,null,null,"","",""]
[1762,null,"B05",null,null,"",null,null,null,null,null,null,null,"","",""]
[1763,null,"C05",null,null,"",null,null,null,null,null,null,null,"","",""]
[1764,null,"D05",null,null,"",null,null,null,null,null,null,null,"","",""]
[1765,null,"E05",null,null,"",null,null,null,null,null,null,null,"","",""]
[1766,null,"F05",null,null,"",null,null,null,null,null,null,null,"","",""]
[1767,null,"G05",null,null,"",null,null,null,null,null,null,null,"","",""]
[1768,null,"H05",null,null,"",null,null,null,null,null,null,null,"","",""]
[1769,null,"A06",null,null,"",null,null,null,null,null,null,null,"","",""]
[1770,null,"B06",null,null,"",null,null,null,null,null,null,null,"","",""]
[1771,null,"C06",null,null,"",null,null,null,null,null,null,null,"","",""]
[1772,null,"D06",null,null,"",null,null,null,null,null,null,null,"","",""]
[1773,null,"E06",null,null,"",null,null,null,null,null,null,null,"","",""]
[1774,null,"F06",null,null,"",null,null,null,null,null,null,null,"","",""]
[1775,null,"G06",null,null,"",null,null,null,null,null,null,null,"","",""]
[1776,null,"H06",null,null,"",null,null,null,null,null,null,null,"","",""]
[1777,null,"A07",null,null,"",null,null,null,null,null,null,null,"","",""]
[1778,null,"B07",null,null,"",null,null,null,null,null,null,null,"","",""]
[1779,null,"C07",null,null,"",null,null,null,null,null,null,null,"","",""]
[1780,null,"D07",null,null,"",null,null,null,null,null,null,null,"","",""]
[1781,null,"E07",null,null,"",null,null,null,null,null,null,null,"","",""]
[1782,null,"F07",null,null,"",null,null,null,null,null,null,null,"","",""]
[1783,null,"G07",null,null,"",null,null,null,null,null,null,null,"","",""]
[1784,null,"H07",null,null,"",null,null,null,null,null,null,null,"","",""]
[1785,null,"A08",null,null,"",null,null,null,null,null,null,null,"","",""]
[1786,null,"B08",null,null,"",null,null,null,null,null,null,null,"","",""]
[1787,null,"C08",null,null,"",null,null,null,null,null,null,null,"","",""]
[1788,null,"D08",null,null,"",null,null,null,null,null,null,null,"","",""]
[1789,null,"E08",null,null,"",null,null,null,null,null,null,null,"","",""]
[1790,null,"F08",null,null,"",null,null,null,null,null,null,null,"","",""]
[1791,null,"G08",null,null,"",null,null,null,null,null,null,null,"","",""]
[1792,null,"H08",null,null,"",null,null,null,null,null,null,null,"","",""]
[1793,null,"A09",null,null,"",null,null,null,null,null,null,null,"","",""]
[1794,null,"B09",null,null,{"$f":"IF($D$17<>\"\",$D$17,\"\")","v":""},null,null,null,null,null,null,null,{"$f":"IF($D$14<>\"\",$D$14,\"\")","v":""},{"$f":"IF($D$15<>\"\",$D$15,\"\")","v":""},{"$f":"IF($D$16<>\"\",$D$16,\"\")","v":""}]
[1795,null,"C09",null,null,"",null,null,null,null,null,null,null,"","",""]
[1796,null,"D09",null,null,"",null,null,null,null,null,null,null,"","",""]
[1797,null,"E09",null,null,"",null,null,null,null,null,null,null,"","",""]
[1798,null,"F09",null,null,"",null,null,null,null,null,null,null,"","",""]
[1799,null,"G09",null,null,"",null,null,null,null,null,null,null,"","",""]
[1800,null,"H09",null,null,"",null,null,null,null,null,null,null,"","",""]
[1801,null,"A10",null,null,"",null,null,null,null,null,null,null,"","",""]
[1802,null,"B10",null,null,"",null,null,null,null,null,null,null,"","",""]
[1803,null,"C10",null,null,"",null,null,null,null,null,null,null,"","",""]
[1804,null,"D10",null,null,"",null,null,null,null,null,null,null,"","",""]
[1805,null,"E10",null,null,"",null,null,null,null,null,null,null,"","",""]
[1806,null,"F10",null,null,"",null,null,null,null,null,null,null,"","",""]
[1807,null,"G10",null,null,"",null,null,null,null,null,null,null,"","",""]
[1808,null,"H10",null,null,"",null,null,null,null,null,null,null,"","",""]
[1809,null,"A11",null,null,"",null,null,null,null,null,null,null,"","",""]
[1810,null,"B11",null,null,"",null,null,null,null,null,null,null,"","",""]
[1811,null,"C11",null,null,"",null,null,null,null,null,null,null,"","",""]
[1812,null,"D11",null,null,"",null,null,null,null,null,null,null,"","",""]
[1813,null,"E11",null,null,"",null,null,null,null,null,null,null,"","",""]
[1814,null,"F11",null,null,"",null,null,null,null,null,null,null,"","",""]
[1815,null,"G11",null,null,"",null,null,null,null,null,null,null,"","",""]
[1816,null,"H11",null,null,"",null,null,null,null,null,null,null,"","",""]
[1817,null,"A12",null,null,"",null,null,null,null,null,null,null,"","",""]
[1818,null,"B12",null,null,"",null,null,null,null,null,null,null,"","",""]
[1819,null,"C12",null,null,"",null,null,null,null,null,null,null,"","",""]
[1820,null,"D12",null,null,"",null,null,null,null,null,null,null,"","",""]
[1821,null,"E12",null,null,"",null,null,null,null,null,null,null,"","",""]
[1822,null,"F12",null,null,"",null,null,null,null,null,null,null,"","",""]
[1823,null,"G12",null,null,"",null,null,null,null,null,null,null,"","",""]
[1824,null,"H12",null,null,"",null,null,null,null,null,null,null,"","",""]
[1825,null,"A01",null,null,"",null,null,null,null,null,null,null,"","",""]
[1826,null,"B01",null,null,"",null,null,null,null,null,null,null,"","",""]
[1827,null,"C01",null,null,"",null,null,null,null,null,null,null,"","",""]
[1828,null,"D01",null,null,"",null,null,null,null,null,null,null,"","",""]
[1829,null,"E01",null,null,"",null,null,null,null,null,null,null,"","",""]
[1830,null,"F01",null,null,"",null,null,null,null,null,null,null,"","",""]
[1831,null,"G01",null,null,"",null,null,null,null,null,null,null,"","",""]
[1832,null,"H01",null,null,"",null,null,null,null,null,null,null,"","",""]
[1833,null,"A02",null,null,"",null,null,null,null,null,null,null,"","",""]
[1834,null,"B02",null,null,"",null,null,null,null,null,null,null,"","",""]
[1835,null,"C02",null,null,"",null,null,null,null,null,null,null,"","",""]
[1836,null,"D02",null,null,"",null,null,null,null,null,null,null,"","",""]
[1837,null,"E02",null,null,"",null,null,null,null,null,null,null,"","",""]
[1838,null,"F02",null,null,"",null,null,null,null,null,null,null,"","",""]
[1839,null,"G02",null,null,"",null,null,null,null,null,null,null,"","",""]
[1840,null,"H02",null,null,"",null,null,null,null,null,null,null,"","",""]
[1841,null,"A03",null,null,"",null,null,null,null,null,null,null,"","",""]
[1842,null,"B03",null,null,"",null,null,null,null,null,null,null,"","",""]
[1843,null,"C03",null,null,"",null,null,null,null,null,null,null,"","",""]
[1844,null,"D03",null,null,"",null,null,null,null,null,null,null,"","",""]
[1845,null,"E03",null,null,"",null,null,null,null,null,null,null,"","",""]
[1846,null,"F03",null,null,"",null,null,null,null,null,null,null,"","",""]
[1847,null,"G03",null,null,"",null,null,null,null,null,null,null,"","",""]
[1848,null,"H03",null,null,"",null,null,null,null,null,null,null,"","",""]
[1849,null,"A04",null,null,"",null,null,null,null,null,null,null,"","",""]
[1850,null,"B04",null,null,"",null,null,null,null,null,null,null,"","",""]
[1851,null,"C04",null,null,"",null,null,null,null,null,null,null,"","",""]
[1852,null,"D04",null,null,"",null,null,null,null,null,null,null,"","",""]
[1853,null,"E04",null,null,"",null,null,null,null,null,null,null,"","",""]
[1854,null,"F04",null,null,"",null,null,null,null,null,null,null,"","",""]
[1855,null,"G04",null,null,"",null,null,null,null,null,null,null,"","",""]
[1856,null,"H04",null,null,"",null,null,null,null,null,null,null,"","",""]
[1857,null,"A05",null,null,"",null,null,null,null,null,null,null,"","",""]
[1858,null,"B05",null,null,{"$f":"IF($D$17<>\"\",$D$17,\"\")","v":""},null,null,null,null,null,null,null,{"$f":"IF($D$14<>\"\",$D$14,\"\")","v":""},{"$f":"IF($D$15<>\"\",$D$15,\"\")","v":""},{"$f":"IF($D$16<>\"\",$D$16,\"\")","v":""}]
[1859,null,"C05",null,null,"",null,null,null,null,null,null,null,"","",""]
[1860,null,"D05",null,null,"",null,null,null,null,null,null,null,"","",""]
[1861,null,"E05",null,null,"",null,null,null,null,null,null,null,"","",""]
[1862,null,"F05",null,null,"",null,null,null,null,null,null,null,"","",""]
[1863,null,"G05",null,null,"",null,null,null,null,null,null,null,"","",""]
[1864,null,"H05",null,null,"",null,null,null,null,null,null,null,"","",""]
[1865,null,"A06",null,null,"",null,null,null,null,null,null,null,"","",""]
[1866,null,"B06",null,null,"",null,null,null,null,null,null,null,"","",""]
[1867,null,"C06",null,null,"",null,null,null,null,null,null,null,"","",""]
[1868,null,"D06",null,null,"",null,null,null,null,null,null,null,"","",""]
[1869,null,"E06",null,null,"",null,null,null,null,null,null,null,"","",""]
[1870,null,"F06",null,null,"",null,null,null,null,null,null,null,"","",""]
[1871,null,"G06",null,null,"",null,null,null,null,null,null,null,"","",""]
[1872,null,"H06",null,null,"",null,null,null,null,null,null,null,"","",""]
[1873,null,"A07",null,null,"",null,null,null,null,null,null,null,"","",""]
[1874,null,"B07",null,null,"",null,null,null,null,null,null,null,"","",""]
[1875,null,"C07",null,null,"",null,null,null,null,null,null,null,"","",""]
[1876,null,"D07",null,null,"",null,null,null,null,null,null,null,"","",""]
[1877,null,"E07",null,null,"",null,null,null,null,null,null,null,"","",""]
[1878,null,"F07",null,null,"",null,null,null,null,null,null,null,"","",""]
[1879,null,"G07",null,null,"",null,null,null,null,null,null,null,"","",""]
[1880,null,"H07",null,null,"",null,null,null,null,null,null,null,"","",""]
[1881,null,"A08",null,null,"",null,null,null,null,null,null,null,"","",""]
[1882,null,"B08",null,null,"",null,null,null,null,null,null,null,"","",""]
[1883,null,"C08",null,null,"",null,null,null,null,null,null,null,"","",""]
[1884,null,"D08",null,null,"",null,null,null,null,null,null,null,"","",""]
[1885,null,"E08",null,null,"",null,null,null,null,null,null,null,"","",""]
[1886,null,"F08",null,null,"",null,null,null,null,null,null,null,"","",""]
[1887,null,"G08",null,null,"",null,null,null,null,null,null,null,"","",""]
[1888,null,"H08",null,null,"",null,null,null,null,null,null,null,"","",""]
[1889,null,"A09",null,null,"",null,null,null,null,null,null,null,"","",""]
[1890,null,"B09",null,null,"",null,null,null,null,null,null,null,"","",""]
[1891,null,"C09",null,null,"",null,null,null,null,null,null,null,"","",""]
[1892,null,"D09",null,null,"",null,null,null,null,null,null,null,"","",""]
[1893,null,"E09",null,null,"",null,null,null,null,null,null,null,"","",""]
[1894,null,"F09",null,null,"",null,null,null,null,null,null,null,"","",""]
[1895,null,"G09",null,null,"",null,null,null,null,null,null,null,"","",""]
[1896,null,"H09",null,null,"",null,null,null,null,null,null,null,"","",""]
[1897,null,"A10",null,null,"",null,null,null,null,null,null,null,"","",""]
[1898,null,"B10",null,null,"",null,null,null,null,null,null,null,"","",""]
[1899,null,"C10",null,null,"",null,null,null,null,null,null,null,"","",""]
[1900,null,"D10",null,null,"",null,null,null,null,null,null,null,"","",""]
[1901,null,"E10",null,null,"",null,null,null,null,null,null,null,"","",""]
[1902,null,"F10",null,null,"",null,null,null,null,null,null,null,"","",""]
[1903,null,"G10",null,null,"",null,null,null,null,null,null,null,"","",""]
[1904,null,"H10",null,null,"",null,null,null,null,null,null,null,"","",""]
[1905,null,"A11",null,null,"",null,null,null,null,null,null,null,"","",""]
[1906,null,"B11",null,null,"",null,null,null,null,null,null,null,"","",""]
[1907,null,"C11",null,null,"",null,null,null,null,null,null,null,"","",""]
[1908,null,"D11",null,null,"",null,null,null,null,null,null,null,"","",""]
[1909,null,"E11",null,null,"",null,null,null,null,null,null,null,"","",""]
[1910,null,"F11",null,null,"",null,null,null,null,null,null,null,"","",""]
[1911,null,"G11",null,null,"",null,null,null,null,null,null,null,"","",""]
[1912,null,"H11",null,null,"",null,null,null,null,null,null,null,"","",""]
[1913,null,"A12",null,null,"",null,null,null,null,null,null,null,"","",""]
[1914,null,"B12",null,null,"",null,null,null,null,null,null,null,"","",""]
[1915,null,"C12",null,null,"",null,null,null,null,null,null,null,"","",""]
[1916,null,"D12",null,null,"",null,null,null,null,null,null,null,"","",""]
[1917,null,"E12",null,null,"",null,null,null,null,null,null,null,"","",""]
[1918,null,"F12",null,null,"",null,null,null,null,null,null,null,"","",""]
[1919,null,"G12",null,null,"",null,null,null,null,null,null,null,"","",""]
[1920,null,"H12",null,null,"",null,null,null,null,null,null,null,"","",""]
[1921,null,"A01",null,null,"",null,null,null,null,null,null,null,"","",""]
[1922,null,"B01",null,null,{"$f":"IF($D$17<>\"\",$D$17,\"\")","v":""},null,null,null,null,null,null,null,{"$f":"IF($D$14<>\"\",$D$14,\"\")","v":""},{"$f":"IF($D$15<>\"\",$D$15,\"\")","v":""},{"$f":"IF($D$16<>\"\",$D$16,\"\")","v":""}]
[1923,null,"C01",null,null,"",null,null,null,null,null,null,null,"","",""]
[1924,null,"D01",null,null,"",null,null,null,null,null,null,null,"","",""]
[1925,null,"E01",null,null,"",null,null,null,null,null,null,null,"","",""]
[1926,null,"F01",null,null,"",null,null,null,null,null,null,null,"","",""]
[1927,null,"G01",null,null,"",null,null,null,null,null,null,null,"","",""]
[1928,null,"H01",null,null,"",null,null,null,null,null,null,null,"","",""]
[1929,null,"A02",null,null,"",null,null,null,null,null,null,null,"","",""]
[1930,null,"B02",null,null,"",null,null,null,null,null,null,null,"","",""]
[1931,null,"C02",null,null,"",null,null,null,null,null,null,null,"","",""]
[1932,null,"D02",null,null,"",null,null,null,null,null,null,null,"","",""]
[1933,null,"E02",null,null,"",null,null,null,null,null,null,null,"","",""]
[1934,null,"F02",null,null,"",null,null,null,null,null,null,null,"","",""]
[1935,null,"G02",null,null,"",null,null,null,null,null,null,null,"","",""]
[1936,null,"H02",null,null,"",null,null,null,null,null,null,null,"","",""]
[1937,null,"A03",null,null,"",null,null,null,null,null,null,null,"","",""]
[1938,null,"B03",null,null,"",null,null,null,null,null,null,null,"","",""]
[1939,null,"C03",null,null,"",null,null,null,null,null,null,null,"","",""]
[1940,null,"D03",null,null,"",null,null,null,null,null,null,null,"","",""]
[1941,null,"E03",null,null,"",null,null,null,null,null,null,null,"","",""]
[1942,null,"F03",null,null,"",null,null,null,null,null,null,null,"","",""]
[1943,null,"G03",null,null,"",null,null,null,null,null,null,null,"","",""]
[1944,null,"H03",null,null,"",null,null,null,null,null,null,null,"","",""]
[1945,null,"A04",null,null,"",null,null,null,null,null,null,null,"","",""]
[1946,null,"B04",null,null,"",null,null,null,null,null,null,null,"","",""]
[1947,null,"C04",null,null,"",null,null,null,null,null,null,null,"","",""]
[1948,null,"D04",null,null,"",null,null,null,null,null,null,null,"","",""]
[1949,null,"E04",null,null,"",null,null,null,null,null,null,null,"","",""]
[1950,null,"F04",null,null,"",null,null,null,null,null,null,null,"","",""]
[1951,null,"G04",null,null,"",null,null,null,null,null,null,null,"","",""]
[1952,null,"H04",null,null,"",null,null,null,null,null,null,null,"","",""]
[1953,null,"A05",null,null,"",null,null,null,null,null,null,null,"","",""]
[1954,null,"B05",null,null,"",null,null,null,null,null,null,null,"","",""]
[1955,null,"C05",null,null,"",null,null,null,null,null,null,null,"","",""]
[1956,null,"D05",null,null,"",null,null,null,null,null,null,null,"","",""]
[1957,null,"E05",null,null,"",null,null,null,null,null,null,null,"","",""]
[1958,null,"F05",null,null,"",null,null,null,null,null,null,null,"","",""]
[1959,null,"G05",null,null,"",null,null,null,null,null,null,null,"","",""]
[1960,null,"H05",null,null,"",null,null,null,null,null,null,null,"","",""]
[1961,null,"A06",null,null,"",null,null,null,null,null,null,null,"","",""]
[1962,null,"B06",null,null,"",null,null,null,null,null,null,null,"","",""]
[1963,null,"C06",null,null,"",null,null,null,null,null,null,null,"","",""]
[1964,null,"D06",null,null,"",null,null,null,null,null,null,null,"","",""]
[1965,null,"E06",null,null,"",null,null,null,null,null,null,null,"","",""]
[1966,null,"F06",null,null,"",null,null,null,null,null,null,null,"","",""]
[1967,null,"G06",null,null,"",null,null,null,null,null,null,null,"","",""]
[1968,null,"H06",null,null,"",null,null,null,null,null,null,null,"","",""]
[1969,null,"A07",null,null,"",null,null,null,null,null,null,null,"","",""]
[1970,null,"B07",null,null,"",null,null,null,null,null,null,null,"","",""]
[1971,null,"C07",null,null,"",null,null,null,null,null,null,null,"","",""]
[1972,null,"D07",null,null,"",null,null,null,null,null,null,null,"","",""]
[1973,null,"E07",null,null,"",null,null,null,null,null,null,null,"","",""]
[1974,null,"F07",null,null,"",null,null,null,null,null,null,null,"","",""]
[1975,null,"G07",null,null,"",null,null,null,null,null,null,null,"","",""]
[1976,null,"H07",null,null,"",null,null,null,null,null,null,null,"","",""]
[1977,null,"A08",null,null,"",null,null,null,null,null,null,null,"","",""]
[1978,null,"B08",null,null,"",null,null,null,null,null,null,null,"","",""]
[1979,null,"C08",null,null,"",null,null,null,null,null,null,null,"","",""]
[1980,null,"D08",null,null,"",null,null,null,null,null,null,null,"","",""]
[1981,null,"E08",null,null,"",null,null,null,null,null,null,null,"","",""]
[1982,null,"F08",null,null,"",null,null,null,null,null,null,null,"","",""]
[1983,null,"G08",null,null,"",null,null,null,null,null,null,null,"","",""]
[1984,null,"H08",null,null,"",null,null,null,null,null,null,null,"","",""]
[1985,null,"A09",null,null,"",null,null,null,null,null,null,null,"","",""]
[1986,null,"B09",null,null,{"$f":"IF($D$17<>\"\",$D$17,\"\")","v":""},null,null,null,null,null,null,null,{"$f":"IF($D$14<>\"\",$D$14,\"\")","v":""},{"$f":"IF($D$15<>\"\",$D$15,\"\")","v":""},{"$f":"IF($D$16<>\"\",$D$16,\"\")","v":""}]
[1987,null,"C09",null,null,"",null,null,null,null,null,null,null,"","",""]
[1988,null,"D09",null,null,"",null,null,null,null,null,null,null,"","",""]
[1989,null,"E09",null,null,"",null,null,null,null,null,null,null,"","",""]
[1990,null,"F09",null,null,"",null,null,null,null,null,null,null,"","",""]
[1991,null,"G09",null,null,"",null,null,null,null,null,null,null,"","",""]
[1992,null,"H09",null,null,"",null,null,null,null,null,null,null,"","",""]
[1993,null,"A10",null,null,"",null,null,null,null,null,null,null,"","",""]
[1994,null,"B10",null,null,"",null,null,null,null,null,null,null,"","",""]
[1995,null,"C10",null,null,"",null,null,null,null,null,null,null,"","",""]
[1996,null,"D10",null,null,"",null,null,null,null,null,null,null,"","",""]
[1997,null,"E10",null,null,"",null,null,null,null,null,null,null,"","",""]
[1998,null,"F10",null,null,"",null,null,null,null,null,null,null,"","",""]
[1999,null,"G10",null,null,"",null,null,null,null,null,null,null,"","",""]
[2000,null,"H10",null,null,"",null,null,null,null,null,null,null,"","",""]
[2001,null,"A11",null,null,"",null,null,null,null,null,null,null,"","",""]
[2002,null,"B11",null,null,"",null,null,null,null,null,null,null,"","",""]
[2003,null,"C11",null,null,"",null,null,null,null,null,null,null,"","",""]
[2004,null,"D11",null,null,"",null,null,null,null,null,null,null,"","",""]
[2005,null,"E11",null,null,"",null,null,null,null,null,null,null,"","",""]
[2006,null,"F11",null,null,"",null,null,null,null,null,null,null,"","",""]
[2007,null,"G11",null,null,"",null,null,null,null,null,null,null,"","",""]
[2008,null,"H11",null,null,"",null,null,null,null,null,null,null,"","",""]
[2009,null,"A12",null,null,"",null,null,null,null,null,null,null,"","",""]
[2010,null,"B12",null,null,"",null,null,null,null,null,null,null,"","",""]
[2011,null,"C12",null,null,"",null,null,null,null,null,null,null,"","",""]
[2012,null,"D12",null,null,"",null,null,null,null,null,null,null,"","",""]
[2013,null,"E12",null,null,"",null,null,null,null,null,null,null,"","",""]
[2014,null,"F12",null,null,"",null,null,null,null,null,null,null,"","",""]
[2015,null,"G12",null,null,"",null,null,null,null,null,null,null,"","",""]
[2016,null,"H12",null,null,"",null,null,null,null,null,null,null,"","",""]
[2017,null,"A01",null,null,"",null,null,null,null,null,null,null,"","",""]
[2018,null,"B01",null,null,"",null,null,null,null,null,null,null,"","",""]
[2019,null,"C01",null,null,"",null,null,null,null,null,null,null,"","",""]
[2020,null,"D01",null,null,"",null,null,null,null,null,null,null,"","",""]
[2021,null,"E01",null,null,"",null,null,null,null,null,null,null,"","",""]
[2022,null,"F01",null,null,"",null,null,null,null,null,null,null,"","",""]
[2023,null,"G01",null,null,"",null,null,null,null,null,null,null,"","",""]
[2024,null,"H01",null,null,"",null,null,null,null,null,null,null,"","",""]
[2025,null,"A02",null,null,"",null,null,null,null,null,null,null,"","",""]
[2026,null,"B02",null,null,"",null,null,null,null,null,null,null,"","",""]
[2027,null,"C02",null,null,"",null,null,null,null,null,null,null,"","",""]
[2028,null,"D02",null,null,"",null,null,null,null,null,null,null,"","",""]
[2029,null,"E02",null,null,"",null,null,null,null,null,null,null,"","",""]
[2030,null,"F02",null,null,"",null,null,null,null,null,null,null,"","",""]
[2031,null,"G02",null,null,"",null,null,null,null,null,null,null,"","",""]
[2032,null,"H02",null,null,"",null,null,null,null,null,null,null,"","",""]
[2033,null,"A03",null,null,"",null,null,null,null,null,null,null,"","",""]
[2034,null,"B03",null,null,"",null,null,null,null,null,null,null,"","",""]
[2035,null,"C03",null,null,"",null,null,null,null,null,null,null,"","",""]
[2036,null,"D03",null,null,"",null,null,null,null,null,null,null,"","",""]
[2037,null,"E03",null,null,"",null,null,null,null,null,null,null,"","",""]
[2038,null,"F03",null,null,"",null,null,null,null,null,null,null,"","",""]
[2039,null,"G03",null,null,"",null,null,null,null,null,null,null,"","",""]
[2040,null,"H03",null,null,"",null,null,null,null,null,null,null,"","",""]
[2041,null,"A04",null,null,"",null,null,null,null,null,null,null,"","",""]
[2042,null,"B04",null,null,"",null,null,null,null,null,null,null,"","",""]
[2043,null,"C04",null,null,"",null,null,null,null,null,null,null,"","",""]
[2044,null,"D04",null,null,"",null,null,null,null,null,null,null,"","",""]
[2045,null,"E04",null,null,"",null,null,null,null,null,null,null,"","",""]
[2046,null,"F04",null,null,"",null,null,null,null,null,null,null,"","",""]
[2047,null,"G04",null,null,"",null,null,null,null,null,null,null,"","",""]
[2048,null,"H04",null,null,"",null,null,null,null,null,null,null,"","",""]
[2049,null,"A05",null,null,"",null,null,null,null,null,null,null,"","",""]
[2050,null,"B05",null,null,{"$f":"IF($D$17<>\"\",$D$17,\"\")","v":""},null,null,null,null,null,null,null,{"$f":"IF($D$14<>\"\",$D$14,\"\")","v":""},{"$f":"IF($D$15<>\"\",$D$15,\"\")","v":""},{"$f":"IF($D$16<>\"\",$D$16,\"\")","v":""}]
[2051,null,"C05",null,null,"",null,null,null,null,null,null,null,"","",""]
[2052,null,"D05",null,null,"",null,null,null,null,null,null,null,"","",""]
[2053,null,"E05",null,null,"",null,null,null,null,null,null,null,"","",""]
[2054,null,"F05",null,null,"",null,null,null,null,null,null,null,"","",""]
[2055,null,"G05",null,null,"",null,null,null,null,null,null,null,"","",""]
[2056,null,"H05",null,null,"",null,null,null,null,null,null,null,"","",""]
[2057,null,"A06",null,null,"",null,null,null,null,null,null,null,"","",""]
[2058,null,"B06",null,null,"",null,null,null,null,null,null,null,"","",""]
[2059,null,"C06",null,null,"",null,null,null,null,null,null,null,"","",""]
[2060,null,"D06",null,null,"",null,null,null,null,null,null,null,"","",""]
[2061,null,"E06",null,null,"",null,null,null,null,null,null,null,"","",""]
[2062,null,"F06",null,null,"",null,null,null,null,null,null,null,"","",""]
[2063,null,"G06",null,null,"",null,null,null,null,null,null,null,"","",""]
[2064,null,"H06",null,null,"",null,null,null,null,null,null,null,"","",""]
[2065,null,"A07",null,null,"",null,null,null,null,null,null,null,"","",""]
[2066,null,"B07",null,null,"",null,null,null,null,null,null,null,"","",""]
[2067,null,"C07",null,null,"",null,null,null,null,null,null,null,"","",""]
[2068,null,"D07",null,null,"",null,null,null,null,null,null,null,"","",""]
[2069,null,"E07",null,null,"",null,null,null,null,null,null,null,"","",""]
[2070,null,"F07",null,null,"",null,null,null,null,null,null,null,"","",""]
[2071,null,"G07",null,null,"",null,null,null,null,null,null,null,"","",""]
[2072,null,"H07",null,null,"",null,null,null,null,null,null,null,"","",""]
[2073,null,"A08",null,null,"",null,null,null,null,null,null,null,"","",""]
[2074,null,"B08",null,null,"",null,null,null,null,null,null,null,"","",""]
[2075,null,"C08",null,null,"",null,null,null,null,null,null,null,"","",""]
[2076,null,"D08",null,null,"",null,null,null,null,null,null,null,"","",""]
[2077,null,"E08",null,null,"",null,null,null,null,null,null,null,"","",""]
[2078,null,"F08",null,null,"",null,null,null,null,null,null,null,"","",""]
[2079,null,"G08",null,null,"",null,null,null,null,null,null,null,"","",""]
[2080,null,"H08",null,null,"",null,null,null,null,null,null,null,"","",""]
[2081,null,"A09",null,null,"",null,null,null,null,null,null,null,"","",""]
[2082,null,"B09",null,null,"",null,null,null,null,null,null,null,"","",""]
[2083,null,"C09",null,null,"",null,null,null,null,null,null,null,"","",""]
[2084,null,"D09",null,null,"",null,null,null,null,null,null,null,"","",""]
[2085,null,"E09",null,null,"",null,null,null,null,null,null,null,"","",""]
[2086,null,"F09",null,null,"",null,null,null,null,null,null,null,"","",""]
[2087,null,"G09",null,null,"",null,null,null,null,null,null,null,"","",""]
[2088,null,"H09",null,null,"",null,null,null,null,null,null,null,"","",""]
[2089,null,"A10",null,null,"",null,null,null,null,null,null,null,"","",""]
[2090,null,"B10",null,null,"",null,null,null,null,null,null,null,"","",""]
[2091,null,"C10",null,null,"",null,null,null,null,null,null,null,"","",""]
[2092,null,"D10",null,null,"",null,null,null,null,null,null,null,"","",""]
[2093,null,"E10",null,null,"",null,null,null,null,null,null,null,"","",""]
[2094,null,"F10",null,null,"",null,null,null,null,null,null,null,"","",""]
[2095,null,"G10",null,null,"",null,null,null,null,null,null,null,"","",""]
[2096,null,"H10",null,null,"",null,null,null,null,null,null,null,"","",""]
[2097,null,"A11",null,null,"",null,null,null,null,null,null,null,"","",""]
[2098,null,"B11",null,null,"",null,null,null,null,null,null,null,"","",""]
[2099,null,"C11",null,null,"",null,null,null,null,null,null,null,"","",""]
[2100,null,"D11",null,null,"",null,null,null,null,null,null,null,"","",""]
[2101,null,"E11",null,null,"",null,null,null,null,null,null,null,"","",""]
[2102,null,"F11",null,null,"",null,null,null,null,null,null,null,"","",""]
[2103,null,"G11",null,null,"",null,null,null,null,null,null,null,"","",""]
[2104,null,"H11",null,null,"",null,null,null,null,null,null,null,"","",""]
[2105,null,"A12",null,null,"",null,null,null,null,null,null,null,"","",""]
[2106,null,"B12",null,null,"",null,null,null,null,null,null,null,"","",""]
[2107,null,"C12",null,null,"",null,null,null,null,null,null,null,"","",""]
[2108,null,"D12",null,null,"",null,null,null,null,null,null,null,"","",""]
[2109,null,"E12",null,null,"",null,null,null,null,null,null,null,"","",""]
[2110,null,"F12",null,null,"",null,null,null,null,null,null,null,"","",""]
[2111,null,"G12",null,null,"",null,null,null,null,null,null,null,"","",""]
[2112,null,"H12",null,null,"",null,null,null,null,null,null,null,"","",""]
[2113,null,"A01",null,null,"",null,null,null,null,null,null,null,"","",""]
[2114,null,"B01",null,null,{"$f":"IF($D$17<>\"\",$D$17,\"\")","v":""},null,null,null,null,null,null,null,{"$f":"IF($D$14<>\"\",$D$14,\"\")","v":""},{"$f":"IF($D$15<>\"\",$D$15,\"\")","v":""},{"$f":"IF($D$16<>\"\",$D$16,\"\")","v":""}]
[2115,null,"C01",null,null,"",null,null,null,null,null,null,null,"","",""]
[2116,null,"D01",null,null,"",null,null,null,null,null,null,null,"","",""]
[2117,null,"E01",null,null,"",null,null,null,null,null,null,null,"","",""]
[2118,null,"F01",null,null,"",null,null,null,null,null,null,null,"","",""]
[2119,null,"G01",null,null,"",null,null,null,null,null,null,null,"","",""]
[2120,null,"H01",null,null,"",null,null,null,null,null,null,null,"","",""]
[2121,null,"A02",null,null,"",null,null,null,null,null,null,null,"","",""]
[2122,null,"B02",null,null,"",null,null,null,null,null,null,null,"","",""]
[2123,null,"C02",null,null,"",null,null,null,null,null,null,null,"","",""]
[2124,null,"D02",null,null,"",null,null,null,null,null,null,null,"","",""]
[2125,null,"E02",null,null,"",null,null,null,null,null,null,null,"","",""]
[2126,null,"F02",null,null,"",null,null,null,null,null,null,null,"","",""]
[2127,null,"G02",null,null,"",null,null,null,null,null,null,null,"","",""]
[2128,null,"H02",null,null,"",null,null,null,null,null,null,null,"","",""]
[2129,null,"A03",null,null,"",null,null,null,null,null,null,null,"","",""]
[2130,null,"B03",null,null,"",null,null,null,null,null,null,null,"","",""]
[2131,null,"C03",null,null,"",null,null,null,null,null,null,null,"","",""]
[2132,null,"D03",null,null,"",null,null,null,null,null,null,null,"","",""]
[2133,null,"E03",null,null,"",null,null,null,null,null,null,null,"","",""]
[2134,null,"F03",null,null,"",null,null,null,null,null,null,null,"","",""]
[2135,null,"G03",null,null,"",null,null,null,null,null,null,null,"","",""]
[2136,null,"H03",null,null,"",null,null,null,null,null,null,null,"","",""]
[2137,null,"A04",null,null,"",null,null,null,null,null,null,null,"","",""]
[2138,null,"B04",null,null,"",null,null,null,null,null,null,null,"","",""]
[2139,null,"C04",null,null,"",null,null,null,null,null,null,null,"","",""]
[2140,null,"D04",null,null,"",null,null,null,null,null,null,null,"","",""]
[2141,null,"E04",null,null,"",null,null,null,null,null,null,null,"","",""]
[2142,null,"F04",null,null,"",null,null,null,null,null,null,null,"","",""]
[2143,null,"G04",null,null,"",null,null,null,null,null,null,null,"","",""]
[2144,null,"H04",null,null,"",null,null,null,null,null,null,null,"","",""]
[2145,null,"A05",null,null,"",null,null,null,null,null,null,null,"","",""]
[2146,null,"B05",null,null,"",null,null,null,null,null,null,null,"","",""]
[2147,null,"C05",null,null,"",null,null,null,null,null,null,null,"","",""]
[2148,null,"D05",null,null,"",null,null,null,null,null,null,null,"","",""]
[2149,null,"E05",null,null,"",null,null,null,null,null,null,null,"","",""]
[2150,null,"F05",null,null,"",null,null,null,null,null,null,null,"","",""]
[2151,null,"G05",null,null,"",null,null,null,null,null,null,null,"","",""]
[2152,null,"H05",null,null,"",null,null,null,null,null,null,null,"","",""]
[2153,null,"A06",null,null,"",null,null,null,null,null,null,null,"","",""]
[2154,null,"B06",null,null,"",null,null,null,null,null,null,null,"","",""]
[2155,null,"C06",null,null,"",null,null,null,null,null,null,null,"","",""]
[2156,null,"D06",null,null,"",null,null,null,null,null,null,null,"","",""]
[2157,null,"E06",null,null,"",null,null,null,null,null,null,null,"","",""]
[2158,null,"F06",null,null,"",null,null,null,null,null,null,null,"","",""]
[2159,null,"G06",null,null,"",null,null,null,null,null,null,null,"","",""]
[2160,null,"H06",null,null,"",null,null,null,null,null,null,null,"","",""]
[2161,null,"A07",null,null,"",null,null,null,null,null,null,null,"","",""]
[2162,null,"B07",null,null,"",null,null,null,null,null,null,null,"","",""]
[2163,null,"C07",null,null,"",null,null,null,null,null,null,null,"","",""]
[2164,null,"D07",null,null,"",null,null,null,null,null,null,null,"","",""]
[2165,null,"E07",null,null,"",null,null,null,null,null,null,null,"","",""]
[2166,null,"F07",null,null,"",null,null,null,null,null,null,null,"","",""]
[2167,null,"G07",null,null,"",null,null,null,null,null,null,null,"","",""]
[2168,null,"H07",null,null,"",null,null,null,null,null,null,null,"","",""]
[2169,null,"A08",null,null,"",null,null,null,null,null,null,null,"","",""]
[2170,null,"B08",null,null,"",null,null,null,null,null,null,null,"","",""]
[2171,null,"C08",null,null,"",null,null,null,null,null,null,null,"","",""]
[2172,null,"D08",null,null,"",null,null,null,null,null,null,null,"","",""]
[2173,null,"E08",null,null,"",null,null,null,null,null,null,null,"","",""]
[2174,null,"F08",null,null,"",null,null,null,null,null,null,null,"","",""]
[2175,null,"G08",null,null,"",null,null,null,null,null,null,null,"","",""]
[2176,null,"H08",null,null,"",null,null,null,null,null,null,null,"","",""]
[2177,null,"A09",null,null,"",null,null,null,null,null,null,null,"","",""]
[2178,null,"B09",null,null,{"$f":"IF($D$17<>\"\",$D$17,\"\")","v":""},null,null,null,null,null,null,null,{"$f":"IF($D$14<>\"\",$D$14,\"\")","v":""},{"$f":"IF($D$15<>\"\",$D$15,\"\")","v":""},{"$f":"IF($D$16<>\"\",$D$16,\"\")","v":""}]
[2179,null,"C09",null,null,"",null,null,null,null,null,null,null,"","",""]
[2180,null,"D09",null,null,"",null,null,null,null,null,null,null,"","",""]
[2181,null,"E09",null,null,"",null,null,null,null,null,null,null,"","",""]
[2182,null,"F09",null,null,"",null,null,null,null,null,null,null,"","",""]
[2183,null,"G09",null,null,"",null,null,null,null,null,null,null,"","",""]
[2184,null,"H09",null,null,"",null,null,null,null,null,null,null,"","",""]
[2185,null,"A10",null,null,"",null,null,null,null,null,null,null,"","",""]
[2186,null,"B10",null,null,"",null,null,null,null,null,null,null,"","",""]
[2187,null,"C10",null,null,"",null,null,null,null,null,null,null,"","",""]
[2188,null,"D10",null,null,"",null,null,null,null,null,null,null,"","",""]
[2189,null,"E10",null,null,"",null,null,null,null,null,null,null,"","",""]
[2190,null,"F10",null,null,"",null,null,null,null,null,null,null,"","",""]
[2191,null,"G10",null,null,"",null,null,null,null,null,null,null,"","",""]
[2192,null,"H10",null,null,"",null,null,null,null,null,null,null,"","",""]
[2193,null,"A11",null,null,"",null,null,null,null,null,null,null,"","",""]
[2194,null,"B11",null,null,"",null,null,null,null,null,null,null,"","",""]
[2195,null,"C11",null,null,"",null,null,null,null,null,null,null,"","",""]
[2196,null,"D11",null,null,"",null,null,null,null,null,null,null,"","",""]
[2197,null,"E11",null,null,"",null,null,null,null,null,null,null,"","",""]
[2198,null,"F11",null,null,"",null,null,null,null,null,null,null,"","",""]
[2199,null,"G11",null,null,"",null,null,null,null,null,null,null,"","",""]
[2200,null,"H11",null,null,"",null,null,null,null,null,null,null,"","",""]
[2201,null,"A12",null,null,"",null,null,null,null,null,null,null,"","",""]
[2202,null,"B12",null,null,"",null,null,null,null,null,null,null,"","",""]
[2203,null,"C12",null,null,"",null,null,null,null,null,null,null,"","",""]
[2204,null,"D12",null,null,"",null,null,null,null,null,null,null,"","",""]
[2205,null,"E12",null,null,"",null,null,null,null,null,null,null,"","",""]
[2206,null,"F12",null,null,"",null,null,null,null,null,null,null,"","",""]
[2207,null,"G12",null,null,"",null,null,null,null,null,null,null,"","",""]
[2208,null,"H12",null,null,"",null,null,null,null,null,null,null,"","",""]
[2209,null,"A01",null,null,"",null,null,null,null,null,null,null,"","",""]
[2210,null,"B01",null,null,"",null,null,null,null,null,null,null,"","",""]
[2211,null,"C01",null,null,"",null,null,null,null,null,null,null,"","",""]
[2212,null,"D01",null,null,"",null,null,null,null,null,null,null,"","",""]
[2213,null,"E01",null,null,"",null,null,null,null,null,null,null,"","",""]
[2214,null,"F01",null,null,"",null,null,null,null,null,null,null,"","",""]
[2215,null,"G01",null,null,"",null,null,null,null,null,null,null,"","",""]
[2216,null,"H01",null,null,"",null,null,null,null,null,null,null,"","",""]
[2217,null,"A02",null,null,"",null,null,null,null,null,null,null,"","",""]
[2218,null,"B02",null,null,"",null,null,null,null,null,null,null,"","",""]
[2219,null,"C02",null,null,"",null,null,null,null,null,null,null,"","",""]
[2220,null,"D02",null,null,"",null,null,null,null,null,null,null,"","",""]
[2221,null,"E02",null,null,"",null,null,null,null,null,null,null,"","",""]
[2222,null,"F02",null,null,"",null,null,null,null,null,null,null,"","",""]
[2223,null,"G02",null,null,"",null,null,null,null,null,null,null,"","",""]
[2224,null,"H02",null,null,"",null,null,null,null,null,null,null,"","",""]
[2225,null,"A03",null,null,"",null,null,null,null,null,null,null,"","",""]
[2226,null,"B03",null,null,"",null,null,null,null,null,null,null,"","",""]
[2227,null,"C03",null,null,"",null,null,null,null,null,null,null,"","",""]
[2228,null,"D03",null,null,"",null,null,null,null,null,null,null,"","",""]
[2229,null,"E03",null,null,"",null,null,null,null,null,null,null,"","",""]
[2230,null,"F03",null,null,"",null,null,null,null,null,null,null,"","",""]
[2231,null,"G03",null,null,"",null,null,null,null,null,null,null,"","",""]
[2232,null,"H03",null,null,"",null,null,null,null,null,null,null,"","",""]
[2233,null,"A04",null,null,"",null,null,null,null,null,null,null,"","",""]
[2234,null,"B04",null,null,"",null,null,null,null,null,null,null,"","",""]
[2235,null,"C04",null,null,"",null,null,null,null,null,null,null,"","",""]
[2236,null,"D04",null,null,"",null,null,null,null,null,null,null,"","",""]
[2237,null,"E04",null,null,"",null,null,null,null,null,null,null,"","",""]
[2238,null,"F04",null,null,"",null,null,null,null,null,null,null,"","",""]
[2239,null,"G04",null,null,"",null,null,null,null,null,null,null,"","",""]
[2240,null,"H04",null,null,"",null,null,null,null,null,null,null,"","",""]
[2241,null,"A05",null,null,"",null,null,null,null,null,null,null,"","",""]
[2242,null,"B05",null,null,{"$f":"IF($D$17<>\"\",$D$17,\"\")","v":""},null,null,null,null,null,null,null,{"$f":"IF($D$14<>\"\",$D$14,\"\")","v":""},{"$f":"IF($D$15<>\"\",$D$15,\"\")","v":""},{"$f":"IF($D$16<>\"\",$D$16,\"\")","v":""}]
[2243,null,"C05",null,null,"",null,null,null,null,null,null,null,"","",""]
[2244,null,"D05",null,null,"",null,null,null,null,null,null,null,"","",""]
[2245,null,"E05",null,null,"",null,null,null,null,null,null,null,"","",""]
[2246,null,"F05",null,null,"",null,null,null,null,null,null,null,"","",""]
[2247,null,"G05",null,null,"",null,null,null,null,null,null,null,"","",""]
[2248,null,"H05",null,null,"",null,null,null,null,null,null,null,"","",""]
[2249,null,"A06",null,null,"",null,null,null,null,null,null,null,"","",""]
[2250,null,"B06",null,null,"",null,null,null,null,null,null,null,"","",""]
[2251,null,"C06",null,null,"",null,null,null,null,null,null,null,"","",""]
[2252,null,"D06",null,null,"",null,null,null,null,null,null,null,"","",""]
[2253,null,"E06",null,null,"",null,null,null,null,null,null,null,"","",""]
[2254,null,"F06",null,null,"",null,null,null,null,null,null,null,"","",""]
[2255,null,"G06",null,null,"",null,null,null,null,null,null,null,"","",""]
[2256,null,"H06",null,null,"",null,null,null,null,null,null,null,"","",""]
[2257,null,"A07",null,null,"",null,null,null,null,null,null,null,"","",""]
[2258,null,"B07",null,null,"",null,null,null,null,null,null,null,"","",""]
[2259,null,"C07",null,null,"",null,null,null,null,null,null,null,"","",""]
[2260,null,"D07",null,null,"",null,null,null,null,null,null,null,"","",""]
[2261,null,"E07",null,null,"",null,null,null,null,null,null,null,"","",""]
[2262,null,"F07",null,null,"",null,null,null,null,null,null,null,"","",""]
[2263,null,"G07",null,null,"",null,null,null,null,null,null,null,"","",""]
[2264,null,"H07",null,null,"",null,null,null,null,null,null,null,"","",""]
[2265,null,"A08",null,null,"",null,null,null,null,null,null,null,"","",""]
[2266,null,"B08",null,null,"",null,null,null,null,null,null,null,"","",""]
[2267,null,"C08",null,null,"",null,null,null,null,null,null,null,"","",""]
[2268,null,"D08",null,null,"",null,null,null,null,null,null,null,"","",""]
[2269,null,"E08",null,null,"",null,null,null,null,null,null,null,"","",""]
[2270,null,"F08",null,null,"",null,null,null,null,null,null,null,"","",""]
[2271,null,"G08",null,null,"",null,null,null,null,null,null,null,"","",""]
[2272,null,"H08",null,null,"",null,null,null,null,null,null,null,"","",""]
[2273,null,"A09",null,null,"",null,null,null,null,null,null,null,"","",""]
[2274,null,"B09",null,null,"",null,null,null,null,null,null,null,"","",""]
[2275,null,"C09",null,null,"",null,null,null,null,null,null,null,"","",""]
[2276,null,"D09",null,null,"",null,null,null,null,null,null,null,"","",""]
[2277,null,"E09",null,null,"",null,null,null,null,null,null,null,"","",""]
[2278,null,"F09",null,null,"",null,null,null,null,null,null,null,"","",""]
[2279,null,"G09",null,null,"",null,null,null,null,null,null,null,"","",""]
[2280,null,"H09",null,null,"",null,null,null,null,null,null,null,"","",""]
[2281,null,"A10",null,null,"",null,null,null,null,null,null,null,"","",""]
[2282,null,"B10",null,null,"",null,null,null,null,null,null,null,"","",""]
[2283,null,"C10",null,null,"",null,null,null,null,null,null,null,"","",""]
[2284,null,"D10",null,null,"",null,null,null,null,null,null,null,"","",""]
[2285,null,"E10",null,null,"",null,null,null,null,null,null,null,"","",""]
[2286,null,"F10",null,null,"",null,null,null,null,null,null,null,"","",""]
[2287,null,"G10",null,null,"",null,null,null,null,null,null,null,"","",""]
[2288,null,"H10",null,null,"",null,null,null,null,null,null,null,"","",""]
[2289,null,"A11",null,null,"",null,null,null,null,null,null,null,"","",""]
[2290,null,"B11",null,null,"",null,null,null,null,null,null,null,"","",""]
[2291,null,"C11",null,null,"",null,null,null,null,null,null,null,"","",""]
[2292,null,"D11",null,null,"",null,null,null,null,null,null,null,"","",""]
[2293,null,"E11",null,null,"",null,null,null,null,null,null,null,"","",""]
[2294,null,"F11",null,null,"",null,null,null,null,null,null,null,"","",""]
[2295,null,"G11",null,null,"",null,null,null,null,null,null,null,"","",""]
[2296,null,"H11",null,null,"",null,null,null,null,null,null,null,"","",""]
[2297,null,"A12",null,null,"",null,null,null,null,null,null,null,"","",""]
[2298,null,"B12",null,null,"",null,null,null,null,null,null,null,"","",""]
[2299,null,"C12",null,null,"",null,null,null,null,null,null,null,"","",""]
[2300,null,"D12",null,null,"",null,null,null,null,null,null,null,"","",""]
[2301,null,"E12",null,null,"",null,null,null,null,null,null,null,"","",""]
[2302,null,"F12",null,null,"",null,null,null,null,null,null,null,"","",""]
[2303,null,"G12",null,null,"",null,null,null,null,null,null,null,"","",""]
[2304,null,"H12",null,null,"",null,null,null,null,null,null,null,"","",""]
[2305,null,"A01",null,null,"",null,null,null,null,null,null,null,"","",""]
[2306,null,"B01",null,null,{"$f":"IF($D$17<>\"\",$D$17,\"\")","v":""},null,null,null,null,null,null,null,{"$f":"IF($D$14<>\"\",$D$14,\"\")","v":""},{"$f":"IF($D$15<>\"\",$D$15,\"\")","v":""},{"$f":"IF($D$16<>\"\",$D$16,\"\")","v":""}]
[2307,null,"C01",null,null,"",null,null,null,null,null,null,null,"","",""]
[2308,null,"D01",null,null,"",null,null,null,null,null,null,null,"","",""]
[2309,null,"E01",null,null,"",null,null,null,null,null,null,null,"","",""]
[2310,null,"F01",null,null,"",null,null,null,null,null,null,null,"","",""]
[2311,null,"G01",null,null,"",null,null,null,null,null,null,null,"","",""]
[2312,null,"H01",null,null,"",null,null,null,null,null,null,null,"","",""]
[2313,null,"A02",null,null,"",null,null,null,null,null,null,null,"","",""]
[2314,null,"B02",null,null,"",null,null,null,null,null,null,null,"","",""]
[2315,null,"C02",null,null,"",null,null,null,null,null,null,null,"","",""]
[2316,null,"D02",null,null,"",null,null,null,null,null,null,null,"","",""]
[2317,null,"E02",null,null,"",null,null,null,null,null,null,null,"","",""]
[2318,null,"F02",null,null,"",null,null,null,null,null,null,null,"","",""]
[2319,null,"G02",null,null,"",null,null,null,null,null,null,null,"","",""]
[2320,null,"H02",null,null,"",null,null,null,null,null,null,null,"","",""]
[2321,null,"A03",null,null,"",null,null,null,null,null,null,null,"","",""]
[2322,null,"B03",null,null,"",null,null,null,null,null,null,null,"","",""]
[2323,null,"C03",null,null,"",null,null,null,null,null,null,null,"","",""]
[2324,null,"D03",null,null,"",null,null,null,null,null,null,null,"","",""]
[2325,null,"E03",null,null,"",null,null,null,null,null,null,null,"","",""]
[2326,null,"F03",null,null,"",null,null,null,null,null,null,null,"","",""]
[2327,null,"G03",null,null,"",null,null,null,null,null,null,null,"","",""]
[2328,null,"H03",null,null,"",null,null,null,null,null,null,null,"","",""]
[2329,null,"A04",null,null,"",null,null,null,null,null,null,null,"","",""]
[2330,null,"B04",null,null,"",null,null,null,null,null,null,null,"","",""]
[2331,null,"C04",null,null,"",null,null,null,null,null,null,null,"","",""]
[2332,null,"D04",null,null,"",null,null,null,null,null,null,null,"","",""]
[2333,null,"E04",null,null,"",null,null,null,null,null,null,null,"","",""]
[2334,null,"F04",null,null,"",null,null,null,null,null,null,null,"","",""]
[2335,null,"G04",null,null,"",null,null,null,null,null,null,null,"","",""]
[2336,null,"H04",null,null,"",null,null,null,null,null,null,null,"","",""]
[2337,null,"A05",null,null,"",null,null,null,null,null,null,null,"","",""]
[2338,null,"B05",null,null,"",null,null,null,null,null,null,null,"","",""]
[2339,null,"C05",null,null,"",null,null,null,null,null,null,null,"","",""]
[2340,null,"D05",null,null,"",null,null,null,null,null,null,null,"","",""]
[2341,null,"E05",null,null,"",null,null,null,null,null,null,null,"","",""]
[2342,null,"F05",null,null,"",null,null,null,null,null,null,null,"","",""]
[2343,null,"G05",null,null,"",null,null,null,null,null,null,null,"","",""]
[2344,null,"H05",null,null,"",null,null,null,null,null,null,null,"","",""]
[2345,null,"A06",null,null,"",null,null,null,null,null,null,null,"","",""]
[2346,null,"B06",null,null,"",null,null,null,null,null,null,null,"","",""]
[2347,null,"C06",null,null,"",null,null,null,null,null,null,null,"","",""]
[2348,null,"D06",null,null,"",null,null,null,null,null,null,null,"","",""]
[2349,null,"E06",null,null,"",null,null,null,null,null,null,null,"","",""]
[2350,null,"F06",null,null,"",null,null,null,null,null,null,null,"","",""]
[2351,null,"G06",null,null,"",null,null,null,null,null,null,null,"","",""]
[2352,null,"H06",null,null,"",null,null,null,null,null,null,null,"","",""]
[2353,null,"A07",null,null,"",null,null,null,null,null,null,null,"","",""]
[2354,null,"B07",null,null,"",null,null,null,null,null,null,null,"","",""]
[2355,null,"C07",null,null,"",null,null,null,null,null,null,null,"","",""]
[2356,null,"D07",null,null,"",null,null,null,null,null,null,null,"","",""]
[2357,null,"E07",null,null,"",null,null,null,null,null,null,null,"","",""]
[2358,null,"F07",null,null,"",null,null,null,null,null,null,null,"","",""]
[2359,null,"G07",null,null,"",null,null,null,null,null,null,null,"","",""]
[2360,null,"H07",null,null,"",null,null,null,null,null,null,null,"","",""]
[2361,null,"A08",null,null,"",null,null,null,null,null,null,null,"","",""]
[2362,null,"B08",null,null,"",null,null,null,null,null,null,null,"","",""]
[2363,null,"C08",null,null,"",null,null,null,null,null,null,null,"","",""]
[2364,null,"D08",null,null,"",null,null,null,null,null,null,null,"","",""]
[2365,null,"E08",null,null,"",null,null,null,null,null,null,null,"","",""]
[2366,null,"F08",null,null,"",null,null,null,null,null,null,null,"","",""]
[2367,null,"G08",null,null,"",null,null,null,null,null,null,null,"","",""]
[2368,null,"H08",null,null,"",null,null,null,null,null,null,null,"","",""]
[2369,null,"A09",null,null,"",null,null,null,null,null,null,null,"","",""]
[2370,null,"B09",null,null,{"$f":"IF($D$17<>\"\",$D$17,\"\")","v":""},null,null,null,null,null,null,null,{"$f":"IF($D$14<>\"\",$D$14,\"\")","v":""},{"$f":"IF($D$15<>\"\",$D$15,\"\")","v":""},{"$f":"IF($D$16<>\"\",$D$16,\"\")","v":""}]
[2371,null,"C09",null,null,"",null,null,null,null,null,null,null,"","",""]
[2372,null,"D09",null,null,"",null,null,null,null,null,null,null,"","",""]
[2373,null,"E09",null,null,"",null,null,null,null,null,null,null,"","",""]
[2374,null,"F09",null,null,"",null,null,null,null,null,null,null,"","",""]
[2375,null,"G09",null,null,"",null,null,null,null,null,null,null,"","",""]
[2376,null,"H09",null,null,"",null,null,null,null,null,null,null,"","",""]
[2377,null,"A10",null,null,"",null,null,null,null,null,null,null,"","",""]
[2378,null,"B10",null,null,"",null,null,null,null,null,null,null,"","",""]
[2379,null,"C10",null,null,"",null,null,null,null,null,null,null,"","",""]
[2380,null,"D10",null,null,"",null,null,null,null,null,null,null,"","",""]
[2381,null,"E10",null,null,"",null,null,null,null,null,null,null,"","",""]
[2382,null,"F10",null,null,"",null,null,null,null,null,null,null,"","",""]
[2383,null,"G10",null,null,"",null,null,null,null,null,null,null,"","",""]
[2384,null,"H10",null,null,"",null,null,null,null,null,null,null,"","",""]
[2385,null,"A11",null,null,"",null,null,null,null,null,null,null,"","",""]
[2386,null,"B11",null,null,"",null,null,null,null,null,null,null,"","",""]
[2387,null,"C11",null,null,"",null,null,null,null,null,null,null,"","",""]
[2388,null,"D11",null,null,"",null,null,null,null,null,null,null,"","",""]
[2389,null,"E11",null,null,"",null,null,null,null,null,null,null,"","",""]
[2390,null,"F11",null,null,"",null,null,null,null,null,null,null,"","",""]
[2391,null,"G11",null,null,"",null,null,null,null,null,null,null,"","",""]
[2392,null,"H11",null,null,"",null,null,null,null,null,null,null,"","",""]
[2393,null,"A12",null,null,"",null,null,null,null,null,null,null,"","",""]
[2394,null,"B12",null,null,"",null,null,null,null,null,null,null,"","",""]
[2395,null,"C12",null,null,"",null,null,null,null,null,null,null,"","",""]
[2396,null,"D12",null,null,"",null,null,null,null,null,null,null,"","",""]
[2397,null,"E12",null,null,"",null,null,null,null,null,null,null,"","",""]
[2398,null,"F12",null,null,"",null,null,null,null,null,null,null,"","",""]
[2399,null,"G12",null,null,"",null,null,null,null,null,null,null,"","",""]
[2400,null,"H12",null,null,"",null,null,null,null,null,null,null,"","",""]
[2401,null,"A01",null,null,"",null,null,null,null,null,null,null,"","",""]
[2402,null,"B01",null,null,"",null,null,null,null,null,null,null,"","",""]
[2403,null,"C01",null,null,"",null,null,null,null,null,null,null,"","",""]
[2404,null,"D01",null,null,"",null,null,null,null,null,null,null,"","",""]
[2405,null,"E01",null,null,"",null,null,null,null,null,null,null,"","",""]
[2406,null,"F01",null,null,"",null,null,null,null,null,null,null,"","",""]
[2407,null,"G01",null,null,"",null,null,null,null,null,null,null,"","",""]
[2408,null,"H01",null,null,"",null,null,null,null,null,null,null,"","",""]
[2409,null,"A02",null,null,"",null,null,null,null,null,null,null,"","",""]
[2410,null,"B02",null,null,"",null,null,null,null,null,null,null,"","",""]
[2411,null,"C02",null,null,"",null,null,null,null,null,null,null,"","",""]
[2412,null,"D02",null,null,"",null,null,null,null,null,null,null,"","",""]
[2413,null,"E02",null,null,"",null,null,null,null,null,null,null,"","",""]
[2414,null,"F02",null,null,"",null,null,null,null,null,null,null,"","",""]
[2415,null,"G02",null,null,"",null,null,null,null,null,null,null,"","",""]
[2416,null,"H02",null,null,"",null,null,null,null,null,null,null,"","",""]
[2417,null,"A03",null,null,"",null,null,null,null,null,null,null,"","",""]
[2418,null,"B03",null,null,"",null,null,null,null,null,null,null,"","",""]
[2419,null,"C03",null,null,"",null,null,null,null,null,null,null,"","",""]
[2420,null,"D03",null,null,"",null,null,null,null,null,null,null,"","",""]
[2421,null,"E03",null,null,"",null,null,null,null,null,null,null,"","",""]
[2422,null,"F03",null,null,"",null,null,null,null,null,null,null,"","",""]
[2423,null,"G03",null,null,"",null,null,null,null,null,null,null,"","",""]
[2424,null,"H03",null,null,"",null,null,null,null,null,null,null,"","",""]
[2425,null,"A04",null,null,"",null,null,null,null,null,null,null,"","",""]
[2426,null,"B04",null,null,"",null,null,null,null,null,null,null,"","",""]
[2427,null,"C04",null,null,"",null,null,null,null,null,null,null,"","",""]
[2428,null,"D04",null,null,"",null,null,null,null,null,null,null,"","",""]
[2429,null,"E04",null,null,"",null,null,null,null,null,null,null,"","",""]
[2430,null,"F04",null,null,"",null,null,null,null,null,null,null,"","",""]
[2431,null,"G04",null,null,"",null,null,null,null,null,null,null,"","",""]
[2432,null,"H04",null,null,"",null,null,null,null,null,null,null,"","",""]
[2433,null,"A05",null,null,"",null,null,null,null,null,null,null,"","",""]
[2434,null,"B05",null,null,{"$f":"IF($D$17<>\"\",$D$17,\"\")","v":""},null,null,null,null,null,null,null,{"$f":"IF($D$14<>\"\",$D$14,\"\")","v":""},{"$f":"IF($D$15<>\"\",$D$15,\"\")","v":""},{"$f":"IF($D$16<>\"\",$D$16,\"\")","v":""}]
[2435,null,"C05",null,null,"",null,null,null,null,null,null,null,"","",""]
[2436,null,"D05",null,null,"",null,null,null,null,null,null,null,"","",""]
[2437,null,"E05",null,null,"",null,null,null,null,null,null,null,"","",""]
[2438,null,"F05",null,null,"",null,null,null,null,null,null,null,"","",""]
[2439,null,"G05",null,null,"",null,null,null,null,null,null,null,"","",""]
[2440,null,"H05",null,null,"",null,null,null,null,null,null,null,"","",""]
[2441,null,"A06",null,null,"",null,null,null,null,null,null,null,"","",""]
[2442,null,"B06",null,null,"",null,null,null,null,null,null,null,"","",""]
[2443,null,"C06",null,null,"",null,null,null,null,null,null,null,"","",""]
[2444,null,"D06",null,null,"",null,null,null,null,null,null,null,"","",""]
[2445,null,"E06",null,null,"",null,null,null,null,null,null,null,"","",""]
[2446,null,"F06",null,null,"",null,null,null,null,null,null,null,"","",""]
[2447,null,"G06",null,null,"",null,null,null,null,null,null,null,"","",""]
[2448,null,"H06",null,null,"",null,null,null,null,null,null,null,"","",""]
[2449,null,"A07",null,null,"",null,null,null,null,null,null,null,"","",""]
[2450,null,"B07",null,null,"",null,null,null,null,null,null,null,"","",""]
[2451,null,"C07",null,null,"",null,null,null,null,null,null,null,"","",""]
[2452,null,"D07",null,null,"",null,null,null,null,null,null,null,"","",""]
[2453,null,"E07",null,null,"",null,null,null,null,null,null,null,"","",""]
[2454,null,"F07",null,null,"",null,null,null,null,null,null,null,"","",""]
[2455,null,"G07",null,null,"",null,null,null,null,null,null,null,"","",""]
[2456,null,"H07",null,null,"",null,null,null,null,null,null,null,"","",""]
[2457,null,"A08",null,null,"",null,null,null,null,null,null,null,"","",""]
[2458,null,"B08",null,null,"",null,null,null,null,null,null,null,"","",""]
[2459,null,"C08",null,null,"",null,null,null,null,null,null,null,"","",""]
[2460,null,"D08",null,null,"",null,null,null,null,null,null,null,"","",""]
[2461,null,"E08",null,null,"",null,null,null,null,null,null,null,"","",""]
[2462,null,"F08",null,null,"",null,null,null,null,null,null,null,"","",""]
[2463,null,"G08",null,null,"",null,null,null,null,null,null,null,"","",""]
[2464,null,"H08",null,null,"",null,null,null,null,null,null,null,"","",""]
[2465,null,"A09",null,null,"",null,null,null,null,null,null,null,"","",""]
[2466,null,"B09",null,null,"",null,null,null,null,null,null,null,"","",""]
[2467,null,"C09",null,null,"",null,null,null,null,null,null,null,"","",""]
[2468,null,"D09",null,null,"",null,null,null,null,null,null,null,"","",""]
[2469,null,"E09",null,null,"",null,null,null,null,null,null,null,"","",""]
[2470,null,"F09",null,null,"",null,null,null,null,null,null,null,"","",""]
[2471,null,"G09",null,null,"",null,null,null,null,null,null,null,"","",""]
[2472,null,"H09",null,null,"",null,null,null,null,null,null,null,"","",""]
[2473,null,"A10",null,null,"",null,null,null,null,null,null,null,"","",""]
[2474,null,"B10",null,null,"",null,null,null,null,null,null,null,"","",""]
[2475,null,"C10",null,null,"",null,null,null,null,null,null,null,"","",""]
[2476,null,"D10",null,null,"",null,null,null,null,null,null,null,"","",""]
[2477,null,"E10",null,null,"",null,null,null,null,null,null,null,"","",""]
[2478,null,"F10",null,null,"",null,null,null,null,null,null,null,"","",""]
[2479,null,"G10",null,null,"",null,null,null,null,null,null,null,"","",""]
[2480,null,"H10",null,null,"",null,null,null,null,null,null,null,"","",""]
[2481,null,"A11",null,null,"",null,null,null,null,null,null,null,"","",""]
[2482,null,"B11",null,null,"",null,null,null,null,null,null,null,"","",""]
[2483,null,"C11",null,null,"",null,null,null,null,null,null,null,"","",""]
[2484,null,"D11",null,null,"",null,null,null,null,null,null,null,"","",""]
[2485,null,"E11",null,null,"",null,null,null,null,null,null,null,"","",""]
[2486,null,"F11",null,null,"",null,null,null,null,null,null,null,"","",""]
[2487,null,"G11",null,null,"",null,null,null,null,null,null,null,"","",""]
[2488,null,"H11",null,null,"",null,null,null,null,null,null,null,"","",""]
[2489,null,"A12",null,null,"",null,null,null,null,null,null,null,"","",""]
[2490,null,"B12",null,null,"",null,null,null,null,null,null,null,"","",""]
[2491,null,"C12",null,null,"",null,null,null,null,null,null,null,"","",""]
[2492,null,"D12",null,null,"",null,null,null,null,null,null,null,"","",""]
[2493,null,"E12",null,null,"",null,null,null,null,null,null,null,"","",""]
[2494,null,"F12",null,null,"",null,null,null,null,null,null,null,"","",""]
[2495,null,"G12",null,null,"",null,null,null,null,null,null,null,"","",""]
[2496,null,"H12",null,null,"",null,null,null,null,null,null,null,"","",""]
[2497,null,"A01",null,null,"",null,null,null,null,null,null,null,"","",""]
[2498,null,"B01",null,null,{"$f":"IF($D$17<>\"\",$D$17,\"\")","v":""},null,null,null,null,null,null,null,{"$f":"IF($D$14<>\"\",$D$14,\"\")","v":""},{"$f":"IF($D$15<>\"\",$D$15,\"\")","v":""},{"$f":"IF($D$16<>\"\",$D$16,\"\")","v":""}]
[2499,null,"C01",null,null,"",null,null,null,null,null,null,null,"","",""]
[2500,null,"D01",null,null,"",null,null,null,null,null,null,null,"","",""]
[2501,null,"E01",null,null,"",null,null,null,null,null,null,null,"","",""]
[2502,null,"F01",null,null,"",null,null,null,null,null,null,null,"","",""]
[2503,null,"G01",null,null,"",null,null,null,null,null,null,null,"","",""]
[2504,null,"H01",null,null,"",null,null,null,null,null,null,null,"","",""]
[2505,null,"A02",null,null,"",null,null,null,null,null,null,null,"","",""]
[2506,null,"B02",null,null,"",null,null,null,null,null,null,null,"","",""]
[2507,null,"C02",null,null,"",null,null,null,null,null,null,null,"","",""]
[2508,null,"D02",null,null,"",null,null,null,null,null,null,null,"","",""]
[2509,null,"E02",null,null,"",null,null,null,null,null,null,null,"","",""]
[2510,null,"F02",null,null,"",null,null,null,null,null,null,null,"","",""]
[2511,null,"G02",null,null,"",null,null,null,null,null,null,null,"","",""]
[2512,null,"H02",null,null,"",null,null,null,null,null,null,null,"","",""]
[2513,null,"A03",null,null,"",null,null,null,null,null,null,null,"","",""]
[2514,null,"B03",null,null,"",null,null,null,null,null,null,null,"","",""]
[2515,null,"C03",null,null,"",null,null,null,null,null,null,null,"","",""]
[2516,null,"D03",null,null,"",null,null,null,null,null,null,null,"","",""]
[2517,null,"E03",null,null,"",null,null,null,null,null,null,null,"","",""]
[2518,null,"F03",null,null,"",null,null,null,null,null,null,null,"","",""]
[2519,null,"G03",null,null,"",null,null,null,null,null,null,null,"","",""]
[2520,null,"H03",null,null,"",null,null,null,null,null,null,null,"","",""]
[2521,null,"A04",null,null,"",null,null,null,null,null,null,null,"","",""]
[2522,null,"B04",null,null,"",null,null,null,null,null,null,null,"","",""]
[2523,null,"C04",null,null,"",null,null,null,null,null,null,null,"","",""]
[2524,null,"D04",null,null,"",null,null,null,null,null,null,null,"","",""]
[2525,null,"E04",null,null,"",null,null,null,null,null,null,null,"","",""]
[2526,null,"F04",null,null,"",null,null,null,null,null,null,null,"","",""]
[2527,null,"G04",null,null,"",null,null,null,null,null,null,null,"","",""]
[2528,null,"H04",null,null,"",null,null,null,null,null,null,null,"","",""]
[2529,null,"A05",null,null,"",null,null,null,null,null,null,null,"","",""]
[2530,null,"B05",null,null,"",null,null,null,null,null,null,null,"","",""]
[2531,null,"C05",null,null,"",null,null,null,null,null,null,null,"","",""]
[2532,null,"D05",null,null,"",null,null,null,null,null,null,null,"","",""]
[2533,null,"E05",null,null,"",null,null,null,null,null,null,null,"","",""]
[2534,null,"F05",null,null,"",null,null,null,null,null,null,null,"","",""]
[2535,null,"G05",null,null,"",null,null,null,null,null,null,null,"","",""]
[2536,null,"H05",null,null,"",null,null,null,null,null,null,null,"","",""]
[2537,null,"A06",null,null,"",null,null,null,null,null,null,null,"","",""]
[2538,null,"B06",null,null,"",null,null,null,null,null,null,null,"","",""]
[2539,null,"C06",null,null,"",null,null,null,null,null,null,null,"","",""]
[2540,null,"D06",null,null,"",null,null,null,null,null,null,null,"","",""]
[2541,null,"E06",null,null,"",null,null,null,null,null,null,null,"","",""]
[2542,null,"F06",null,null,"",null,null,null,null,null,null,null,"","",""]
[2543,null,"G06",null,null,"",null,null,null,null,null,null,null,"","",""]
[2544,null,"H06",null,null,"",null,null,null,null,null,null,null,"","",""]
[2545,null,"A07",null,null,"",null,null,null,null,null,null,null,"","",""]
[2546,null,"B07",null,null,"",null,null,null,null,null,null,null,"","",""]
[2547,null,"C07",null,null,"",null,null,null,null,null,null,null,"","",""]
[2548,null,"D07",null,null,"",null,null,null,null,null,null,null,"","",""]
[2549,null,"E07",null,null,"",null,null,null,null,null,null,null,"","",""]
[2550,null,"F07",null,null,"",null,null,null,null,null,null,null,"","",""]
[2551,null,"G07",null,null,"",null,null,null,null,null,null,null,"","",""]
[2552,null,"H07",null,null,"",null,null,null,null,null,null,null,"","",""]
[2553,null,"A08",null,null,"",null,null,null,null,null,null,null,"","",""]
[2554,null,"B08",null,null,"",null,null,null,null,null,null,null,"","",""]
[2555,null,"C08",null,null,"",null,null,null,null,null,null,null,"","",""]
[2556,null,"D08",null,null,"",null,null,null,null,null,null,null,"","",""]
[2557,null,"E08",null,null,"",null,null,null,null,null,null,null,"","",""]
[2558,null,"F08",null,null,"",null,null,null,null,null,null,null,"","",""]
[2559,null,"G08",null,null,"",null,null,null,null,null,null,null,"","",""]
[2560,null,"H08",null,null,"",null,null,null,null,null,null,null,"","",""]
[2561,null,"A09",null,null,"",null,null,null,null,null,null,null,"","",""]
[2562,null,"B09",null,null,{"$f":"IF($D$17<>\"\",$D$17,\"\")","v":""},null,null,null,null,null,null,null,{"$f":"IF($D$14<>\"\",$D$14,\"\")","v":""},{"$f":"IF($D$15<>\"\",$D$15,\"\")","v":""},{"$f":"IF($D$16<>\"\",$D$16,\"\")","v":""}]
[2563,null,"C09",null,null,"",null,null,null,null,null,null,null,"","",""]
[2564,null,"D09",null,null,"",null,null,null,null,null,null,null,"","",""]
[2565,null,"E09",null,null,"",null,null,null,null,null,null,null,"","",""]
[2566,null,"F09",null,null,"",null,null,null,null,null,null,null,"","",""]
[2567,null,"G09",null,null,"",null,null,null,null,null,null,null,"","",""]
[2568,null,"H09",null,null,"",null,null,null,null,null,null,null,"","",""]
[2569,null,"A10",null,null,"",null,null,null,null,null,null,null,"","",""]
[2570,null,"B10",null,null,"",null,null,null,null,null,null,null,"","",""]
[2571,null,"C10",null,null,"",null,null,null,null,null,null,null,"","",""]
[2572,null,"D10",null,null,"",null,null,null,null,null,null,null,"","",""]
[2573,null,"E10",null,null,"",null,null,null,null,null,null,null,"","",""]
[2574,null,"F10",null,null,"",null,null,null,null,null,null,null,"","",""]
[2575,null,"G10",null,null,"",null,null,null,null,null,null,null,"","",""]
[2576,null,"H10",null,null,"",null,null,null,null,null,null,null,"","",""]
[2577,null,"A11",null,null,"",null,null,null,null,null,null,null,"","",""]
[2578,null,"B11",null,null,"",null,null,null,null,null,null,null,"","",""]
[2579,null,"C11",null,null,"",null,null,null,null,null,null,null,"","",""]
[2580,null,"D11",null,null,"",null,null,null,null,null,null,null,"","",""]
[2581,null,"E11",null,null,"",null,null,null,null,null,null,null,"","",""]
[2582,null,"F11",null,null,"",null,null,null,null,null,null,null,"","",""]
[2583,null,"G11",null,null,"",null,null,null,null,null,null,null,"","",""]
[2584,null,"H11",null,null,"",null,null,null,null,null,null,null,"","",""]
[2585,null,"A12",null,null,"",null,null,null,null,null,null,null,"","",""]
[2586,null,"B12",null,null,"",null,null,null,null,null,null,null,"","",""]
[2587,null,"C12",null,null,"",null,null,null,null,null,null,null,"","",""]
[2588,null,"D12",null,null,"",null,null,null,null,null,null,null,"","",""]
[2589,null,"E12",null,null,"",null,null,null,null,null,null,null,"","",""]
[2590,null,"F12",null,null,"",null,null,null,null,null,null,null,"","",""]
[2591,null,"G12",null,null,"",null,null,null,null,null,null,null,"","",""]
[2592,null,"H12",null,null,"",null,null,null,null,null,null,null,"","",""]
[2593,null,"A01",null,null,"",null,null,null,null,null,null,null,"","",""]
[2594,null,"B01",null,null,"",null,null,null,null,null,null,null,"","",""]
[2595,null,"C01",null,null,"",null,null,null,null,null,null,null,"","",""]
[2596,null,"D01",null,null,"",null,null,null,null,null,null,null,"","",""]
[2597,null,"E01",null,null,"",null,null,null,null,null,null,null,"","",""]
[2598,null,"F01",null,null,"",null,null,null,null,null,null,null,"","",""]
[2599,null,"G01",null,null,"",null,null,null,null,null,null,null,"","",""]
[2600,null,"H01",null,null,"",null,null,null,null,null,null,null,"","",""]
[2601,null,"A02",null,null,"",null,null,null,null,null,null,null,"","",""]
[2602,null,"B02",null,null,"",null,null,null,null,null,null,null,"","",""]
[2603,null,"C02",null,null,"",null,null,null,null,null,null,null,"","",""]
[2604,null,"D02",null,null,"",null,null,null,null,null,null,null,"","",""]
[2605,null,"E02",null,null,"",null,null,null,null,null,null,null,"","",""]
[2606,null,"F02",null,null,"",null,null,null,null,null,null,null,"","",""]
[2607,null,"G02",null,null,"",null,null,null,null,null,null,null,"","",""]
[2608,null,"H02",null,null,"",null,null,null,null,null,null,null,"","",""]
[2609,null,"A03",null,null,"",null,null,null,null,null,null,null,"","",""]
[2610,null,"B03",null,null,"",null,null,null,null,null,null,null,"","",""]
[2611,null,"C03",null,null,"",null,null,null,null,null,null,null,"","",""]
[2612,null,"D03",null,null,"",null,null,null,null,null,null,null,"","",""]
[2613,null,"E03",null,null,"",null,null,null,null,null,null,null,"","",""]
[2614,null,"F03",null,null,"",null,null,null,null,null,null,null,"","",""]
[2615,null,"G03",null,null,"",null,null,null,null,null,null,null,"","",""]
[2616,null,"H03",null,null,"",null,null,null,null,null,null,null,"","",""]
[2617,null,"A04",null,null,"",null,null,null,null,null,null,null,"","",""]
[2618,null,"B04",null,null,"",null,null,null,null,null,null,null,"","",""]
[2619,null,"C04",null,null,"",null,null,null,null,null,null,null,"","",""]
[2620,null,"D04",null,null,"",null,null,null,null,null,null,null,"","",""]
[2621,null,"E04",null,null,"",null,null,null,null,null,null,null,"","",""]
[2622,null,"F04",null,null,"",null,null,null,null,null,null,null,"","",""]
[2623,null,"G04",null,null,"",null,null,null,null,null,null,null,"","",""]
[2624,null,"H04",null,null,"",null,null,null,null,null,null,null,"","",""]
[2625,null,"A05",null,null,"",null,null,null,null,null,null,null,"","",""]
[2626,null,"B05",null,null,{"$f":"IF($D$17<>\"\",$D$17,\"\")","v":""},null,null,null,null,null,null,null,{"$f":"IF($D$14<>\"\",$D$14,\"\")","v":""},{"$f":"IF($D$15<>\"\",$D$15,\"\")","v":""},{"$f":"IF($D$16<>\"\",$D$16,\"\")","v":""}]
[2627,null,"C05",null,null,"",null,null,null,null,null,null,null,"","",""]
[2628,null,"D05",null,null,"",null,null,null,null,null,null,null,"","",""]
[2629,null,"E05",null,null,"",null,null,null,null,null,null,null,"","",""]
[2630,null,"F05",null,null,"",null,null,null,null,null,null,null,"","",""]
[2631,null,"G05",null,null,"",null,null,null,null,null,null,null,"","",""]
[2632,null,"H05",null,null,"",null,null,null,null,null,null,null,"","",""]
[2633,null,"A06",null,null,"",null,null,null,null,null,null,null,"","",""]
[2634,null,"B06",null,null,"",null,null,null,null,null,null,null,"","",""]
[2635,null,"C06",null,null,"",null,null,null,null,null,null,null,"","",""]
[2636,null,"D06",null,null,"",null,null,null,null,null,null,null,"","",""]
[2637,null,"E06",null,null,"",null,null,null,null,null,null,null,"","",""]
[2638,null,"F06",null,null,"",null,null,null,null,null,null,null,"","",""]
[2639,null,"G06",null,null,"",null,null,null,null,null,null,null,"","",""]
[2640,null,"H06",null,null,"",null,null,null,null,null,null,null,"","",""]
[2641,null,"A07",null,null,"",null,null,null,null,null,null,null,"","",""]
[2642,null,"B07",null,null,"",null,null,null,null,null,null,null,"","",""]
[2643,null,"C07",null,null,"",null,null,null,null,null,null,null,"","",""]
[2644,null,"D07",null,null,"",null,null,null,null,null,null,null,"","",""]
[2645,null,"E07",null,null,"",null,null,null,null,null,null,null,"","",""]
[2646,null,"F07",null,null,"",null,null,null,null,null,null,null,"","",""]
[2647,null,"G07",null,null,"",null,null,null,null,null,null,null,"","",""]
[2648,null,"H07",null,null,"",null,null,null,null,null,null,null,"","",""]
[2649,null,"A08",null,null,"",null,null,null,null,null,null,null,"","",""]
[2650,null,"B08",null,null,"",null,null,null,null,null,null,null,"","",""]
[2651,null,"C08",null,null,"",null,null,null,null,null,null,null,"","",""]
[2652,null,"D08",null,null,"",null,null,null,null,null,null,null,"","",""]
[2653,null,"E08",null,null,"",null,null,null,null,null,null,null,"","",""]
[2654,null,"F08",null,null,"",null,null,null,null,null,null,null,"","",""]
[2655,null,"G08",null,null,"",null,null,null,null,null,null,null,"","",""]
[2656,null,"H08",null,null,"",null,null,null,null,null,null,null,"","",""]
[2657,null,"A09",null,null,"",null,null,null,null,null,null,null,"","",""]
[2658,null,"B09",null,null,"",null,null,null,null,null,null,null,"","",""]
[2659,null,"C09",null,null,"",null,null,null,null,null,null,null,"","",""]
[2660,null,"D09",null,null,"",null,null,null,null,null,null,null,"","",""]
[2661,null,"E09",null,null,"",null,null,null,null,null,null,null,"","",""]
[2662,null,"F09",null,null,"",null,null,null,null,null,null,null,"","",""]
[2663,null,"G09",null,null,"",null,null,null,null,null,null,null,"","",""]
[2664,null,"H09",null,null,"",null,null,null,null,null,null,null,"","",""]
[2665,null,"A10",null,null,"",null,null,null,null,null,null,null,"","",""]
[2666,null,"B10",null,null,"",null,null,null,null,null,null,null,"","",""]
[2667,null,"C10",null,null,"",null,null,null,null,null,null,null,"","",""]
[2668,null,"D10",null,null,"",null,null,null,null,null,null,null,"","",""]
[2669,null,"E10",null,null,"",null,null,null,null,null,null,null,"","",""]
[2670,null,"F10",null,null,"",null,null,null,null,null,null,null,"","",""]
[2671,null,"G10",null,null,"",null,null,null,null,null,null,null,"","",""]
[2672,null,"H10",null,null,"",null,null,null,null,null,null,null,"","",""]
[2673,null,"A11",null,null,"",null,null,null,null,null,null,null,"","",""]
[2674,null,"B11",null,null,"",null,null,null,null,null,null,null,"","",""]
[2675,null,"C11",null,null,"",null,null,null,null,null,null,null,"","",""]
[2676,null,"D11",null,null,"",null,null,null,null,null,null,null,"","",""]
[2677,null,"E11",null,null,"",null,null,null,null,null,null,null,"","",""]
[2678,null,"F11",null,null,"",null,null,null,null,null,null,null,"","",""]
[2679,null,"G11",null,null,"",null,null,null,null,null,null,null,"","",""]
[2680,null,"H11",null,null,"",null,null,null,null,null,null,null,"","",""]
[2681,null,"A12",null,null,"",null,null,null,null,null,null,null,"","",""]
[2682,null,"B12",null,null,"",null,null,null,null,null,null,null,"","",""]
[2683,null,"C12",null,null,"",null,null,null,null,null,null,null,"","",""]
[2684,null,"D12",null,null,"",null,null,null,null,null,null,null,"","",""]
[2685,null,"E12",null,null,"",null,null,null,null,null,null,null,"","",""]
[2686,null,"F12",null,null,"",null,null,null,null,null,null,null,"","",""]
[2687,null,"G12",null,null,"",null,null,null,null,null,null,null,"","",""]
[2688,null,"H12",null,null,"",null,null,null,null,null,null,null,"","",""]
[2689,null,"A01",null,null,"",null,null,null,null,null,null,null,"","",""]
[2690,null,"B01",null,null,{"$f":"IF($D$17<>\"\",$D$17,\"\")","v":""},null,null,null,null,null,null,null,{"$f":"IF($D$14<>\"\",$D$14,\"\")","v":""},{"$f":"IF($D$15<>\"\",$D$15,\"\")","v":""},{"$f":"IF($D$16<>\"\",$D$16,\"\")","v":""}]
[2691,null,"C01",null,null,"",null,null,null,null,null,null,null,"","",""]
[2692,null,"D01",null,null,"",null,null,null,null,null,null,null,"","",""]
[2693,null,"E01",null,null,"",null,null,null,null,null,null,null,"","",""]
[2694,null,"F01",null,null,"",null,null,null,null,null,null,null,"","",""]
[2695,null,"G01",null,null,"",null,null,null,null,null,null,null,"","",""]
[2696,null,"H01",null,null,"",null,null,null,null,null,null,null,"","",""]
[2697,null,"A02",null,null,"",null,null,null,null,null,null,null,"","",""]
[2698,null,"B02",null,null,"",null,null,null,null,null,null,null,"","",""]
[2699,null,"C02",null,null,"",null,null,null,null,null,null,null,"","",""]
[2700,null,"D02",null,null,"",null,null,null,null,null,null,null,"","",""]
[2701,null,"E02",null,null,"",null,null,null,null,null,null,null,"","",""]
[2702,null,"F02",null,null,"",null,null,null,null,null,null,null,"","",""]
[2703,null,"G02",null,null,"",null,null,null,null,null,null,null,"","",""]
[2704,null,"H02",null,null,"",null,null,null,null,null,null,null,"","",""]
[2705,null,"A03",null,null,"",null,null,null,null,null,null,null,"","",""]
[2706,null,"B03",null,null,"",null,null,null,null,null,null,null,"","",""]
[2707,null,"C03",null,null,"",null,null,null,null,null,null,null,"","",""]
[2708,null,"D03",null,null,"",null,null,null,null,null,null,null,"","",""]
[2709,null,"E03",null,null,"",null,null,null,null,null,null,null,"","",""]
[2710,null,"F03",null,null,"",null,null,null,null,null,null,null,"","",""]
[2711,null,"G03",null,null,"",null,null,null,null,null,null,null,"","",""]
[2712,null,"H03",null,null,"",null,null,null,null,null,null,null,"","",""]
[2713,null,"A04",null,null,"",null,null,null,null,null,null,null,"","",""]
[2714,null,"B04",null,null,"",null,null,null,null,null,null,null,"","",""]
[2715,null,"C04",null,null,"",null,null,null,null,null,null,null,"","",""]
[2716,null,"D04",null,null,"",null,null,null,null,null,null,null,"","",""]
[2717,null,"E04",null,null,"",null,null,null,null,null,null,null,"","",""]
[2718,null,"F04",null,null,"",null,null,null,null,null,null,null,"","",""]
[2719,null,"G04",null,null,"",null,null,null,null,null,null,null,"","",""]
[2720,null,"H04",null,null,"",null,null,null,null,null,null,null,"","",""]
[2721,null,"A05",null,null,"",null,null,null,null,null,null,null,"","",""]
[2722,null,"B05",null,null,"",null,null,null,null,null,null,null,"","",""]
[2723,null,"C05",null,null,"",null,null,null,null,null,null,null,"","",""]
[2724,null,"D05",null,null,"",null,null,null,null,null,null,null,"","",""]
[2725,null,"E05",null,null,"",null,null,null,null,null,null,null,"","",""]
[2726,null,"F05",null,null,"",null,null,null,null,null,null,null,"","",""]
[2727,null,"G05",null,null,"",null,null,null,null,null,null,null,"","",""]
[2728,null,"H05",null,null,"",null,null,null,null,null,null,null,"","",""]
[2729,null,"A06",null,null,"",null,null,null,null,null,null,null,"","",""]
[2730,null,"B06",null,null,"",null,null,null,null,null,null,null,"","",""]
[2731,null,"C06",null,null,"",null,null,null,null,null,null,null,"","",""]
[2732,null,"D06",null,null,"",null,null,null,null,null,null,null,"","",""]
[2733,null,"E06",null,null,"",null,null,null,null,null,null,null,"","",""]
[2734,null,"F06",null,null,"",null,null,null,null,null,null,null,"","",""]
[2735,null,"G06",null,null,"",null,null,null,null,null,null,null,"","",""]
[2736,null,"H06",null,null,"",null,null,null,null,null,null,null,"","",""]
[2737,null,"A07",null,null,"",null,null,null,null,null,null,null,"","",""]
[2738,null,"B07",null,null,"",null,null,null,null,null,null,null,"","",""]
[2739,null,"C07",null,null,"",null,null,null,null,null,null,null,"","",""]
[2740,null,"D07",null,null,"",null,null,null,null,null,null,null,"","",""]
[2741,null,"E07",null,null,"",null,null,null,null,null,null,null,"","",""]
[2742,null,"F07",null,null,"",null,null,null,null,null,null,null,"","",""]
[2743,null,"G07",null,null,"",null,null,null,null,null,null,null,"","",""]
[2744,null,"H07",null,null,"",null,null,null,null,null,null,null,"","",""]
[2745,null,"A08",null,null,"",null,null,null,null,null,null,null,"","",""]
[2746,null,"B08",null,null,"",null,null,null,null,null,null,null,"","",""]
[2747,null,"C08",null,null,"",null,null,null,null,null,null,null,"","",""]
[2748,null,"D08",null,null,"",null,null,null,null,null,null,null,"","",""]
[2749,null,"E08",null,null,"",null,null,null,null,null,null,null,"","",""]
[2750,null,"F08",null,null,"",null,null,null,null,null,null,null,"","",""]
[2751,null,"G08",null,null,"",null,null,null,null,null,null,null,"","",""]
[2752,null,"H08",null,null,"",null,null,null,null,null,null,null,"","",""]
[2753,null,"A09",null,null,"",null,null,null,null,null,null,null,"","",""]
[2754,null,"B09",null,null,{"$f":"IF($D$17<>\"\",$D$17,\"\")","v":""},null,null,null,null,null,null,null,{"$f":"IF($D$14<>\"\",$D$14,\"\")","v":""},{"$f":"IF($D$15<>\"\",$D$15,\"\")","v":""},{"$f":"IF($D$16<>\"\",$D$16,\"\")","v":""}]
[2755,null,"C09",null,null,"",null,null,null,null,null,null,null,"","",""]
[2756,null,"D09",null,null,"",null,null,null,null,null,null,null,"","",""]
[2757,null,"E09",null,null,"",null,null,null,null,null,null,null,"","",""]
[2758,null,"F09",null,null,"",null,null,null,null,null,null,null,"","",""]
[2759,null,"G09",null,null,"",null,null,null,null,null,null,null,"","",""]
[2760,null,"H09",null,null,"",null,null,null,null,null,null,null,"","",""]
[2761,null,"A10",null,null,"",null,null,null,null,null,null,null,"","",""]
[2762,null,"B10",null,null,"",null,null,null,null,null,null,null,"","",""]
[2763,null,"C10",null,null,"",null,null,null,null,null,null,null,"","",""]
[2764,null,"D10",null,null,"",null,null,null,null,null,null,null,"","",""]
[2765,null,"E10",null,null,"",null,null,null,null,null,null,null,"","",""]
[2766,null,"F10",null,null,"",null,null,null,null,null,null,null,"","",""]
[2767,null,"G10",null,null,"",null,null,null,null,null,null,null,"","",""]
[2768,null,"H10",null,null,"",null,null,null,null,null,null,null,"","",""]
[2769,null,"A11",null,null,"",null,null,null,null,null,null,null,"","",""]
[2770,null,"B11",null,null,"",null,null,null,null,null,null,null,"","",""]
[2771,null,"C11",null,null,"",null,null,null,null,null,null,null,"","",""]
[2772,null,"D11",null,null,"",null,null,null,null,null,null,null,"","",""]
[2773,null,"E11",null,null,"",null,null,null,null,null,null,null,"","",""]
[2774,null,"F11",null,null,"",null,null,null,null,null,null,null,"","",""]
[2775,null,"G11",null,null,"",null,null,null,null,null,null,null,"","",""]
[2776,null,"H11",null,null,"",null,null,null,null,null,null,null,"","",""]
[2777,null,"A12",null,null,"",null,null,null,null,null,null,null,"","",""]
[2778,null,"B12",null,null,"",null,null,null,null,null,null,null,"","",""]
[2779,null,"C12",null,null,"",null,null,null,null,null,null,null,"","",""]
[2780,null,"D12",null,null,"",null,null,null,null,null,null,null,"","",""]
[2781,null,"E12",null,null,"",null,null,null,null,null,null,null,"","",""]
[2782,null,"F12",null,null,"",null,null,null,null,null,null,null,"","",""]
[2783,null,"G12",null,null,"",null,null,null,null,null,null,null,"","",""]
[2784,null,"H12",null,null,"",null,null,null,null,null,null,null,"","",""]

{"sheet":"Ressource","index":1,"n_rows":38,"n_cols":6,"rows_kept":38,"cut":false,"hidden":false,"merged":[[0,0,0,1],[0,2,0,3],[0,4,0,5]]}
["Type of DNA or RNA used in the experiment",null,"Whether the source material was selected for certain properties (for\nexample methyl filtrated)",null,"the sequencing technique intended for the library."]
["library source","library source explanation","library selection","library selection explanation","Library strategy","Library strategy explanation"]
["GENOMIC"," Genomic DNA (includes PCR products from genomic DNA).","RANDOM"," No Selection or Random selection","WGS"," Whole Genome Sequencing - random sequencing of the whole genome (see pubmed 10731132 for details)"]
["GENOMIC SINGLE CELL","No description","PCR"," target enrichment via PCR","WGA"," Whole Genome Amplification followed by random sequencing. (see pubmed 1631067,8962113 for details)"]
["TRANSCRIPTOMIC"," Transcription products or non genomic DNA (EST, cDNA, RT-PCR, screened libraries).","RANDOM PCR"," Source material was selected by randomly generated primers.","WXS"," Random sequencing of exonic regions selected from the genome. (see pubmed 20111037 for details)"]
["TRANSCRIPTOMIC SINGLE CELL","No description","RT-PCR"," target enrichment via","RNA-Seq"," Random sequencing of whole transcriptome, also known as Whole Transcriptome Shotgun Sequencing, or WTSS). (see pubmed 18611170 for details)"]
["METAGENOMIC"," Mixed material from metagenome.","HMPR"," Hypo-methylated partial restriction digest","ssRNA-seq"," Strand-specific RNA sequencing."]
["METATRANSCRIPTOMIC"," Transcription products from community targets","MF"," Methyl Filtrated","miRNA-Seq"," Micro RNA sequencing strategy designed to capture post-transcriptional RNA elements and include non-coding functional elements. (see pubmed 21787409 for details)"]
["SYNTHETIC"," Synthetic DNA.","repeat fractionation"," Selection for less repetitive (and more gene rich) sequence through Cot filtration (CF) or other fractionation techniques based on DNA kinetics.","ncRNA-Seq"," Capture of other non-coding RNA types, including post-translation modification types such as snRNA (small nuclear RNA) or snoRNA (small nucleolar RNA), or expression regulation types such as siRNA (small interfering RNA) or piRNA/piwi/RNA (piwi-interacting RNA)."]
["VIRAL RNA"," Viral RNA.","size fractionation"," Physical selection of size appropriate targets.","FL-cDNA"," Full-length sequencing of cDNA templates"]
["OTHER"," Other, unspecified, or unknown library source material.","MSLL"," Methylation Spanning Linking Library","EST"," Single pass sequencing of cDNA templates"]
[null,null,"cDNA"," PolyA selection or enrichment for messenger RNA (mRNA); synonymize with PolyA","Hi-C"," Chromosome Conformation Capture technique where a biotin-labeled nucleotide is incorporated at the ligation junction, enabling selective purification of chimeric DNA ligation junctions followed by deep sequencing."]
[null,null,"cDNA_randomPriming","No description","ATAC-seq"," Assay for Transposase-Accessible Chromatin (ATAC) strategy is used to study genome-wide chromatin accessibility. alternative method to DNase-seq that uses an engineered Tn5 transposase to cleave DNA and to integrate primer DNA sequences into the cleaved genomic DNA."]
[null,null,"cDNA_oligo_dT","No description","WCS"," Random sequencing of a whole chromosome or other replicon isolated from a genome."]
[null,null,"PolyA"," PolyA selection or enrichment for messenger RNA (mRNA); should replace cDNA enumeration.","RAD-Seq","No description"]
[null,null,"Oligo-dT"," enrichment of messenger RNA (mRNA) by hybridization to Oligo-dT.","CLONE"," Genomic clone based (hierarchical) sequencing."]
[null,null,"Inverse rRNA"," depletion of ribosomal RNA by oligo hybridization.","POOLCLONE"," Shotgun of pooled clones (usually BACs and Fosmids)."]
[null,null,"Inverse rRNA selection"," depletion of ribosomal RNA by inverse oligo hybridization.","AMPLICON"," Sequencing of overlapping or distinct PCR or RT-PCR products. For example, metagenomic community profiling using SSU rRNA."]
[null,null,"ChIP"," Chromatin immunoprecipitation","CLONEEND"," Clone end (5’, 3’, or both) sequencing."]
[null,null,"ChIP-Seq"," Chromatin immunoPrecipitation, reveals binding sites of specific proteins, typically transcription factors (TFs) using antibodies to extract DNA fragments bound to the target protein.","FINISHING"," Sequencing intended to finish (close) gaps in existing coverage."]
[null,null,"MNase"," Identifies well-positioned nucleosomes. uses Micrococcal Nuclease (MNase) is an endo-exonuclease that processively digests DNA until an obstruction, such as a nucleosome, is reached.","ChIP-Seq"," ChIP-seq, Chromatin ImmunoPrecipitation, reveals binding sites of specific proteins, typically transcription factors (TFs) using antibodies to extract DNA fragments bound to the target protein."]
[null,null,"DNase"," DNase I endonuclease digestion and size selection reveals regions of chromatin where the DNA is highly sensitive to DNase I.","MNase-Seq"," Identifies well-positioned nucleosomes. uses Micrococcal Nuclease (MNase) is an endo-exonuclease that processively digests DNA until an obstruction, such as a nucleosome, is reached."]
[null,null,"Hybrid Selection"," Selection by hybridization in array or solution.","DNase-Hypersensitivity"," Sequencing of hypersensitive sites, or segments of open chromatin that are more readily cleaved by DNaseI."]
[null,null,"Reduced Representation"," Reproducible genomic subsets, often generated by restriction fragment size selection, containing a manageable number of loci to facilitate re-sampling.","Bisulfite-Seq"," MethylC-seq. Sequencing following treatment of DNA with bisulfite to convert cytosine residues to uracil depending on methylation status."]
[null,null,"Restriction Digest"," DNA fractionation using restriction enzymes.","CTS"," Concatenated Tag Sequencing"]
[null,null,"5-methylcytidine antibody"," Selection of methylated DNA fragments using an antibody raised against 5-methylcytosine or 5-methylcytidine (m5C).","MRE-Seq"," Methylation-Sensitive Restriction Enzyme Sequencing."]
[null,null,"MBD2 protein methyl-CpG binding domain"," Enrichment by methyl-CpG binding domain.","MeDIP-Seq"," Methylated DNA Immunoprecipitation Sequencing."]
[null,null,"CAGE"," Cap-analysis gene expression.","MBD-Seq"," Methyl CpG Binding Domain Sequencing."]
[null,null,"RACE"," Rapid Amplification of cDNA Ends.","Tn-Seq"," Quantitatively determine fitness of bacterial genes based on how many times a purposely seeded transposon gets inserted into each gene of a colony after some time."]
[null,null,"MDA"," Multiple Displacement Amplification, a non-PCR based DNA amplification technique that amplifies a minute quantifies of DNA to levels suitable for genomic analysis.","VALIDATION","  CGHub special request:  Independent experiment to re-evaluate putative variants."]
[null,null,"padlock probes capture method"," Targeted sequence capture protocol covering an arbitrary set of nonrepetitive genomics targets. An example is capture bisulfite sequencing using padlock probes (BSPP).","FAIRE-seq"," Formaldehyde Assisted Isolation of Regulatory Elements. Reveals regions of open chromatin."]
[null,null,"other"," Other library enrichment, screening, or selection process.","SELEX"," Systematic Evolution of Ligands by Exponential enrichment"]
[null,null,"unspecified"," Library enrichment, screening, or selection is not specified.","RIP-Seq"," Direct sequencing of RNA immunoprecipitates (includes CLIP-Seq, HITS-CLIP and PAR-CLIP)."]
[null,null,null,null,"ChIA-PET"," Direct sequencing of proximity-ligated chromatin immunoprecipitates."]
[null,null,null,null,"Synthetic-Long-Read"," binning and barcoding of large DNA fragments to facilitate assembly of the fragment"]
[null,null,null,null,"Targeted-Capture"," Enrichment of a targeted subset of loci."]
[null,null,null,null,"Tethered Chromatin Conformation Capture"]
[null,null,null,null,"OTHER"," Library strategy not listed."]

{"sheet":"Version","index":2,"n_rows":7,"n_cols":3,"rows_kept":7,"cut":false,"hidden":false,"merged":[]}
["Date","Quoi","Qui"]
["2023-04-12T22:42:00"]
["2023-08-07T18:03:00","ajout infos pour metadata ENA (lib, espèce)","Gérald"]
["2023-08-24T19:12:00","Uniformisation cellules genome et transcriptome","Gérald"]
["2023-08-24T19:12:00","Uniformisation cellules genome et transcriptome","Gérald"]
["2023-09-29T15:37:00","précision remplir les infos de lib si RTL","Gérald"]
["2025-02-28T08:08:00","passage à 2784 echantillons\nAjout info pour conserver les échantillons ou non","Gérald"]

{"sheet":"Feuil1","index":3,"n_rows":0,"n_cols":0,"rows_kept":0,"cut":false,"hidden":true,"merged":[]}